TRANS.No,Service Area Categorisation,Service Division Categorisation,Responsible Unit,Unit Code,Expenses Type,Expenses Sub Type,Expense Code,Narrative,Amount,Invoice Date,Capital/Revenue,Supplier Name 
1,Central Services,Corporate Mangmt not separated,Chief Exec's Office,A01001,Supplies & Services           ,Services                      ,DF03,Consultants                             ,500,17/02/2014,REV,HEALTH CARE AUDIT             
2,Central Services,SupS Chief Execs,Local Involvement Network,A01039,Third Party Payments          ,Private Contractors           ,EH10,Contract Payments                       ,10787.11,03/03/2014,REV,MERTON VOLUNTARY SERV COUNCIL 
3,Cultural Env Reg&Plan Services,Comm Safety (Crime Reduction),Crime and Strategy Team,A01100,Third Party Payments          ,Private Contractors           ,EH02,Miscellaneous Hired Services            ,6168.25,08/01/2014,REV,GLOBAL MSC SECURITY LTD       
4,Cultural Env Reg&Plan Services,Comm Safety (Crime Reduction),Crime and Strategy Team,A01100,Third Party Payments          ,Private Contractors           ,EH02,Miscellaneous Hired Services            ,1470,21/10/2013,REV,MORDEN BAPTIST CHURCH         
5,Cultural Env Reg&Plan Services,Comm Safety (Crime Reduction),Crime and Strategy Team,A01100,Third Party Payments          ,Private Contractors           ,EH02,Miscellaneous Hired Services            ,1000,27/03/2014,REV,MERTON STREET PASTORS         
6,Cultural Env Reg&Plan Services,Comm Safety (Crime Reduction),Prolific & Priority Offenders,A01105,Third Party Payments          ,Private Contractors           ,EH01,Miscellaneous Contrct Services          ,1834.88,27/03/2014,REV,MAY GURNEY LTD T/A CARTLEDGE  
7,Cultural Env Reg&Plan Services,Comm Safety (Crime Reduction),CCTV,A01200,Supplies & Services           ,Equip Furniture/Materials     ,DA01,Equipment - R & M                       ,5136.3,09/10/2013,REV,EUROVIA INFRASTRUCTURE LTD    
8,Cultural Env Reg&Plan Services,Comm Safety (Crime Reduction),CCTV,A01200,Supplies & Services           ,Equip Furniture/Materials     ,DA01,Equipment - R & M                       ,9955.71,16/03/2014,REV,EUROVIA INFRASTRUCTURE LTD    
9,Cultural Env Reg&Plan Services,Comm Safety (Crime Reduction),CCTV,A01200,Supplies & Services           ,Equip Furniture/Materials     ,DA01,Equipment - R & M                       ,790.15,27/01/2014,REV,EUROVIA INFRASTRUCTURE LTD    
10,Cultural Env Reg&Plan Services,Comm Safety (Crime Reduction),CCTV,A01200,Supplies & Services           ,Services                      ,DF57,Consulting Engineers Fees               ,836.32,01/02/2014,REV,GOODWILL ASSOCIATES LIMITED   
11,Central Services,SupS Chief Execs,NON-STATUTORY MARKETING & COMM,A02019,Supplies & Services           ,Services                      ,DF02,Misc Advertising/Publicity              ,537.5,25/02/2014,REV,JCDECAUX UNITED KINGDOM       
12,Central Services,SupS Chief Execs,NON-STATUTORY MARKETING & COMM,A02019,Supplies & Services           ,Services                      ,DF02,Misc Advertising/Publicity              ,600,04/02/2014,REV,INTUITIVE EVENTS              
13,Central Services,SupS Chief Execs,NON-STATUTORY MARKETING & COMM,A02019,Supplies & Services           ,Services                      ,DF02,Misc Advertising/Publicity              ,537.5,25/02/2014,REV,JCDECAUX UNITED KINGDOM       
14,Central Services,SupS Chief Execs,NON-STATUTORY MARKETING & COMM,A02019,Supplies & Services           ,Services                      ,DF02,Misc Advertising/Publicity              ,537.5,26/02/2014,REV,JCDECAUX UNITED KINGDOM       
15,Central Services,SupS Chief Execs,NON-STATUTORY MARKETING & COMM,A02019,Supplies & Services           ,Services                      ,DF02,Misc Advertising/Publicity              ,537.5,25/03/2014,REV,JCDECAUX UNITED KINGDOM       
16,Central Services,SupS Chief Execs,NON-STATUTORY MARKETING & COMM,A02019,Supplies & Services           ,Services                      ,DF35,Graphic Design                          ,4815,12/02/2014,REV,THE BIG IDEA 
17,Central Services,SupS Chief Execs,NON-STATUTORY MARKETING & COMM,A02019,Supplies & Services           ,Services                      ,DF35,Graphic Design                          ,4095,24/03/2014,REV,THE BIG IDEA 
18,Central Services,SupS Chief Execs,NON-STATUTORY MARKETING & COMM,A02019,Supplies & Services           ,Grants and Subscriptions      ,DJ04,Subscriptions                           ,600,28/02/2014,REV,FLAME LIMITED                 
19,Central Services,SupS Chief Execs,Democratic Services,A02023,Transport Related Expenditure ,Direct Transport Costs        ,CA50,Mayoral Exps Car                        ,2080.32,10/03/2014,REV,BMW INSURED WARRANTY SERVICES 
20,Central Services,SupS Chief Execs,Democratic Services,A02023,Supplies & Services           ,Expenses                      ,DH79,INCOMING MAYOR (MAY-MARCH)              ,700,26/03/2014,REV,POLKA THEATRE FOR CHILDREN    
21,Central Services,SupS Chief Execs,Press and Public Relations.,A02026,Supplies & Services           ,Prntng Stnry Gen Off Exp      ,DE20,Council Magazine                        ,3777.5,01/03/2014,REV,DOMINO 4 LIMITED              
22,Central Services,SupS Chief Execs,Press and Public Relations.,A02026,Supplies & Services           ,Prntng Stnry Gen Off Exp      ,DE20,Council Magazine                        ,650,15/02/2014,REV,REDACTED
23,Central Services,SupS Chief Execs,Press and Public Relations.,A02026,Supplies & Services           ,Expenses                      ,DH21,Christma Lights                         ,503.6,06/03/2014,REV,FM CONWAY LTD                 
24,Central Services,SupS Chief Execs,Press and Public Relations.,A02026,Supplies & Services           ,Expenses                      ,DH21,Christma Lights                         ,2649.5,20/03/2014,REV,MAY GURNEY LTD T/A CARTLEDGE  
25,Central Services,SupS Chief Execs,Press and Public Relations.,A02026,Supplies & Services           ,Expenses                      ,DH21,Christma Lights                         ,543.92,28/02/2014,REV,MAY GURNEY LTD T/A CARTLEDGE  
26,Central Services,SupS Chief Execs,Press and Public Relations.,A02026,Supplies & Services           ,Grants and Subscriptions      ,DJ04,Subscriptions                           ,6138,18/02/2014,REV,ACCESS INTEL. MEDIA & COM LTD 
27,CS -Oth Operating Inc & Expend,T/A Corporate Services,Prtng Jobs - Ext Agncy,A03041,Supplies & Services           ,Prntng Stnry Gen Off Exp      ,DE01,External Printing                       ,658.8,07/03/2014,REV,FINANCIAL DATA MANAGEMENT PLC 
28,CS -Oth Operating Inc & Expend,T/A Corporate Services,Prtng Jobs - Ext Agncy,A03041,Supplies & Services           ,Prntng Stnry Gen Off Exp      ,DE01,External Printing                       ,1188,24/03/2014,REV,CLIFFE ENTERPRISE             
29,CS -Oth Operating Inc & Expend,T/A Corporate Services,Prtng Jobs - Ext Agncy,A03041,Supplies & Services           ,Prntng Stnry Gen Off Exp      ,DE01,External Printing                       ,1590.16,13/03/2014,REV,MWL PRINT GROUP               
30,CS -Oth Operating Inc & Expend,T/A Corporate Services,Prtng Jobs - Ext Agncy,A03041,Supplies & Services           ,Prntng Stnry Gen Off Exp      ,DE01,External Printing                       ,3298,13/03/2014,REV,MWL PRINT GROUP               
31,CS -Oth Operating Inc & Expend,T/A Corporate Services,Prtng Jobs - Ext Agncy,A03041,Supplies & Services           ,Prntng Stnry Gen Off Exp      ,DE01,External Printing                       ,675,17/03/2014,REV,ENNISFIELD                    
32,CS -Oth Operating Inc & Expend,T/A Corporate Services,Prtng Jobs - Ext Agncy,A03041,Supplies & Services           ,Prntng Stnry Gen Off Exp      ,DE01,External Printing                       ,1448,11/03/2014,REV,TAURUS PRINT & DESIGN LTD     
33,CS -Oth Operating Inc & Expend,T/A Corporate Services,Prtng Jobs - Ext Agncy,A03041,Supplies & Services           ,Prntng Stnry Gen Off Exp      ,DE01,External Printing                       ,7922,18/03/2014,REV,CLIFFE ENTERPRISE             
34,CS -Oth Operating Inc & Expend,T/A Corporate Services,Prtng Jobs - Ext Agncy,A03041,Supplies & Services           ,Prntng Stnry Gen Off Exp      ,DE01,External Printing                       ,1200.96,13/03/2014,REV,MWL PRINT GROUP               
35,CS -Oth Operating Inc & Expend,T/A Corporate Services,PrintUnit-HighVolPhtcopying,A03042,Supplies & Services           ,Equip Furniture/Materials     ,DA01,Equipment - R & M                       ,1831.9,05/03/2014,REV,PARAGON GROUP UK LIMITED      
36,CS -Oth Operating Inc & Expend,T/A Corporate Services,PrintUnit-HighVolPhtcopying,A03042,Supplies & Services           ,Equip Furniture/Materials     ,DA06,Paper-Internal Print Jobs               ,9750,24/02/2014,REV,RAINBOW OFFICE SUPPLIES LTD   
37,CS -Oth Operating Inc & Expend,T/A Corporate Services,PrintUnit-HighVolPhtcopying,A03042,Supplies & Services           ,Prntng Stnry Gen Off Exp      ,DE01,External Printing                       ,817.94,24/03/2014,REV,COLLECTOR SET PRINTERS LTD    
38,CS -Oth Operating Inc & Expend,T/A Corporate Services,PrintUnit-HighVolPhtcopying,A03042,Supplies & Services           ,Prntng Stnry Gen Off Exp      ,DE03,Stationery                              ,2293,12/03/2014,REV,TOMPLA UK LTD                 
39,CS -Oth Operating Inc & Expend,T/A Corporate Services,PrintUnit-HighVolPhtcopying,A03042,Third Party Payments          ,Private Contractors           ,EH02,Miscellaneous Hired Services            ,4854.12,03/03/2014,REV,OCE (UK) LTD                  
40,CS -Oth Operating Inc & Expend,T/A Corporate Services,Translation Services,A04060,Supplies & Services           ,Services                      ,DF45,Payment of Sessional Workers            ,621,28/02/2014,REV,REDACTED
41,CS -Oth Operating Inc & Expend,T/A Corporate Services,Translation Services,A04060,Supplies & Services           ,Services                      ,DF45,Payment of Sessional Workers            ,531,10/03/2014,REV,REDACTED
42,CS -Oth Operating Inc & Expend,T/A Corporate Services,Translation Services,A04060,Supplies & Services           ,Services                      ,DF45,Payment of Sessional Workers            ,2250,30/11/2013,REV,COSMIC EUROPE LIMTED          
43,Central Services,SupS Comm and Member Services,PROGRAMME OFFICE,A04068,Employees                     ,Direct Employee Expenses      ,AA17,AGENCY STAFF & CASUAL PAYMTS            ,4023.48,05/03/2014,REV,REDACTED
44,Central Services,SupS Comm and Member Services,PROGRAMME OFFICE,A04068,Employees                     ,Direct Employee Expenses      ,AA17,AGENCY STAFF & CASUAL PAYMTS            ,10800,28/02/2014,REV,REDACTED
45,Central Services,SupS Best Value,Merton Link,A04070,Supplies & Services           ,Comms and Computing           ,DG15,Network Maintenance                     ,809.24,03/03/2014,REV,NORTHGATE  INFORMATION SOLUT. 
46,Central Services,SupS Comm and Member Services,COMMERICIAL SERVICES,A04085,Employees                     ,Direct Employee Expenses      ,AA17,Agency Staff & Casual Paymts            ,3390,20/03/2014,REV,HAYS RECRUITING EXPERTS       
47,Central Services,SupS Comm and Member Services,COMMERICIAL SERVICES,A04085,Employees                     ,Direct Employee Expenses      ,AA17,Agency Staff & Casual Paymts            ,1832,31/01/2014,REV,HAYS RECRUITING EXPERTS       
48,Central Services,SupS Comm and Member Services,COMMERICIAL SERVICES,A04085,Employees                     ,Direct Employee Expenses      ,AA17,Agency Staff & Casual Paymts            ,3390,19/02/2014,REV,HAYS RECRUITING EXPERTS       
49,Central Services,SupS Comm and Member Services,COMMERICIAL SERVICES,A04085,Employees                     ,Direct Employee Expenses      ,AA17,Agency Staff & Casual Paymts            ,3390,22/01/2014,REV,HAYS RECRUITING EXPERTS       
50,Central Services,SupS Comm and Member Services,COMMERICIAL SERVICES,A04085,Employees                     ,Direct Employee Expenses      ,AA17,Agency Staff & Casual Paymts            ,3390,15/01/2014,REV,HAYS RECRUITING EXPERTS       
51,Central Services,SupS Comm and Member Services,COMMERICIAL SERVICES,A04085,Employees                     ,Direct Employee Expenses      ,AA17,Agency Staff & Casual Paymts            ,3390,12/03/2014,REV,HAYS RECRUITING EXPERTS       
52,Central Services,SupS Comm and Member Services,COMMERICIAL SERVICES,A04085,Employees                     ,Direct Employee Expenses      ,AA17,Agency Staff & Casual Paymts            ,3390,26/02/2014,REV,HAYS RECRUITING EXPERTS       
53,Central Services,SupS Comm and Member Services,COMMERICIAL SERVICES,A04085,Employees                     ,Direct Employee Expenses      ,AA17,Agency Staff & Casual Paymts            ,1356,03/01/2014,REV,HAYS RECRUITING EXPERTS       
54,Central Services,SupS Comm and Member Services,COMMERICIAL SERVICES,A04085,Employees                     ,Direct Employee Expenses      ,AA17,Agency Staff & Casual Paymts            ,3390,13/02/2014,REV,HAYS RECRUITING EXPERTS       
55,Central Services,SupS Comm and Member Services,COMMERICIAL SERVICES,A04085,Employees                     ,Direct Employee Expenses      ,AA17,Agency Staff & Casual Paymts            ,3390,06/02/2014,REV,HAYS RECRUITING EXPERTS       
56,Central Services,SupS Comm and Member Services,COMMERICIAL SERVICES,A04085,Employees                     ,Direct Employee Expenses      ,AA17,Agency Staff & Casual Paymts            ,3390,05/03/2014,REV,HAYS RECRUITING EXPERTS       
57,Central Services,SupS Comm and Member Services,COMMERICIAL SERVICES,A04085,Employees                     ,Direct Employee Expenses      ,AA17,Agency Staff & Casual Paymts            ,1558,31/01/2014,REV,HAYS RECRUITING EXPERTS       
58,Central Services,SupS Comm and Member Services,COMMERICIAL SERVICES,A04085,Employees                     ,Direct Employee Expenses      ,AA17,Agency Staff & Casual Paymts            ,3390,27/03/2014,REV,HAYS RECRUITING EXPERTS       
59,Central Services,Registn Birth/Death/Marriage,Reg of B. Deaths & Ms,B06143,Supplies & Services           ,Comms and Computing           ,DG07,Computer Software                       ,1877.1,03/03/2014,REV,ZIPPORAH LTD                  
60,Central Services,SupS Health & Safety,Learning and Development,B06146,Employees                     ,Indirect Employee Expenses    ,AB56,Internal Training Costs                 ,744,10/03/2014,REV,WAVE PEOPLE CONSULTING        
61,Central Services,SupS Health & Safety,Learning and Development,B06146,Employees                     ,Indirect Employee Expenses    ,AB56,Internal Training Costs                 ,900,01/12/2013,REV,MEDI AID(UK) LTD              
62,Central Services,SupS Health & Safety,Learning and Development,B06146,Employees                     ,Indirect Employee Expenses    ,AB56,Internal Training Costs                 ,835,17/02/2014,REV,ACAS                          
63,Central Services,SupS Health & Safety,Learning and Development,B06146,Employees                     ,Indirect Employee Expenses    ,AB56,Internal Training Costs                 ,500,24/01/2014,REV,KW TRAINING SERVICES          
64,Central Services,SupS Health & Safety,Learning and Development,B06146,Employees                     ,Indirect Employee Expenses    ,AB56,Internal Training Costs                 ,4500,02/01/2014,REV,IDEA                          
65,Central Services,SupS Health & Safety,Learning and Development,B06146,Employees                     ,Indirect Employee Expenses    ,AB57,EXTERNAL TRAINING COSTS                 ,600,14/02/2014,REV,SMP WORKPLACE COACHING & TR'NG
66,Central Services,SupS Health & Safety,Learning and Development,B06146,Employees                     ,Indirect Employee Expenses    ,AB57,EXTERNAL TRAINING COSTS                 ,750,05/03/2014,REV,PM SOCIAL CARE LTD            
67,Central Services,SupS Health & Safety,Learning and Development,B06146,Employees                     ,Indirect Employee Expenses    ,AB57,EXTERNAL TRAINING COSTS                 ,1715,07/03/2014,REV,CIPFA                         
68,Central Services,SupS Health & Safety,Learning and Development,B06146,Employees                     ,Indirect Employee Expenses    ,AB57,EXTERNAL TRAINING COSTS                 ,975,17/03/2014,REV,MEDI AID(UK) LTD              
69,Central Services,SupS Health & Safety,Learning and Development,B06146,Employees                     ,Indirect Employee Expenses    ,AB57,EXTERNAL TRAINING COSTS                 ,1715,07/03/2014,REV,CIPFA BUSINESS LTD            
70,Central Services,SupS Health & Safety,Learning and Development,B06146,Employees                     ,Indirect Employee Expenses    ,AB57,EXTERNAL TRAINING COSTS                 ,1500,31/01/2014,REV,WAVE PEOPLE CONSULTING        
71,Central Services,SupS Health & Safety,Learning and Development,B06146,Employees                     ,Indirect Employee Expenses    ,AB57,EXTERNAL TRAINING COSTS                 ,660,05/03/2014,REV,SMP WORKPLACE COACHING & TR'NG
72,Central Services,SupS Health & Safety,Learning and Development,B06146,Employees                     ,Indirect Employee Expenses    ,AB57,EXTERNAL TRAINING COSTS                 ,835,10/02/2014,REV,ACAS                          
73,Central Services,SupS Health & Safety,Learning and Development,B06146,Employees                     ,Indirect Employee Expenses    ,AB57,EXTERNAL TRAINING COSTS                 ,1206.72,11/03/2014,REV,THE PRESCRIPTION TRAINING COMP
74,Central Services,SupS Health & Safety,Learning and Development,B06146,Employees                     ,Indirect Employee Expenses    ,AB57,EXTERNAL TRAINING COSTS                 ,1715,07/03/2014,REV,CIPFA BUSINESS LTD            
75,Central Services,SupS Health & Safety,Learning and Development,B06146,Employees                     ,Indirect Employee Expenses    ,AB57,EXTERNAL TRAINING COSTS                 ,1687.5,12/03/2014,REV,OPP UNLOCKING POTENTIAL       
76,Central Services,SupS Health & Safety,Learning and Development,B06146,Employees                     ,Indirect Employee Expenses    ,AB57,EXTERNAL TRAINING COSTS                 ,720,24/03/2014,REV,PLANET TRAINING               
77,Central Services,SupS Health & Safety,Learning and Development,B06146,Employees                     ,Indirect Employee Expenses    ,AB57,EXTERNAL TRAINING COSTS                 ,550,29/01/2014,REV,THE LONDON BOROUGH OF BROMLEY 
78,Central Services,SupS Health & Safety,Learning and Development,B06146,Employees                     ,Indirect Employee Expenses    ,AB57,EXTERNAL TRAINING COSTS                 ,1042,13/03/2014,REV,THE PRESCRIPTION TRAINING COMP
79,Central Services,SupS Health & Safety,Learning and Development,B06146,Employees                     ,Indirect Employee Expenses    ,AB57,EXTERNAL TRAINING COSTS                 ,1500,16/01/2014,REV,CROFT MANAGEMENT CENTRE       
80,Central Services,SupS Health & Safety,Learning and Development,B06146,Employees                     ,Indirect Employee Expenses    ,AB57,EXTERNAL TRAINING COSTS                 ,745,07/03/2014,REV,CIPFA                         
81,Central Services,SupS Health & Safety,Learning and Development,B06146,Employees                     ,Indirect Employee Expenses    ,AB57,EXTERNAL TRAINING COSTS                 ,1000,13/02/2014,REV,SKILLSARENA CORPORATE LTD     
82,Central Services,SupS Health & Safety,Learning and Development,B06146,Employees                     ,Indirect Employee Expenses    ,AB57,EXTERNAL TRAINING COSTS                 ,1425,24/09/2013,REV,SOUTH LONDON & SOUTH WEST ASW 
83,Central Services,SupS Health & Safety,Learning and Development,B06146,Employees                     ,Indirect Employee Expenses    ,AB57,EXTERNAL TRAINING COSTS                 ,1715,07/03/2014,REV,CIPFA                         
84,Central Services,SupS Health & Safety,Learning and Development,B06146,Employees                     ,Indirect Employee Expenses    ,AB57,EXTERNAL TRAINING COSTS                 ,975,21/03/2014,REV,LONDON SCHOOL OF FIRST AID    
85,Central Services,SupS Health & Safety,Learning and Development,B06146,Employees                     ,Indirect Employee Expenses    ,AB57,EXTERNAL TRAINING COSTS                 ,12600,19/03/2014,REV,AIE LTD                       
86,Central Services,SupS Health & Safety,Learning and Development,B06146,Employees                     ,Indirect Employee Expenses    ,AB57,EXTERNAL TRAINING COSTS                 ,650,25/02/2014,REV,MEDI AID(UK) LTD              
87,Central Services,SupS Health & Safety,Learning and Development,B06146,Employees                     ,Indirect Employee Expenses    ,AB57,EXTERNAL TRAINING COSTS                 ,1147.5,14/03/2014,REV,OPP UNLOCKING POTENTIAL       
88,Central Services,SupS Health & Safety,Learning and Development,B06146,Employees                     ,Indirect Employee Expenses    ,AB57,EXTERNAL TRAINING COSTS                 ,835,25/03/2014,REV,ACAS                          
89,Central Services,SupS Health & Safety,Learning and Development,B06146,Employees                     ,Indirect Employee Expenses    ,AB57,EXTERNAL TRAINING COSTS                 ,2125,14/03/2014,REV,OPP UNLOCKING POTENTIAL       
90,Central Services,SupS Health & Safety,Learning and Development,B06146,Employees                     ,Indirect Employee Expenses    ,AB57,EXTERNAL TRAINING COSTS                 ,800,19/02/2014,REV,CROFT MANAGEMENT CENTRE       
91,Central Services,SupS Health & Safety,Learning and Development,B06146,Employees                     ,Indirect Employee Expenses    ,AB57,EXTERNAL TRAINING COSTS                 ,1715,07/03/2014,REV,CIPFA BUSINESS LTD            
92,Central Services,SupS Health & Safety,Learning and Development,B06146,Supplies & Services           ,Services                      ,DF03,Consultants                             ,4305.5,13/11/2013,REV,PEOPLE RESOLUTIONS            
93,Central Services,SupS Health & Safety,Learning and Development,B06146,Supplies & Services           ,Services                      ,DF03,Consultants                             ,900,12/03/2014,REV,FRESHWATERS CONSULTANCY LTD   
94,Central Services,SupS Health & Safety,Learning and Development,B06146,Supplies & Services           ,Services                      ,DF03,Consultants                             ,900,18/02/2014,REV,FRESHWATERS CONSULTANCY LTD   
95,Central Services,SupS Health & Safety,Strategic Personnel Management,B06151,Supplies & Services           ,Services                      ,DF03,Consultants                             ,4321.25,04/02/2014,REV,LONDON BOROUGH OF SUTTON      
96,Central Services,SupS Health & Safety,Strategic Personnel Management,B06151,Third Party Payments          ,Private Contractors           ,EH10,Contract Payments                       ,12700.34,18/03/2014,REV,LONDON BOROUGH OF SUTTON      
97,Central Services,SupS Health & Safety,Occupational Health,B06152,Third Party Payments          ,Private Contractors           ,EH10,Contract Payments                       ,36277.5,18/03/2014,REV,LONDON BOROUGH OF SUTTON      
243,,,Laptops for Other Staff                 ,CC018EB,Vehicles Plant Equipment and Machinery,,D3,Equipment                               ,1660,17/03/2014,CAP,VIGLEN LIMITED                
244,,,Laptops for Other Staff                 ,CC018EB,Vehicles Plant Equipment and Machinery,,D3,Equipment                               ,935.4,28/02/2014,CAP,SPECIALIST COMPUTER CENT. PLC 
245,,,Laptops for Other Staff                 ,CC018EB,Vehicles Plant Equipment and Machinery,,D3,Equipment                               ,1584,17/03/2014,CAP,VIGLEN LIMITED                
246,,,Merton Information Portal               ,CC018FD,Vehicles Plant Equipment and Machinery,,D5,Software                                ,88760,19/02/2014,CAP,MERTON VOLUNTARY SERV COUNCIL 
247,,,Merton Dementia Hub                     ,CC021AA,New Construction Conversion and Renovation,,B4,Contractor - Site works                 ,2230,13/03/2014,CAP,EASISIGNS                     
248,,,Merton Dementia Hub                     ,CC021AA,New Construction Conversion and Renovation,,B4,Contractor - Site works                 ,720,21/03/2014,CAP,BLAKEDOWN SPORT & PLAY LTD    
249,,,Merton Dementia Hub                     ,CC021AA,New Construction Conversion and Renovation,,B4,Contractor - Site works                 ,1191,19/03/2014,CAP,EASISIGNS                     
250,,,Merton Dementia Hub                     ,CC021AA,New Construction Conversion and Renovation,,B4,Contractor - Site works                 ,9840,21/03/2014,CAP,BLAKEDOWN SPORT & PLAY LTD    
251,,,Merton Dementia Hub                     ,CC021AA,New Construction Conversion and Renovation,,B4,Contractor - Site works                 ,2231.57,05/03/2014,CAP,NETWORK BLINDS LIMITED        
252,,,Merton Dementia Hub                     ,CC021AA,New Construction Conversion and Renovation,,B4,Contractor - Site works                 ,6216,11/03/2014,CAP,DATA TECHNIQUES               
253,,,Merton Dementia Hub                     ,CC021AA,New Construction Conversion and Renovation,,B4,Contractor - Site works                 ,750,13/03/2014,CAP,DATA TECHNIQUES               
254,,,Merton Dementia Hub                     ,CC021AA,New Construction Conversion and Renovation,,B4,Contractor - Site works                 ,7375.06,20/02/2014,CAP,MILLANE CONTRACT SERVICES LTD 
255,,,Merton Dementia Hub                     ,CC021AA,New Construction Conversion and Renovation,,B4,Contractor - Site works                 ,19997.76,20/02/2014,CAP,MILLANE CONTRACT SERVICES LTD 
256,,,Merton Dementia Hub                     ,CC021AA,New Construction Conversion and Renovation,,B4,Contractor - Site works                 ,3890,18/02/2014,CAP,SSD LIMITED                   
257,,,Merton Dementia Hub                     ,CC021AA,Vehicles Plant Equipment and Machinery,,D4,Specialist furniture                    ,45000,25/02/2014,CAP,UNIQUE OFFICE SOLUTIONS LTD   
258,,,CCTV (match funding)                    ,CE002EA,Vehicles Plant Equipment and Machinery,,D3,Equipment                               ,6656.92,27/01/2014,CAP,EUROVIA INFRASTRUCTURE LTD    
259,,,Disabled Facilities Grant DCLG          ,CE004RA,Other Capital Expenditure,,E1,Grants                                  ,1095.82,24/03/2014,CAP,CBS ADAPTATION                
260,,,Disabled Facilities Grant DCLG          ,CE004RA,Other Capital Expenditure,,E1,Grants                                  ,623.41,28/03/2014,CAP,STAYING FIRST                 
261,,,Disabled Facilities Grant DCLG          ,CE004RA,Other Capital Expenditure,,E1,Grants                                  ,3880,27/03/2014,CAP,ASCENDIT LIFTS LTD            
262,,,Disabled Facilities Grant DCLG          ,CE004RA,Other Capital Expenditure,,E1,Grants                                  ,3321,27/03/2014,CAP,ASCENDIT LIFTS LTD            
263,,,Disabled Facilities Grant DCLG          ,CE004RA,Other Capital Expenditure,,E1,Grants                                  ,2007.02,27/03/2014,CAP,CBS ADAPTATION                
264,,,Disabled Facilities Grant DCLG          ,CE004RA,Other Capital Expenditure,,E1,Grants                                  ,4728,20/03/2014,CAP,REDACTED
265,,,Disabled Facilities Grant DCLG          ,CE004RA,Other Capital Expenditure,,E1,Grants                                  ,1877.06,27/03/2014,CAP,STAYING FIRST                 
266,,,Disabled Facilities Grant DCLG          ,CE004RA,Other Capital Expenditure,,E1,Grants                                  ,14385,20/03/2014,CAP,VISTA SCAPES                  
267,,,Disabled Facilities Grant DCLG          ,CE004RA,Other Capital Expenditure,,E1,Grants                                  ,1740,03/03/2014,CAP,ASCENDIT LIFTS LTD            
268,,,Disabled Facilities Grant DCLG          ,CE004RA,Other Capital Expenditure,,E1,Grants                                  ,7239,25/03/2014,CAP,AQUANEED LIMITED              
269,,,Disabled Facilities Grant DCLG          ,CE004RA,Other Capital Expenditure,,E1,Grants                                  ,4719,24/03/2014,CAP,TLC STAIRLIFTS                
270,,,Colliers Wd- Regeneration Fund          ,CE006FB,New Construction Conversion and Renovation,,B6,Other Costs - Site works                ,131126.69,10/03/2014,CAP,TRANSPORT FOR LONDON          
271,,,Colliers Wd- Regeneration Fund          ,CE006FB,Other Capital Expenditure,,E4,TFL Other                               ,20000,10/03/2014,CAP,GORT SCOTT LTD                
272,,,Mitcham - Outer London Fund             ,CE006FC,New Construction Conversion and Renovation,,B3,Other Expenses D&S Structure            ,600,28/02/2014,CAP,STUDIO WEAVE LTD              
273,,,Mitcham - Outer London Fund             ,CE006FC,New Construction Conversion and Renovation,,B3,Other Expenses D&S Structure            ,33156.51,28/03/2014,CAP,FM CONWAY LTD                 
274,,,Mitcham - Outer London Fund             ,CE006FC,New Construction Conversion and Renovation,,B3,Other Expenses D&S Structure            ,6122.2,24/03/2014,CAP,C & S SOLAR ELECTRICAL LTD    
275,,,Mitcham - Outer London Fund             ,CE006FC,New Construction Conversion and Renovation,,B4,Contractor - Site works                 ,1468,27/03/2014,CAP,SHUTTER MEDIA LIMITED         
276,,,Mitcham - Outer London Fund             ,CE006FC,Other Capital Expenditure,,E4,TFL Other                               ,640,13/03/2014,CAP,REDACTED
277,,,Mitcham - Outer London Fund             ,CE006FC,Other Capital Expenditure,,E4,TFL Other                               ,1200,13/03/2014,CAP,REDACTED
278,,,Mitcham Major schemes                   ,CE006FD,New Construction Conversion and Renovation,,B4,Contractor - Site works                 ,21643.89,21/03/2014,CAP,LIVIS LIMITED                 
279,,,B487 Landscape Ravensbury Park          ,CE009CA,New Construction Conversion and Renovation,,B4,Contractor - Site works                 ,2320,11/03/2014,CAP,I & J BUSHELL LTD             
280,,,Play Space Pollards Hill                ,CE013EB,New Construction Conversion and Renovation,,B4,Contractor - Site works                 ,44999.78,04/03/2014,CAP,PLAYDALE PLAYGROUNDS LTD      
281,,,Parks Investment                        ,CE013SA,New Construction Conversion and Renovation,,B4,Contractor - Site works                 ,1850,16/10/2013,CAP,JUST METAL UK LTD             
282,,,Surface Water Drainage                  ,CE024FA,New Construction Conversion and Renovation,,B4,Contractor - Site works                 ,8300,28/03/2014,CAP,FM CONWAY LTD                 
283,,,Joseph Hood Playground (B524)           ,CE025CA,New Construction Conversion and Renovation,,B1,Consultants Fees D&S Structure          ,3854,30/08/2013,CAP,MARCUS BEALE ARCHITECTS       
284,,,Highways bridges & structures           ,CE025FA,New Construction Conversion and Renovation,,B1,Consultants Fees D&S Structure          ,3227.86,27/03/2014,CAP,AECOM LIMITED                 
285,,,Borough Roads Maintenance               ,CE026FA,New Construction Conversion and Renovation,,B4,Contractor - Site works                 ,46926.39,10/03/2014,CAP,FM CONWAY LTD                 
286,,,Borough Roads Maintenance               ,CE026FA,New Construction Conversion and Renovation,,B4,Contractor - Site works                 ,8000,28/03/2014,CAP,FM CONWAY LTD                 
287,,,Borough Roads Maintenance               ,CE026FA,New Construction Conversion and Renovation,,B4,Contractor - Site works                 ,103000,27/03/2014,CAP,FM CONWAY LTD                 
288,,,Borough Roads Maintenance               ,CE026FA,New Construction Conversion and Renovation,,B4,Contractor - Site works                 ,20000,10/03/2014,CAP,FM CONWAY LTD                 
289,,,Borough Roads Maintenance               ,CE026FA,New Construction Conversion and Renovation,,B4,Contractor - Site works                 ,96882.27,10/03/2014,CAP,FM CONWAY LTD                 
290,,,Borough Roads Maintenance               ,CE026FA,New Construction Conversion and Renovation,,B4,Contractor - Site works                 ,2073.61,13/03/2014,CAP,FM CONWAY LTD                 
291,,,Borough Roads Maintenance               ,CE026FA,New Construction Conversion and Renovation,,B4,Contractor - Site works                 ,144845.31,27/03/2014,CAP,FM CONWAY LTD                 
292,,,Homezones                               ,CE026FC,New Construction Conversion and Renovation,,B4,Contractor - Site works                 ,20000,14/03/2014,CAP,FM CONWAY LTD                 
293,,,Homezones                               ,CE026FC,New Construction Conversion and Renovation,,B6,Other Costs - Site works                ,563,19/02/2014,CAP,UK POWER NETWORKS (OPERATIONS)
294,,,Homezones                               ,CE026FC,New Construction Conversion and Renovation,,B6,Other Costs - Site works                ,563,19/02/2014,CAP,UK POWER NETWORKS (OPERATIONS)
295,,,Repairs to Footways                     ,CE029FA,New Construction Conversion and Renovation,,B4,Contractor - Site works                 ,70000,24/02/2014,CAP,FM CONWAY LTD                 
296,,,B569a&b Belgrave Walk fencing           ,CE029FE,New Construction Conversion and Renovation,,B4,Contractor - Site works                 ,3461.78,11/03/2014,CAP,FM CONWAY LTD                 
297,,,B569a&b Belgrave Walk fencing           ,CE029FE,New Construction Conversion and Renovation,,B4,Contractor - Site works                 ,31000,11/03/2014,CAP,FM CONWAY LTD                 
298,,,B660 West Barnes Lane Footway           ,CE029FF,New Construction Conversion and Renovation,,B6,Other Costs - Site works                ,563,10/03/2014,CAP,UK POWER NETWORKS (OPERATIONS)
299,,,B660 West Barnes Lane Footway           ,CE029FF,New Construction Conversion and Renovation,,B6,Other Costs - Site works                ,563,10/03/2014,CAP,UK POWER NETWORKS (OPERATIONS)
300,,,B497/8 Lombard Rd Improvements          ,CE034FA,New Construction Conversion and Renovation,,B3,Other Expenses D&S Structure            ,4615,07/03/2014,CAP,LITTLE OAK ENVIORNMENTAL MGMNT
301,,,Leisure Centre Plant & Machine          ,CE038MA,New Construction Conversion and Renovation,,B4,Contractor - Site works                 ,1612.8,13/02/2014,CAP,GREENWICH LEISURE LTD         
302,,,Leisure Centre Plant & Machine          ,CE038MA,New Construction Conversion and Renovation,,B4,Contractor - Site works                 ,10000,10/03/2014,CAP,SALTASH ENTERPRISES LTD       
303,,,Leisure Centre Plant & Machine          ,CE038MA,New Construction Conversion and Renovation,,B4,Contractor - Site works                 ,7186.3,10/03/2014,CAP,SALTASH ENTERPRISES LTD       
304,,,Leisure Centre Plant & Machine          ,CE038MA,New Construction Conversion and Renovation,,B4,Contractor - Site works                 ,4141.1,18/03/2014,CAP,SALTASH ENTERPRISES LTD       
305,,,Leisure Centre Plant & Machine          ,CE038MA,New Construction Conversion and Renovation,,B4,Contractor - Site works                 ,750,31/03/2014,CAP,SALTASH ENTERPRISES LTD       
306,,,Wimbledon Library Flat                  ,CE047CA,New Construction Conversion and Renovation,,B4,Contractor - Site works                 ,43396.95,24/02/2014,CAP,MOY CONSTRUCTION CO LTD       
307,,,St Marks Academy Flood Lights           ,CE056CA,New Construction Conversion and Renovation,,B4,Contractor - Site works                 ,34602.06,04/03/2014,CAP,CHRISTY LIGHTING LTD          
308,,,St Marks Academy Flood Lights           ,CE056CA,New Construction Conversion and Renovation,,B4,Contractor - Site works                 ,29064.47,04/03/2014,CAP,CHRISTY LIGHTING LTD          
309,,,Improve markings & road signs           ,CE066EA,New Construction Conversion and Renovation,,B4,Contractor - Site works                 ,31500,27/03/2014,CAP,FM CONWAY LTD                 
310,,,Improve markings & road signs           ,CE066EA,New Construction Conversion and Renovation,,B4,Contractor - Site works                 ,4591.19,27/03/2014,CAP,FM CONWAY LTD                 
311,,,Improve markings & road signs           ,CE066EA,New Construction Conversion and Renovation,,B4,Contractor - Site works                 ,1652.4,27/03/2014,CAP,FM CONWAY LTD                 
312,,,Improve markings & road signs           ,CE066EA,New Construction Conversion and Renovation,,B4,Contractor - Site works                 ,756.41,27/03/2014,CAP,FM CONWAY LTD                 
313,,,Improve markings & road signs           ,CE066EA,New Construction Conversion and Renovation,,B4,Contractor - Site works                 ,700,27/03/2014,CAP,FM CONWAY LTD                 
314,,,Improve markings & road signs           ,CE066EA,New Construction Conversion and Renovation,,B4,Contractor - Site works                 ,1466.28,27/03/2014,CAP,FM CONWAY LTD                 
315,,,Improve markings & road signs           ,CE066EA,New Construction Conversion and Renovation,,B6,Other Costs - Site works                ,563,10/03/2014,CAP,UK POWER NETWORKS (OPERATIONS)
316,,,Improve markings & road signs           ,CE066EA,New Construction Conversion and Renovation,,B6,Other Costs - Site works                ,642,12/03/2014,CAP,UK POWER NETWORKS (OPERATIONS)
317,,,Improve markings & road signs           ,CE066EA,New Construction Conversion and Renovation,,B6,Other Costs - Site works                ,563,10/03/2014,CAP,UK POWER NETWORKS (OPERATIONS)
318,,,Street Tree Programme                   ,CE067FA,New Construction Conversion and Renovation,,B4,Contractor - Site works                 ,3500,27/03/2014,CAP,FM CONWAY LTD                 
319,,,Street Tree Programme                   ,CE067FA,New Construction Conversion and Renovation,,B4,Contractor - Site works                 ,23000,27/03/2014,CAP,FM CONWAY LTD                 
320,,,Street Tree Programme                   ,CE067FA,New Construction Conversion and Renovation,,B5,Suppliers - Site works                  ,3640.5,14/01/2014,CAP,BARCHAM TREES P.L.C.          
321,,,Street Tree Programme                   ,CE067FA,New Construction Conversion and Renovation,,B5,Suppliers - Site works                  ,873,14/01/2014,CAP,BARCHAM TREES P.L.C.          
322,,,Street Lighting Replacement Pr          ,CE068FA,New Construction Conversion and Renovation,,B4,Contractor - Site works                 ,5000,25/03/2014,CAP,MAY GURNEY LTD T/A CARTLEDGE  
323,,,Street Lighting Replacement Pr          ,CE068FA,New Construction Conversion and Renovation,,B4,Contractor - Site works                 ,5818.7,26/03/2014,CAP,MAY GURNEY LTD T/A CARTLEDGE  
324,,,Street Lighting Replacement Pr          ,CE068FA,New Construction Conversion and Renovation,,B4,Contractor - Site works                 ,3303.48,06/03/2014,CAP,MAY GURNEY LTD T/A CARTLEDGE  
325,,,Street Lighting Replacement Pr          ,CE068FA,New Construction Conversion and Renovation,,B4,Contractor - Site works                 ,80000,25/03/2014,CAP,MAY GURNEY LTD T/A CARTLEDGE  
326,,,Street Lighting Replacement Pr          ,CE068FA,New Construction Conversion and Renovation,,B4,Contractor - Site works                 ,7500,26/03/2014,CAP,MAY GURNEY LTD T/A CARTLEDGE  
327,,,Street Lighting Replacement Pr          ,CE068FA,New Construction Conversion and Renovation,,B6,Other Costs - Site works                ,1284,10/03/2014,CAP,UK POWER NETWORKS (OPERATIONS)
328,,,Street Lighting Replacement Pr          ,CE068FA,New Construction Conversion and Renovation,,B6,Other Costs - Site works                ,1374,10/03/2014,CAP,UK POWER NETWORKS (OPERATIONS)
329,,,Street Lighting Replacement Pr          ,CE068FA,New Construction Conversion and Renovation,,B6,Other Costs - Site works                ,1374,05/03/2014,CAP,UK POWER NETWORKS (OPERATIONS)
330,,,Street Lighting Replacement Pr          ,CE068FA,New Construction Conversion and Renovation,,B6,Other Costs - Site works                ,687,10/03/2014,CAP,UK POWER NETWORKS (OPERATIONS)
331,,,Street Lighting Replacement Pr          ,CE068FA,New Construction Conversion and Renovation,,B6,Other Costs - Site works                ,1374,05/03/2014,CAP,UK POWER NETWORKS (OPERATIONS)
332,,,Street Lighting Replacement Pr          ,CE068FA,New Construction Conversion and Renovation,,B6,Other Costs - Site works                ,687,10/03/2014,CAP,UK POWER NETWORKS (OPERATIONS)
333,,,Area Traffic calming measures           ,CE070FA,New Construction Conversion and Renovation,,B4,Contractor - Site works                 ,26795.93,14/03/2014,CAP,FM CONWAY LTD                 
334,,,Traffic surveys & Safety Measu          ,CE075FA,New Construction Conversion and Renovation,,B4,Contractor - Site works                 ,10000,27/03/2014,CAP,FM CONWAY LTD                 
335,,,Wimbledon Area Traffic Study            ,CE077FA,New Construction Conversion and Renovation,,B4,Contractor - Site works                 ,10000,14/03/2014,CAP,FM CONWAY LTD                 
336,,,Wimbledon Area Traffic Study            ,CE077FA,New Construction Conversion and Renovation,,B6,Other Costs - Site works                ,563,05/03/2014,CAP,UK POWER NETWORKS (OPERATIONS)
337,,,Green Lane Share Path                   ,CE086CA,New Construction Conversion and Renovation,,B4,Contractor - Site works                 ,150000,27/03/2014,CAP,FM CONWAY LTD                 
338,,,Re-use/recycling Site Maintena          ,CE090SA,Vehicles Plant Equipment and Machinery,,D3,Equipment                               ,3478,26/03/2014,CAP,SMARTSTREETS                  
339,,,Kitchen Waste WRAP                      ,CE094EA,Vehicles Plant Equipment and Machinery,,D3,Equipment                               ,2911,31/03/2014,CAP,SALTASH ENTERPRISES LTD       
340,,,Kitchen Waste WRAP                      ,CE094EA,Vehicles Plant Equipment and Machinery,,D3,Equipment                               ,750,26/03/2014,CAP,SMARTSTREETS                  
341,,,Kitchen Waste WRAP                      ,CE094EA,Vehicles Plant Equipment and Machinery,,D3,Equipment                               ,3877,26/03/2014,CAP,SMARTSTREETS                  
342,,,Kitchen Waste WRAP                      ,CE094EA,Vehicles Plant Equipment and Machinery,,D3,Equipment                               ,7462,26/03/2014,CAP,SMARTSTREETS                  
343,,,Strategic corridor Mitcham              ,CE104FB,New Construction Conversion and Renovation,,B1,Consultants Fees D&S Structure          ,3400,25/03/2014,CAP,PHILIP CAVE ASSOCIATES        
344,,,Strategic corridor Mitcham              ,CE104FB,New Construction Conversion and Renovation,,B1,Consultants Fees D&S Structure          ,5045.44,28/02/2014,CAP,HYDER CONSULTING (UK) LTD     
345,,,Strategic corridor Mitcham              ,CE104FB,New Construction Conversion and Renovation,,B1,Consultants Fees D&S Structure          ,8696.56,28/02/2014,CAP,HYDER CONSULTING (UK) LTD     
346,,,Strategic corridor Mitcham              ,CE104FB,New Construction Conversion and Renovation,,B1,Consultants Fees D&S Structure          ,850,25/03/2014,CAP,PHILIP CAVE ASSOCIATES        
347,,,Strategic corridor Mitcham              ,CE104FB,New Construction Conversion and Renovation,,B1,Consultants Fees D&S Structure          ,1745,14/03/2014,CAP,WEDDERBURN TRANSPORT PLANNING 
348,,,Strategic corridor Mitcham              ,CE104FB,New Construction Conversion and Renovation,,B1,Consultants Fees D&S Structure          ,11000,25/03/2014,CAP,PHILIP CAVE ASSOCIATES        
349,,,Strategic corridor Mitcham              ,CE104FB,New Construction Conversion and Renovation,,B1,Consultants Fees D&S Structure          ,11240,25/03/2014,CAP,PHILIP CAVE ASSOCIATES        
350,,,Strategic corridor Mitcham              ,CE104FB,New Construction Conversion and Renovation,,B2,Site Surveys D&S Structure              ,950,22/02/2014,CAP,REDACTED
351,,,Strategic corridor Mitcham              ,CE104FB,New Construction Conversion and Renovation,,B2,Site Surveys D&S Structure              ,3830,28/02/2014,CAP,SUBTECHNICS LTD               
352,,,Strategic corridor Mitcham              ,CE104FB,New Construction Conversion and Renovation,,B6,Other Costs - Site works                ,6126,21/03/2014,CAP,ENVIRONMENTAL SCIENTIFICS GRP 
353,,,Strategic corridor Mitcham              ,CE104FB,Other Capital Expenditure,,E4,TFL Other                               ,1250,31/01/2014,CAP,TMS CONSULTANCY               
354,,,Kingston/Hartfield Rd StratCor          ,CE104FC,New Construction Conversion and Renovation,,B4,Contractor - Site works                 ,2640,27/09/2013,CAP,MAY GURNEY LTD T/A CARTLEDGE  
355,,,Kingston/Hartfield Rd StratCor          ,CE104FC,New Construction Conversion and Renovation,,B4,Contractor - Site works                 ,39858.81,28/03/2014,CAP,FM CONWAY LTD                 
356,,,Kingston/Hartfield Rd StratCor          ,CE104FC,New Construction Conversion and Renovation,,B4,Contractor - Site works                 ,34467.88,13/03/2014,CAP,FM CONWAY LTD                 
357,,,Kingston/Hartfield Rd StratCor          ,CE104FC,New Construction Conversion and Renovation,,B4,Contractor - Site works                 ,17444.8,27/09/2013,CAP,MAY GURNEY LTD T/A CARTLEDGE  
358,,,Kingston/Hartfield Rd StratCor          ,CE104FC,New Construction Conversion and Renovation,,B4,Contractor - Site works                 ,-2640,28/02/2014,CAP,MAY GURNEY LTD T/A CARTLEDGE  
359,,,Kingston/Hartfield Rd StratCor          ,CE104FC,New Construction Conversion and Renovation,,B4,Contractor - Site works                 ,5447.18,27/09/2013,CAP,MAY GURNEY LTD T/A CARTLEDGE  
360,,,Kingston/Hartfield Rd StratCor          ,CE104FC,New Construction Conversion and Renovation,,B4,Contractor - Site works                 ,-5447.18,04/10/2013,CAP,MAY GURNEY LTD T/A CARTLEDGE  
361,,,Kingston/Hartfield Rd StratCor          ,CE104FC,New Construction Conversion and Renovation,,B6,Other Costs - Site works                ,563,05/03/2014,CAP,UK POWER NETWORKS (OPERATIONS)
362,,,Kingston/Hartfield Rd StratCor          ,CE104FC,New Construction Conversion and Renovation,,B6,Other Costs - Site works                ,1126,05/03/2014,CAP,UK POWER NETWORKS (OPERATIONS)
363,,,Accesibility Programme                  ,CE104FD,New Construction Conversion and Renovation,,B4,Contractor - Site works                 ,2700,28/03/2014,CAP,FM CONWAY LTD                 
364,,,Accesibility Programme                  ,CE104FD,New Construction Conversion and Renovation,,B4,Contractor - Site works                 ,1600,14/03/2014,CAP,FM CONWAY LTD                 
365,,,Accesibility Programme                  ,CE104FD,New Construction Conversion and Renovation,,B4,Contractor - Site works                 ,6500,28/02/2014,CAP,MAY GURNEY LTD T/A CARTLEDGE  
366,,,Accesibility Programme                  ,CE104FD,New Construction Conversion and Renovation,,B4,Contractor - Site works                 ,4648.35,28/02/2014,CAP,MAY GURNEY LTD T/A CARTLEDGE  
367,,,Accesibility Programme                  ,CE104FD,New Construction Conversion and Renovation,,B4,Contractor - Site works                 ,911,14/03/2014,CAP,FM CONWAY LTD                 
368,,,Accesibility Programme                  ,CE104FD,New Construction Conversion and Renovation,,B4,Contractor - Site works                 ,5000,24/02/2014,CAP,FM CONWAY LTD                 
369,,,Cycle access/parking                    ,CE104FG,New Construction Conversion and Renovation,,B4,Contractor - Site works                 ,43500,28/03/2014,CAP,FM CONWAY LTD                 
370,,,Cycle access/parking                    ,CE104FG,New Construction Conversion and Renovation,,B4,Contractor - Site works                 ,15000,28/03/2014,CAP,FM CONWAY LTD                 
371,,,Morden Town Centre                      ,CE104FK,New Construction Conversion and Renovation,,B1,Consultants Fees D&S Structure          ,9820,28/02/2014,CAP,HYDER CONSULTING (UK) LTD     
372,,,Victoria Rd Bus Access Impr             ,CE104FL,New Construction Conversion and Renovation,,B4,Contractor - Site works                 ,50000,13/03/2014,CAP,FM CONWAY LTD                 
373,,,Victoria Rd Bus Access Impr             ,CE104FL,New Construction Conversion and Renovation,,B6,Other Costs - Site works                ,16137.9,21/03/2014,CAP,LONDON BUS SERVICES LIMITED   
374,,,Casualty Reduction & Schools            ,CE104RA,New Construction Conversion and Renovation,,B4,Contractor - Site works                 ,20000,20/03/2014,CAP,FM CONWAY LTD                 
375,,,Casualty Reduction & Schools            ,CE104RA,New Construction Conversion and Renovation,,B4,Contractor - Site works                 ,30000,20/03/2014,CAP,FM CONWAY LTD                 
376,,,School & Road Safety Campaigns          ,CE104RC,Other Capital Expenditure,,E4,TFL Other                               ,12127.13,06/03/2014,CAP,POLKA THEATRE FOR CHILDREN    
377,,,School & Road Safety Campaigns          ,CE104RC,Other Capital Expenditure,,E4,TFL Other                               ,14285.46,06/03/2014,CAP,POLKA THEATRE FOR CHILDREN    
378,,,Cycle Improvements                      ,CE104RM,New Construction Conversion and Renovation,,B4,Contractor - Site works                 ,3866,10/03/2014,CAP,FM CONWAY LTD                 
379,,,Cycle Improvements                      ,CE104RM,New Construction Conversion and Renovation,,B4,Contractor - Site works                 ,14088.26,10/03/2014,CAP,FM CONWAY LTD                 
380,,,Londn Rd-Morden Rd-Cricket Grn          ,CE105FM,New Construction Conversion and Renovation,,B4,Contractor - Site works                 ,144750,28/03/2014,CAP,FM CONWAY LTD                 
381,,,Haydons Road                            ,CE105FN,New Construction Conversion and Renovation,,B4,Contractor - Site works                 ,139299.39,28/03/2014,CAP,FM CONWAY LTD                 
382,,,Haydons Road                            ,CE105FN,New Construction Conversion and Renovation,,B4,Contractor - Site works                 ,116320.52,27/03/2014,CAP,FM CONWAY LTD                 
383,,,Sherwood Rec  - Play Area               ,CE110CA,New Construction Conversion and Renovation,,B4,Contractor - Site works                 ,25000,06/03/2014,CAP,TIDEY & WEBB LTD              
384,,,King George Rec Play Area               ,CE110CB,New Construction Conversion and Renovation,,B4,Contractor - Site works                 ,2484,28/01/2014,CAP,JUST METAL UK LTD             
385,,,Lewis Road Rec Alt Play Facili          ,CE110CC,New Construction Conversion and Renovation,,B4,Contractor - Site works                 ,10540,10/03/2014,CAP,REDACTED
386,,,Lewis Road Rec Alt Play Facili          ,CE110CC,New Construction Conversion and Renovation,,B4,Contractor - Site works                 ,16973,06/03/2014,CAP,TIDEY & WEBB LTD              
387,,,Lewis Road Rec Alt Play Facili          ,CE110CC,New Construction Conversion and Renovation,,B4,Contractor - Site works                 ,20000,07/03/2014,CAP,TAYLOR BUILDING COMPANY LTD   
388,,,Lewis Road Rec Alt Play Facili          ,CE110CC,New Construction Conversion and Renovation,,B4,Contractor - Site works                 ,1675,07/03/2014,CAP,TAYLOR BUILDING COMPANY LTD   
389,,,Tamworth Rec Interactive Water          ,CE110CD,New Construction Conversion and Renovation,,B4,Contractor - Site works                 ,25398,28/02/2014,CAP,USTIGATE LTD                  
390,,,Edenvale Opn Space Goal Mouth           ,CE110CE,New Construction Conversion and Renovation,,B4,Contractor - Site works                 ,5577,07/03/2014,CAP,TAYLOR BUILDING COMPANY LTD   
391,,,Sir Joseph Hood Crazy Golf              ,CE110CF,New Construction Conversion and Renovation,,B4,Contractor - Site works                 ,2484,28/01/2014,CAP,JUST METAL UK LTD             
392,,,Sir Joseph Hood Crazy Golf              ,CE110CF,New Construction Conversion and Renovation,,B4,Contractor - Site works                 ,7650,10/03/2014,CAP,REDACTED
393,,,Sir Joseph Hood Crazy Golf              ,CE110CF,Vehicles Plant Equipment and Machinery,,D5,Software                                ,2203.44,05/03/2014,CAP,URBANCRAZY                    
394,,,Mostyn Gardens Outdoor Gym              ,CE110CK,New Construction Conversion and Renovation,,B4,Contractor - Site works                 ,4641,05/03/2014,CAP,PARK LEISURE LTD              
395,,,Mostyn Gardens Outdoor Gym              ,CE110CK,New Construction Conversion and Renovation,,B4,Contractor - Site works                 ,9658,05/03/2014,CAP,PARK LEISURE LTD              
396,,,Mostyn Gardens Outdoor Gym              ,CE110CK,New Construction Conversion and Renovation,,B4,Contractor - Site works                 ,8326,05/03/2014,CAP,PARK LEISURE LTD              
397,,,Mostyn Gardens Outdoor Gym              ,CE110CK,New Construction Conversion and Renovation,,B4,Contractor - Site works                 ,9827,07/03/2014,CAP,TAYLOR BUILDING COMPANY LTD   
398,,,Bridge to Nowhere                       ,CE111FG,New Construction Conversion and Renovation,,B4,Contractor - Site works                 ,100852.04,27/03/2014,CAP,FM CONWAY LTD                 
399,,,Marathon Trust BMX Track                ,CE114SA,New Construction Conversion and Renovation,,B4,Contractor - Site works                 ,4311.25,24/03/2014,CAP,CLARK AND KENT CONTRACTORS    
400,,,Universal Cold Busters                  ,CE120RA,Other Capital Expenditure,,E1,Grants                                  ,7100.73,26/03/2014,CAP,CLIMATE ENERGY LTD            
401,,,Biking Borough Project                  ,CE128FA,New Construction Conversion and Renovation,,B4,Contractor - Site works                 ,6259,10/03/2014,CAP,FM CONWAY LTD                 
402,,,Biking Borough Programme                ,CE128RA,New Construction Conversion and Renovation,,B1,Consultants Fees D&S Structure          ,17000,25/03/2014,CAP,SUSTRANS LIMITED              
403,,,Kitchen waste container replce          ,CE133EA,Vehicles Plant Equipment and Machinery,,D3,Equipment                               ,994,31/03/2014,CAP,SALTASH ENTERPRISES LTD       
404,,,Kitchen waste container replce          ,CE133EA,Vehicles Plant Equipment and Machinery,,D3,Equipment                               ,23143,26/03/2014,CAP,SMARTSTREETS                  
405,,,Wimb Park Hall                          ,CE146BA,New Construction Conversion and Renovation,,B3,Other Expenses D&S Structure            ,646.4,17/03/2014,CAP,WIMBLEDON PARK COMMUNITY TRUST
406,,,Wimb Park Hall                          ,CE146BA,New Construction Conversion and Renovation,,B4,Contractor - Site works                 ,750.58,10/03/2014,CAP,GOPAK LTD                     
407,,,Civic Centre refurbishment              ,CF001AB,New Construction Conversion and Renovation,,B2,Site Surveys D&S Structure              ,580,28/02/2014,CAP,LUCION ENVIRONMENTAL LTD      
408,,,Civic Centre refurbishment              ,CF001AB,Vehicles Plant Equipment and Machinery,,D4,Specialist furniture                    ,1053.34,20/03/2014,CAP,UNIQUE OFFICE SOLUTIONS LTD   
409,,,Civic Centre Windows                    ,CF001AK,New Construction Conversion and Renovation,,B4,Contractor - Site works                 ,1368,31/12/2013,CAP,EDE'S (U.K.) LTD              
410,,,Civic Centre Windows                    ,CF001AK,New Construction Conversion and Renovation,,B4,Contractor - Site works                 ,3306,31/01/2014,CAP,EDE'S (U.K.) LTD              
411,,,Civic Centre Windows                    ,CF001AK,New Construction Conversion and Renovation,,B4,Contractor - Site works                 ,1111.5,31/12/2013,CAP,EDE'S (U.K.) LTD              
412,,,Civic Centre Windows                    ,CF001AK,New Construction Conversion and Renovation,,B4,Contractor - Site works                 ,2126.27,28/02/2014,CAP,NETWORK BLINDS LIMITED        
413,,,Civic Centre Windows                    ,CF001AK,New Construction Conversion and Renovation,,B4,Contractor - Site works                 ,203106.2,28/02/2014,CAP,HAZLEMERE WINDOW CO LIMITED   
414,,,Civic Centre Windows                    ,CF001AK,New Construction Conversion and Renovation,,B4,Contractor - Site works                 ,46333.2,31/03/2014,CAP,HAZLEMERE WINDOW CO LIMITED   
415,,,Civic Centre Windows                    ,CF001AK,New Construction Conversion and Renovation,,B4,Contractor - Site works                 ,3658,28/02/2014,CAP,EDE'S (U.K.) LTD              
416,,,Energy Utility Invest to Save           ,CF002SA,New Construction Conversion and Renovation,,B4,Contractor - Site works                 ,11500,25/03/2014,CAP,MAY GURNEY LTD T/A CARTLEDGE  
417,,,Repair and Maintenance                  ,CF004SA,New Construction Conversion and Renovation,,B4,Contractor - Site works                 ,9000,03/03/2014,CAP,SALTASH ENTERPRISES LTD       
418,,,Repair and Maintenance                  ,CF004SA,New Construction Conversion and Renovation,,B4,Contractor - Site works                 ,35000,03/03/2014,CAP,SALTASH ENTERPRISES LTD       
419,,,Repair and Maintenance                  ,CF004SA,New Construction Conversion and Renovation,,B4,Contractor - Site works                 ,1947.6,24/02/2014,CAP,ACCESS ASSURED                
420,,,Repair and Maintenance                  ,CF004SA,New Construction Conversion and Renovation,,B4,Contractor - Site works                 ,48224.5,27/03/2014,CAP,SALTASH ENTERPRISES LTD       
421,,,Repair and Maintenance                  ,CF004SA,New Construction Conversion and Renovation,,B4,Contractor - Site works                 ,814,30/10/2013,CAP,ACCESS ASSURED                
422,,,Repair and Maintenance                  ,CF004SA,New Construction Conversion and Renovation,,B4,Contractor - Site works                 ,-814,30/10/2013,CAP,ACCESS ASSURED                
423,,,Repair and Maintenance                  ,CF004SA,New Construction Conversion and Renovation,,B4,Contractor - Site works                 ,1391,28/03/2014,CAP,ACCESS ASSURED                
424,,,Repair and Maintenance                  ,CF004SA,New Construction Conversion and Renovation,,B4,Contractor - Site works                 ,-749,30/10/2013,CAP,ACCESS ASSURED                
425,,,Repair and Maintenance                  ,CF004SA,New Construction Conversion and Renovation,,B4,Contractor - Site works                 ,31768,12/03/2014,CAP,SALTASH ENTERPRISES LTD       
426,,,Repair and Maintenance                  ,CF004SA,New Construction Conversion and Renovation,,B6,Other Costs - Site works                ,1950,27/03/2014,CAP,R.J.H.WELDING                 
427,,,Pollards Hill RG- Access Works          ,CF008CA,New Construction Conversion and Renovation,,B4,Contractor - Site works                 ,40000,05/03/2014,CAP,REDDINGTON & SONS             
428,,,Gifford House Minor Refurb              ,CF058AC,New Construction Conversion and Renovation,,B4,Contractor - Site works                 ,22966.42,26/02/2014,CAP,WOODLAND COMMERCIAL LTD       
429,,,Gifford House Minor Refurb              ,CF058AC,New Construction Conversion and Renovation,,B4,Contractor - Site works                 ,9500,27/03/2014,CAP,FM CONWAY LTD                 
430,,,St Mary's expansion                     ,CS008RA,New Construction Conversion and Renovation,,B1,Consultants Fees D&S Structure          ,4272,11/03/2014,CAP,NPS PROPERTY CONSULTANTS LTD  
431,,,St Mary's expansion                     ,CS008RA,New Construction Conversion and Renovation,,B2,Site Surveys D&S Structure              ,1450,30/04/2013,CAP,REDHILL ANALYSTS LTD          
432,,,St Mary's expansion                     ,CS008RA,New Construction Conversion and Renovation,,B4,Contractor - Site works                 ,7088.78,25/03/2014,CAP,R DURTNELL & SONS LTD         
433,,,St Mary's expansion                     ,CS008RA,New Construction Conversion and Renovation,,B4,Contractor - Site works                 ,1181.73,25/03/2014,CAP,R DURTNELL & SONS LTD         
434,,,St Mary's expansion                     ,CS008RA,New Construction Conversion and Renovation,,B4,Contractor - Site works                 ,2162.35,25/03/2014,CAP,R DURTNELL & SONS LTD         
435,,,St Mary's expansion                     ,CS008RA,New Construction Conversion and Renovation,,B4,Contractor - Site works                 ,65125,10/03/2014,CAP,MANSELL CONSTRUCTION SERVICES 
436,,,Cranmer expansion                       ,CS010AA,New Construction Conversion and Renovation,,B1,Consultants Fees D&S Structure          ,2593.25,26/02/2014,CAP,ATKINS LIMITED                
437,,,Cranmer expansion                       ,CS010AA,New Construction Conversion and Renovation,,B1,Consultants Fees D&S Structure          ,12786.16,26/02/2014,CAP,ATKINS LIMITED                
438,,,Cranmer expansion                       ,CS010AA,New Construction Conversion and Renovation,,B4,Contractor - Site works                 ,279320,03/03/2014,CAP,WILLMOTT DIXON CONSTRUCT'N LTD
439,,,Joseph Hood Permanent Expansn           ,CS012AA,New Construction Conversion and Renovation,,B4,Contractor - Site works                 ,18500,07/03/2014,CAP,GEE CONSTRUCTION LTD          
440,,,Joseph Hood Permanent Expansn           ,CS012AA,New Construction Conversion and Renovation,,B4,Contractor - Site works                 ,17880.84,24/03/2014,CAP,SALTASH ENTERPRISES LTD       
441,,,Gorringe Park expansion                 ,CS018AB,New Construction Conversion and Renovation,,B1,Consultants Fees D&S Structure          ,7794,14/03/2014,CAP,HAVERSTOCK ASSOCIATES LLP     
442,,,Gorringe Park expansion                 ,CS018AB,New Construction Conversion and Renovation,,B1,Consultants Fees D&S Structure          ,9618,14/03/2014,CAP,HAVERSTOCK ASSOCIATES LLP     
443,,,Hillcross School Expansion              ,CS020AC,New Construction Conversion and Renovation,,B1,Consultants Fees D&S Structure          ,17220,12/03/2014,CAP,CURL LA TOURELLE ARCHITECTS   
444,,,Hillcross School Expansion              ,CS020AC,New Construction Conversion and Renovation,,B1,Consultants Fees D&S Structure          ,4770,28/02/2014,CAP,METHOD CONSULTING LLP         
445,,,Hillcross School Expansion              ,CS020AC,New Construction Conversion and Renovation,,B1,Consultants Fees D&S Structure          ,1925,28/02/2014,CAP,STACE LLP                     
446,,,Hillcross School Expansion              ,CS020AC,New Construction Conversion and Renovation,,B4,Contractor - Site works                 ,72082.11,03/03/2014,CAP,MANSELL CONSTRUCTION SERVICES 
447,,,Merton Abbey Temp Accomodation          ,CS022AC,New Construction Conversion and Renovation,,B1,Consultants Fees D&S Structure          ,14679.94,28/02/2014,CAP,PELLINGS LLP                  
448,,,Merton Abbey Temp Accomodation          ,CS022AC,New Construction Conversion and Renovation,,B2,Site Surveys D&S Structure              ,1332.5,28/02/2014,CAP,KEEGANS LIMITED               
449,,,Merton Abbey Temp Accomodation          ,CS022AC,New Construction Conversion and Renovation,,B4,Contractor - Site works                 ,126785.97,17/03/2014,CAP,MANSELL CONSTRUCTION SERVICES 
450,,,Pelham School Expansion                 ,CS023AC,New Construction Conversion and Renovation,,B1,Consultants Fees D&S Structure          ,2820,28/02/2014,CAP,STACE LLP                     
451,,,Dundonald expansion                     ,CS031AC,New Construction Conversion and Renovation,,B1,Consultants Fees D&S Structure          ,2520,24/03/2014,CAP,AREA LANDSCAPE ARCHITECTS     
452,,,Dundonald expansion                     ,CS031AC,New Construction Conversion and Renovation,,B1,Consultants Fees D&S Structure          ,700,28/02/2014,CAP,EIGHT ASSOCIATES              
453,,,Dundonald expansion                     ,CS031AC,New Construction Conversion and Renovation,,B1,Consultants Fees D&S Structure          ,2868.75,28/02/2014,CAP,SYNERGY CPC LLP               
454,,,Dundonald expansion                     ,CS031AC,New Construction Conversion and Renovation,,B1,Consultants Fees D&S Structure          ,26587,24/03/2014,CAP,HAVERSTOCK ASSOCIATES LLP     
455,,,Dundonald expansion                     ,CS031AC,New Construction Conversion and Renovation,,B2,Site Surveys D&S Structure              ,1050,14/03/2014,CAP,NOISE.CO.UK                   
456,,,Dundonald expansion                     ,CS031AC,New Construction Conversion and Renovation,,B2,Site Surveys D&S Structure              ,3557.9,21/03/2014,CAP,JMP CONSULTANTS LTD           
457,,,Dundonald expansion                     ,CS031AC,New Construction Conversion and Renovation,,B2,Site Surveys D&S Structure              ,1187,27/03/2014,CAP,MOUCHEL LTD                   
458,,,Poplar Permanent Expansion              ,CS034AB,New Construction Conversion and Renovation,,B1,Consultants Fees D&S Structure          ,3312.12,28/02/2014,CAP,PELLINGS LLP                  
459,,,Poplar Permanent Expansion              ,CS034AB,New Construction Conversion and Renovation,,B2,Site Surveys D&S Structure              ,1234.37,28/02/2014,CAP,KEEGANS LIMITED               
460,,,Poplar Permanent Expansion              ,CS034AB,New Construction Conversion and Renovation,,B4,Contractor - Site works                 ,196616.6,21/02/2014,CAP,MANSELL CONSTRUCTION SERVICES 
461,,,Singlegate expansion                    ,CS049AA,New Construction Conversion and Renovation,,B6,Other Costs - Site works                ,928,04/03/2014,CAP,PUMP SERVICES CAMBERLEY LTD   
462,,,Wimbledon Park expansion                ,CS050AA,New Construction Conversion and Renovation,,B1,Consultants Fees D&S Structure          ,1068,28/02/2014,CAP,SYNERGY CPC LLP               
463,,,Wimbledon Park expansion                ,CS050AA,New Construction Conversion and Renovation,,B4,Contractor - Site works                 ,107618.97,21/02/2014,CAP,GEE CONSTRUCTION LTD          
464,,,Wimbledon Park expansion                ,CS050AA,New Construction Conversion and Renovation,,B4,Contractor - Site works                 ,40000,10/03/2014,CAP,MANSELL CONSTRUCTION SERVICES 
465,,,Wimbledon Park expansion                ,CS050AA,New Construction Conversion and Renovation,,B6,Other Costs - Site works                ,16176.72,20/03/2014,CAP,GODDARDS LANDSCAPE CONTRACTORS
466,,,Wimbledon Park expansion                ,CS050AA,Vehicles Plant Equipment and Machinery,,D3,Equipment                               ,1160,25/02/2014,CAP,DF20 LTD                      
467,,,Schools Access Initiative Inc           ,CS050SA,New Construction Conversion and Renovation,,B1,Consultants Fees D&S Structure          ,4875,28/02/2014,CAP,NPS PROPERTY CONSULTANTS LTD  
468,,,Schools Access Initiative Inc           ,CS050SA,New Construction Conversion and Renovation,,B4,Contractor - Site works                 ,7927.47,25/03/2014,CAP,SALTASH ENTERPRISES LTD       
469,,,Schools Access Initiative Inc           ,CS050SA,New Construction Conversion and Renovation,,B4,Contractor - Site works                 ,8000,25/03/2014,CAP,SALTASH ENTERPRISES LTD       
470,,,Breaks-disabled children grant          ,CS085RA,New Construction Conversion and Renovation,,B4,Contractor - Site works                 ,6050.44,21/03/2014,CAP,STP SOLUTIONS                 
471,,,Lonesome - Main Heating                 ,CS091AD,New Construction Conversion and Renovation,,B4,Contractor - Site works                 ,11399.61,26/03/2014,CAP,T BROWN LTD                   
472,,,The Sherwood-Boiler&Perim Fnc           ,CS091AF,New Construction Conversion and Renovation,,B4,Contractor - Site works                 ,815.95,20/09/2013,CAP,TONBRIDGE FENCING LTD         
473,,,The Sherwood-Boiler&Perim Fnc           ,CS091AF,New Construction Conversion and Renovation,,B4,Contractor - Site works                 ,743.9,20/09/2013,CAP,TONBRIDGE FENCING LTD         
474,,,The Sherwood-Boiler&Perim Fnc           ,CS091AF,New Construction Conversion and Renovation,,B4,Contractor - Site works                 ,2916.23,26/03/2014,CAP,T BROWN LTD                   
475,,,West Wim-Boiler&Perim Fnc               ,CS091AG,New Construction Conversion and Renovation,,B4,Contractor - Site works                 ,976.5,20/09/2013,CAP,TONBRIDGE FENCING LTD         
476,,,Connect to N3 Netwrk NHS Spine          ,CT001EA,Vehicles Plant Equipment and Machinery,,D3,Equipment                               ,770.4,10/02/2014,CAP,MILLGATE COMPUTER SYSTEMS LTD 
477,,,IT Equipment                            ,CT006EA,Vehicles Plant Equipment and Machinery,,D3,Equipment                               ,750,21/03/2014,CAP,SCALABLE COMMUNICATIONS PLC   
478,,,IT Equipment                            ,CT006EA,Vehicles Plant Equipment and Machinery,,D3,Equipment                               ,37146,26/02/2014,CAP,COMPUTERLAND                  
479,,,IT Equipment                            ,CT006EA,Vehicles Plant Equipment and Machinery,,D3,Equipment                               ,-2146,26/02/2014,CAP,COMPUTERLAND                  
480,,,IT Equipment                            ,CT006EA,Vehicles Plant Equipment and Machinery,,D3,Equipment                               ,1900,26/02/2014,CAP,COMPUTERLAND                  
481,,,IT Equipment                            ,CT006EA,Vehicles Plant Equipment and Machinery,,D3,Equipment                               ,37336.8,28/02/2014,CAP,SPECIALIST COMPUTER CENT. PLC 
482,,,IT Equipment                            ,CT006EA,Vehicles Plant Equipment and Machinery,,D3,Equipment                               ,1593.47,18/12/2013,CAP,CISILION LTD                  
483,,,IT Equipment                            ,CT006EA,Vehicles Plant Equipment and Machinery,,D3,Equipment                               ,3600,21/02/2014,CAP,VIGLEN LIMITED                
484,,,IT Equipment                            ,CT006EA,Vehicles Plant Equipment and Machinery,,D3,Equipment                               ,1036.8,28/02/2014,CAP,SPECIALIST COMPUTER CENT. PLC 
485,,,IT Equipment                            ,CT006EA,Vehicles Plant Equipment and Machinery,,D5,Software                                ,6974.3,15/01/2014,CAP,NEC (UK) LTD                  
486,,,IT Equipment                            ,CT006EA,Vehicles Plant Equipment and Machinery,,D5,Software                                ,20169.59,19/08/2013,CAP,NEC (UK) LTD                  
487,,,IT Equipment                            ,CT006EA,Other Capital Expenditure,,E3,Miscellaneous Capital Expendit          ,3000,28/02/2014,CAP,OLM SYSTEMS                   
488,,,IT Equipment                            ,CT006EA,Other Capital Expenditure,,E3,Miscellaneous Capital Expendit          ,5000,31/01/2014,CAP,SPECIALIST COMPUTER CENT. PLC 
489,,,IT Equipment                            ,CT006EA,Other Capital Expenditure,,E3,Miscellaneous Capital Expendit          ,1610.4,31/01/2014,CAP,SPECIALIST COMPUTER CENT. PLC 
490,,,IT Equipment                            ,CT006EA,Other Capital Expenditure,,E3,Miscellaneous Capital Expendit          ,950,28/02/2014,CAP,CISILION LTD                  
491,,,IT Equipment                            ,CT006EA,Other Capital Expenditure,,E3,Miscellaneous Capital Expendit          ,1000,27/02/2014,CAP,SPECIALIST COMPUTER CENT. PLC 
492,,,IT Strategy - unallocated               ,CT007EW,Vehicles Plant Equipment and Machinery,,D3,Equipment                               ,2980,12/03/2014,CAP,TOTAL COMPUTER NETWORKS       
493,,,IT Strategy - unallocated               ,CT007EW,Vehicles Plant Equipment and Machinery,,D3,Equipment                               ,691.6,11/03/2014,CAP,MISCO                         
494,,,IT Strategy - unallocated               ,CT007EW,Vehicles Plant Equipment and Machinery,,D3,Equipment                               ,536.6,12/03/2014,CAP,MISCO                         
495,Central Services,Council tax collection,Local Taxation Services,E02100,Supplies & Services           ,Services                      ,DF11,Counsel's Fees                          ,693,26/03/2014,REV,HL SOLICITORS                 
496,Central Services,Council tax collection,Local Taxation Services,E02100,Supplies & Services           ,Services                      ,DF11,Counsel's Fees                          ,540,26/01/2014,REV,HL SOLICITORS                 
497,Central Services,Council tax collection,Local Taxation Services,E02100,Supplies & Services           ,Services                      ,DF11,Counsel's Fees                          ,540,26/02/2014,REV,HL SOLICITORS                 
498,Central Services,Council tax collection,Local Taxation Services,E02100,Supplies & Services           ,Comms and Computing           ,DG09,Computer Purchases - Misc               ,3097.5,20/03/2014,REV,MAG:NET SOLUTIONS             
499,Central Services,Council tax collection,Local Taxation Services,E02100,Supplies & Services           ,Comms and Computing           ,DG09,Computer Purchases - Misc               ,800,27/02/2014,REV,ONESTEP SOLUTIONS PLC         
500,Central Services,Council tax collection,Local Taxation Services,E02100,Supplies & Services           ,Comms and Computing           ,DG09,Computer Purchases - Misc               ,837.01,14/02/2014,REV,CIVICA UK LIMITED             
501,Central Services,Council tax collection,Local Taxation Services,E02100,Supplies & Services           ,Comms and Computing           ,DG09,Computer Purchases - Misc               ,7500,16/01/2014,REV,INFORM CPI LTD                
502,Central Services,Council tax collection,Local Taxation Services,E02100,Supplies & Services           ,Comms and Computing           ,DG09,Computer Purchases - Misc               ,725,06/01/2014,REV,MAG:NET SOLUTIONS             
503,Central Services,Council tax collection,Local Taxation Services,E02100,Supplies & Services           ,Comms and Computing           ,DG09,Computer Purchases - Misc               ,795,26/03/2014,REV,VISIONAID TECHNOLOGIES LTD    
504,Central Services,Council tax collection,Local Taxation Services,E02100,Third Party Payments          ,Private Contractors           ,EH01,Miscellaneous Agency Services           ,797.62,01/07/2013,REV,COMMERCIAL COLLECTION SERVICES
505,Central Services,Council tax collection,Local Taxation Services,E02100,Third Party Payments          ,Private Contractors           ,EH01,Miscellaneous Agency Services           ,762.77,01/02/2014,REV,COMMERCIAL COLLECTION SERVICES
506,Central Services,Council tax collection,Local Taxation Services,E02100,Third Party Payments          ,Private Contractors           ,EH01,Miscellaneous Agency Services           ,786.09,02/09/2013,REV,COMMERCIAL COLLECTION SERVICES
507,Central Services,Council tax collection,Local Taxation Services,E02100,Third Party Payments          ,Private Contractors           ,EH01,Miscellaneous Agency Services           ,654.81,02/01/2014,REV,COMMERCIAL COLLECTION SERVICES
508,Central Services,Council tax collection,Local Taxation Services,E02100,Third Party Payments          ,Private Contractors           ,EH01,Miscellaneous Agency Services           ,656.12,01/12/2013,REV,COMMERCIAL COLLECTION SERVICES
509,Central Services,Council tax collection,Local Taxation Services,E02100,Third Party Payments          ,Private Contractors           ,EH01,Miscellaneous Agency Services           ,655.33,01/10/2013,REV,COMMERCIAL COLLECTION SERVICES
510,Central Services,Council tax collection,Local Taxation Bailiffs,E02101,Supplies & Services           ,Services                      ,DF18,Bailiffs' fees                          ,520.05,28/02/2014,REV,HPI LIMITED                   
511,Central Services,Council tax collection,Local Taxation Bailiffs,E02101,Supplies & Services           ,Services                      ,DF18,Bailiffs' fees                          ,614.53,06/03/2014,REV,GREASBY'S AUCTION ROOMS       
512,Central Services,Council tax collection,Local Taxation Bailiffs,E02101,Supplies & Services           ,Services                      ,DF18,Bailiffs' fees                          ,720,24/02/2014,REV,GREASBY'S AUCTION ROOMS       
513,Central Services,Council tax collection,Local Taxation Bailiffs,E02101,Supplies & Services           ,Services                      ,DF18,Bailiffs' fees                          ,768.75,19/03/2014,REV,GREASBY'S AUCTION ROOMS       
514,Central Services,Council tax collection,Local Taxation Bailiffs,E02101,Supplies & Services           ,Services                      ,DF18,Bailiffs' fees                          ,655,24/02/2014,REV,GREASBY'S AUCTION ROOMS       
515,Central Services,Council tax collection,Local Taxation Bailiffs,E02101,Supplies & Services           ,Services                      ,DF18,Bailiffs' fees                          ,572.5,24/03/2014,REV,GREASBY'S AUCTION ROOMS       
516,Central Services,Council tax collection,Local Taxation Bailiffs,E02101,Supplies & Services           ,Services                      ,DF18,Bailiffs' fees                          ,2013.73,25/03/2014,REV,GREASBY'S AUCTION ROOMS       
517,Central Services,Council tax collection,Local Taxation Bailiffs,E02101,Supplies & Services           ,Comms and Computing           ,DG09,Computer Purchases - Misc               ,1300,06/03/2014,REV,CLEARTONE TELECOMS LTD        
518,Central Services,Council tax collection,Local Taxation Bailiffs,E02101,Supplies & Services           ,Comms and Computing           ,DG09,Computer Purchases - Misc               ,750,06/03/2014,REV,CLEARTONE TELECOMS LTD        
519,Central Services,Council tax collection,Local Taxation Bailiffs,E02101,Supplies & Services           ,Comms and Computing           ,DG09,Computer Purchases - Misc               ,4865,06/03/2014,REV,CLEARTONE TELECOMS LTD        
520,Central Services,Council tax collection,Local Taxation Bailiffs,E02101,Supplies & Services           ,Comms and Computing           ,DG09,Computer Purchases - Misc               ,1995,06/03/2014,REV,CLEARTONE TELECOMS LTD        
521,Central Services,Council tax collection,Sutton Shared Bailiffs Service          ,E02102,Third Party Payments          ,Other Local Authorities       ,EB01,Payments to OLAs                        ,11833.95,18/03/2014,REV,LONDON BOROUGH OF SUTTON      
522,Central Services,Council tax collection,Sutton Shared Bailiffs Service          ,E02102,Third Party Payments          ,Other Local Authorities       ,EB01,Payments to OLAs                        ,9529,18/03/2014,REV,LONDON BOROUGH OF SUTTON      
523,Housing Services,HB Administration,Benefits Administration,E02120,Supplies & Services           ,Comms and Computing           ,DG09,Computer Purchases - Misc               ,1905.9,14/02/2014,REV,CIVICA UK LIMITED             
524,Housing Services,HB Administration,Benefits Administration,E02120,Supplies & Services           ,Comms and Computing           ,DG09,Computer Purchases - Misc               ,1084.61,21/11/2013,REV,CIVICA UK LIMITED             
525,Housing Services,HB Administration,Local Welfare Support,E02123,Transfer Payments             ,Housing Benefits              ,FA95,Other Payments                          ,10000,18/03/2014,REV,WIMBLEDON FOODBANK            
526,Housing Services,HB Administration,Local Welfare Support,E02123,Transfer Payments             ,Housing Benefits              ,FA95,Other Payments                          ,20000,13/03/2014,REV,CENTRAL PROCESSING UNIT       
527,Central Services,SupS Corporate Finance,TRANSACTIONS,E02139,Supplies & Services           ,Comms and Computing           ,DG50,Other IT Expenditure                    ,11942.46,15/10/2013,REV,LONDON BOROUGH OF SUTTON      
528,Central Services,SupS Payroll,Payroll,E02140,Third Party Payments          ,Private Contractors           ,EH10,Contract Payments                       ,18509.41,12/03/2014,REV,LONDON BOROUGH OF SUTTON      
529,Central Services,SupS Payroll,Payroll,E02140,Third Party Payments          ,Private Contractors           ,EH10,Contract Payments                       ,5661.22,05/03/2014,REV,LONDON BOROUGH OF SUTTON      
530,Central Services,SupS Pensions,Pensions,E02160,Third Party Payments          ,Other Local Authorities       ,EB01,Payments to OLAs                        ,74697.67,28/03/2014,REV,WANDSWORTH BOROUGH COUNCIL    
531,Central Services,SupS DOF,AD Customer Services,E02180,Supplies & Services           ,Services                      ,DF09,Miscellaneous Fees                      ,1980,22/02/2014,REV,CIPFA BUSINESS LTD            
532,Central Services,SupS Facilities,Post Room,E02220,Supplies & Services           ,Equip Furniture/Materials     ,DA01,Equipment - R & M                       ,3367.87,17/03/2014,REV,PITNEY BOWES LTD              
533,Central Services,SupS Facilities,Security Services,E02221,Employees                     ,Direct Employee Expenses      ,AA17,Agency Staff & Casual Paymts            ,2112.55,01/03/2014,REV,REDACTED
534,Central Services,SupS Facilities,Security Services,E02221,Employees                     ,Direct Employee Expenses      ,AA17,Agency Staff & Casual Paymts            ,1427.4,01/03/2014,REV,REDACTED
535,Central Services,SupS Facilities,Security Services,E02221,Employees                     ,Direct Employee Expenses      ,AA17,Agency Staff & Casual Paymts            ,2714.4,01/03/2014,REV,REDACTED
536,Central Services,SupS Facilities,Civic Centre,E02222,Premises Related Expenditure  ,RepairsAlterations&MtceOfBldgs,BA02,Energy Conservation                     ,48000,27/02/2014,REV,MITIE TECHNICAL FACILITIES MGT
537,Central Services,SupS Facilities,Civic Centre,E02222,Premises Related Expenditure  ,RepairsAlterations&MtceOfBldgs,BA02,Energy Conservation                     ,61506.14,27/03/2014,REV,REDACTED
538,Central Services,SupS Facilities,Civic Centre,E02222,Premises Related Expenditure  ,RepairsAlterations&MtceOfBldgs,BA29,BUILD MAINT MGT FEES                    ,1275,28/03/2014,REV,SALTASH ENTERPRISES LTD       
539,Central Services,SupS Facilities,Civic Centre,E02222,Premises Related Expenditure  ,RepairsAlterations&MtceOfBldgs,BA29,BUILD MAINT MGT FEES                    ,2730,20/03/2014,REV,R.J.H.WELDING                 
540,Central Services,SupS Facilities,Civic Centre,E02222,Premises Related Expenditure  ,RepairsAlterations&MtceOfBldgs,BA29,BUILD MAINT MGT FEES                    ,17000,28/03/2014,REV,SALTASH ENTERPRISES LTD       
541,Central Services,SupS Facilities,Civic Centre,E02222,Premises Related Expenditure  ,RepairsAlterations&MtceOfBldgs,BA29,BUILD MAINT MGT FEES                    ,40000,28/02/2014,REV,SALTASH ENTERPRISES LTD       
542,Central Services,SupS Facilities,Civic Centre,E02222,Premises Related Expenditure  ,RepairsAlterations&MtceOfBldgs,BA29,BUILD MAINT MGT FEES                    ,663.3,27/02/2014,REV,UNIQUE OFFICE SOLUTIONS LTD   
543,Central Services,SupS Facilities,Civic Centre,E02222,Premises Related Expenditure  ,RepairsAlterations&MtceOfBldgs,BA29,BUILD MAINT MGT FEES                    ,4800,28/02/2014,REV,FORBO FLOORING UK LTD         
544,Central Services,SupS Facilities,Civic Centre,E02222,Premises Related Expenditure  ,RepairsAlterations&MtceOfBldgs,BA29,BUILD MAINT MGT FEES                    ,3495.2,28/03/2014,REV,SALTASH ENTERPRISES LTD       
545,Central Services,SupS Facilities,Civic Centre,E02222,Premises Related Expenditure  ,RepairsAlterations&MtceOfBldgs,BA29,BUILD MAINT MGT FEES                    ,40000,26/03/2014,REV,SALTASH ENTERPRISES LTD       
546,Central Services,SupS Facilities,Civic Centre,E02222,Premises Related Expenditure  ,RepairsAlterations&MtceOfBldgs,BA29,BUILD MAINT MGT FEES                    ,1148.4,27/02/2014,REV,UNIQUE OFFICE SOLUTIONS LTD   
547,Central Services,SupS Facilities,Civic Centre,E02222,Premises Related Expenditure  ,RepairsAlterations&MtceOfBldgs,BA29,BUILD MAINT MGT FEES                    ,15000,28/03/2014,REV,SALTASH ENTERPRISES LTD       
548,Central Services,SupS Facilities,Civic Centre,E02222,Premises Related Expenditure  ,Cleaning and Domestic Supplies,BH01,Cleaning Materials                      ,504,20/03/2014,REV,GREENHAM TRADING LTD          
549,Central Services,SupS Facilities,Civic Centre,E02222,Premises Related Expenditure  ,Cleaning and Domestic Supplies,BH01,Cleaning Materials                      ,504,07/03/2014,REV,GREENHAM TRADING LTD          
550,Central Services,SupS Facilities,Civic Centre,E02222,Premises Related Expenditure  ,Cleaning and Domestic Supplies,BH03,Cleaning Services                       ,819.47,12/03/2014,REV,BIRKIN CLEANING SERVICES LTD  
551,Central Services,SupS Facilities,Civic Centre,E02222,Premises Related Expenditure  ,Cleaning and Domestic Supplies,BH03,Cleaning Services                       ,1511.31,01/03/2014,REV,BIRKIN CLEANING SERVICES LTD  
552,Central Services,SupS Facilities,Civic Centre,E02222,Premises Related Expenditure  ,Cleaning and Domestic Supplies,BH03,Cleaning Services                       ,3035.93,01/03/2014,REV,BIRKIN CLEANING SERVICES LTD  
553,Central Services,SupS Facilities,Civic Centre,E02222,Premises Related Expenditure  ,Cleaning and Domestic Supplies,BH03,Cleaning Services                       ,1464.69,12/03/2014,REV,BIRKIN CLEANING SERVICES LTD  
554,Central Services,SupS Facilities,Civic Centre,E02222,Premises Related Expenditure  ,Cleaning and Domestic Supplies,BH03,Cleaning Services                       ,1215.98,12/03/2014,REV,BIRKIN CLEANING SERVICES LTD  
555,Central Services,SupS Facilities,Civic Centre,E02222,Premises Related Expenditure  ,Cleaning and Domestic Supplies,BH03,Cleaning Services                       ,1395.29,12/03/2014,REV,BIRKIN CLEANING SERVICES LTD  
556,Central Services,SupS Facilities,Civic Centre,E02222,Premises Related Expenditure  ,Cleaning and Domestic Supplies,BH03,Cleaning Services                       ,1511.31,12/03/2014,REV,BIRKIN CLEANING SERVICES LTD  
557,Central Services,SupS Facilities,Civic Centre,E02222,Premises Related Expenditure  ,Cleaning and Domestic Supplies,BH03,Cleaning Services                       ,6473.18,12/03/2014,REV,BIRKIN CLEANING SERVICES LTD  
558,Central Services,SupS Facilities,Civic Centre,E02222,Premises Related Expenditure  ,Cleaning and Domestic Supplies,BH03,Cleaning Services                       ,1464.69,01/03/2014,REV,BIRKIN CLEANING SERVICES LTD  
559,Central Services,SupS Facilities,Civic Centre,E02222,Premises Related Expenditure  ,Cleaning and Domestic Supplies,BH03,Cleaning Services                       ,3035.93,12/03/2014,REV,BIRKIN CLEANING SERVICES LTD  
560,Central Services,SupS Facilities,Civic Centre,E02222,Premises Related Expenditure  ,Cleaning and Domestic Supplies,BH03,Cleaning Services                       ,1199.41,01/03/2014,REV,BIRKIN CLEANING SERVICES LTD  
561,Central Services,SupS Facilities,Civic Centre,E02222,Premises Related Expenditure  ,Cleaning and Domestic Supplies,BH03,Cleaning Services                       ,1215.98,01/03/2014,REV,BIRKIN CLEANING SERVICES LTD  
562,Central Services,SupS Facilities,Civic Centre,E02222,Premises Related Expenditure  ,Cleaning and Domestic Supplies,BH03,Cleaning Services                       ,1395.29,01/03/2014,REV,BIRKIN CLEANING SERVICES LTD  
563,Central Services,SupS Facilities,Civic Centre,E02222,Premises Related Expenditure  ,Cleaning and Domestic Supplies,BH03,Cleaning Services                       ,6473.18,01/03/2014,REV,BIRKIN CLEANING SERVICES LTD  
564,Central Services,SupS Facilities,Civic Centre,E02222,Premises Related Expenditure  ,Cleaning and Domestic Supplies,BH03,Cleaning Services                       ,819.47,01/03/2014,REV,BIRKIN CLEANING SERVICES LTD  
565,Central Services,SupS Facilities,Civic Centre,E02222,Premises Related Expenditure  ,Cleaning and Domestic Supplies,BH03,Cleaning Services                       ,1199.41,12/03/2014,REV,BIRKIN CLEANING SERVICES LTD  
566,Central Services,SupS Facilities,Civic Centre,E02222,Premises Related Expenditure  ,Cleaning and Domestic Supplies,BH03,Cleaning Services                       ,1642.4,12/03/2014,REV,BIRKIN CLEANING SERVICES LTD  
567,Central Services,SupS Facilities,Civic Centre,E02222,Premises Related Expenditure  ,Cleaning and Domestic Supplies,BH03,Cleaning Services                       ,1642.4,01/03/2014,REV,BIRKIN CLEANING SERVICES LTD  
568,Central Services,SupS Facilities,Civic Centre,E02222,Third Party Payments          ,Private Contractors           ,EH10,Contract Payments                       ,3284,17/03/2014,REV,ISS COLLECTIONS LTD           
569,Central Services,SupS Facilities,Civic Centre,E02222,Third Party Payments          ,Private Contractors           ,EH10,Contract Payments                       ,2357.92,27/12/2013,REV,ISS COLLECTIONS LTD           
570,Central Services,SupS Facilities,Civic Centre,E02222,Third Party Payments          ,Private Contractors           ,EH10,Contract Payments                       ,3372.4,21/02/2014,REV,ISS COLLECTIONS LTD           
571,Central Services,SupS Facilities,Civic Centre,E02222,Third Party Payments          ,Private Contractors           ,EH10,Contract Payments                       ,2536.83,24/01/2014,REV,ISS COLLECTIONS LTD           
572,Central Services,SupS Facilities,Facilities,E02231,Employees                     ,Direct Employee Expenses      ,AA17,Agency Staff & Casual Paymts            ,1215.2,26/02/2014,REV,REDACTED
573,Central Services,SupS Facilities,Facilities,E02231,Employees                     ,Direct Employee Expenses      ,AA17,Agency Staff & Casual Paymts            ,1215.2,12/03/2014,REV,REDACTED
574,Central Services,SupS Facilities,Facilities,E02231,Employees                     ,Direct Employee Expenses      ,AA17,Agency Staff & Casual Paymts            ,1215.2,05/03/2014,REV,REDACTED
575,Central Services,SupS Facilities,Facilities,E02231,Employees                     ,Direct Employee Expenses      ,AA17,Agency Staff & Casual Paymts            ,1215.2,19/03/2014,REV,REDACTED
576,Central Services,SupS Facilities,Facilities,E02231,Premises Related Expenditure  ,RepairsAlterations&MtceOfBldgs,BA01,DDM - General Building                  ,4993,27/03/2014,REV,SALTASH ENTERPRISES LTD       
577,Central Services,SupS Facilities,Facilities,E02231,Premises Related Expenditure  ,RepairsAlterations&MtceOfBldgs,BA01,DDM - General Building                  ,1075,28/03/2014,REV,SALTASH ENTERPRISES LTD       
578,Central Services,SupS Facilities,Facilities,E02231,Premises Related Expenditure  ,RepairsAlterations&MtceOfBldgs,BA01,DDM - General Building                  ,40829,31/03/2014,REV,HAZLEMERE WINDOW CO LIMITED   
579,Central Services,SupS Facilities,Facilities,E02231,Premises Related Expenditure  ,RepairsAlterations&MtceOfBldgs,BA01,DDM - General Building                  ,5250,27/03/2014,REV,SALTASH ENTERPRISES LTD       
580,Central Services,SupS Facilities,Facilities,E02231,Premises Related Expenditure  ,RepairsAlterations&MtceOfBldgs,BA01,DDM - General Building                  ,2800,28/03/2014,REV,SALTASH ENTERPRISES LTD       
581,Central Services,SupS Facilities,Facilities,E02231,Premises Related Expenditure  ,RepairsAlterations&MtceOfBldgs,BA01,DDM - General Building                  ,42600.5,28/03/2014,REV,SALTASH ENTERPRISES LTD       
582,Central Services,SupS Facilities,Facilities,E02231,Premises Related Expenditure  ,RepairsAlterations&MtceOfBldgs,BA02,ENERGY CONSERVATION                     ,82824.94,27/02/2014,REV,MITIE TECHNICAL FACILITIES MGT
583,Central Services,SupS Facilities,Facilities,E02231,Premises Related Expenditure  ,RepairsAlterations&MtceOfBldgs,BA02,ENERGY CONSERVATION                     ,2455.2,18/03/2014,REV,ENERGY SAVING LIGHTING (UK) LT
584,Central Services,SupS Facilities,Facilities,E02231,Premises Related Expenditure  ,RepairsAlterations&MtceOfBldgs,BA02,ENERGY CONSERVATION                     ,1917,03/03/2014,REV,BERGEN ENERGI                 
585,Central Services,SupS Facilities,Facilities,E02231,Premises Related Expenditure  ,RepairsAlterations&MtceOfBldgs,BA02,ENERGY CONSERVATION                     ,3181,24/03/2014,REV,ENERGY SAVING LIGHTING (UK) LT
586,Central Services,SupS Facilities,Facilities,E02231,Premises Related Expenditure  ,RepairsAlterations&MtceOfBldgs,BA05,DDM - Electrical                        ,1100,28/03/2014,REV,SSD LIMITED                   
587,Central Services,SupS Facilities,Facilities,E02231,Premises Related Expenditure  ,RepairsAlterations&MtceOfBldgs,BA05,DDM - Electrical                        ,1100,28/03/2014,REV,SSD LIMITED                   
588,Central Services,SupS Facilities,Facilities,E02231,Premises Related Expenditure  ,RepairsAlterations&MtceOfBldgs,BA29,Build Maint Mgt Fees                    ,15500.92,15/03/2014,REV,COMPLEMENT CONSULTING LIMITED 
589,Central Services,SupS Facilities,Facilities,E02231,Premises Related Expenditure  ,RepairsAlterations&MtceOfBldgs,BA29,Build Maint Mgt Fees                    ,1200,31/03/2014,REV,KH FLOORING LTD               
590,Central Services,SupS Facilities,Facilities,E02231,Premises Related Expenditure  ,RepairsAlterations&MtceOfBldgs,BA84,Asbestos                                ,1542.94,07/03/2014,REV,SALTASH ENTERPRISES LTD       
591,Central Services,SupS Facilities,Facilities,E02231,Premises Related Expenditure  ,RepairsAlterations&MtceOfBldgs,BA84,Asbestos                                ,4427.95,24/03/2014,REV,ENERGY SAVING LIGHTING (UK) LT
592,Central Services,SupS Facilities,Facilities,E02231,Premises Related Expenditure  ,RepairsAlterations&MtceOfBldgs,BA84,Asbestos                                ,1085.3,24/03/2014,REV,ENERGY SAVING LIGHTING (UK) LT
593,Central Services,SupS Facilities,Facilities,E02231,Premises Related Expenditure  ,RepairsAlterations&MtceOfBldgs,BA84,Asbestos                                ,1972,24/03/2014,REV,ENERGY SAVING LIGHTING (UK) LT
594,Central Services,SupS Facilities,Facilities,E02231,Premises Related Expenditure  ,RepairsAlterations&MtceOfBldgs,BA84,Asbestos                                ,1025,25/03/2014,REV,STONEWEST                     
595,Central Services,SupS Facilities,Facilities,E02231,Premises Related Expenditure  ,RepairsAlterations&MtceOfBldgs,BA84,Asbestos                                ,8205,30/09/2013,REV,LUCION ENVIRONMENTAL LTD      
596,Central Services,SupS Facilities,Facilities,E02231,Premises Related Expenditure  ,RepairsAlterations&MtceOfBldgs,BA84,Asbestos                                ,821,24/03/2014,REV,ENERGY SAVING LIGHTING (UK) LT
597,Central Services,SupS Facilities,Facilities,E02231,Premises Related Expenditure  ,RepairsAlterations&MtceOfBldgs,BA84,Asbestos                                ,1995,27/02/2014,REV,MITIE TECHNICAL FACILITIES MGT
598,Central Services,SupS Facilities,Facilities,E02231,Premises Related Expenditure  ,RepairsAlterations&MtceOfBldgs,BA89,Fire Safety Risk Assessment             ,780.45,18/03/2014,REV,SALTASH ENTERPRISES LTD       
599,Central Services,SupS Facilities,Facilities,E02231,Premises Related Expenditure  ,RepairsAlterations&MtceOfBldgs,BA89,Fire Safety Risk Assessment             ,6521.75,27/03/2014,REV,FIRST CHOICE FACILITIES PLC   
600,Central Services,SupS Facilities,Facilities,E02231,Premises Related Expenditure  ,RepairsAlterations&MtceOfBldgs,BA89,Fire Safety Risk Assessment             ,8232,18/03/2014,REV,SALTASH ENTERPRISES LTD       
601,Central Services,SupS Facilities,Facilities,E02231,Premises Related Expenditure  ,RepairsAlterations&MtceOfBldgs,BA89,Fire Safety Risk Assessment             ,8550,28/03/2014,REV,SALTASH ENTERPRISES LTD       
602,Central Services,SupS Facilities,Facilities,E02231,Premises Related Expenditure  ,RepairsAlterations&MtceOfBldgs,BA90,Water Hygiene                           ,3123.95,18/03/2014,REV,SALTASH ENTERPRISES LTD       
603,Central Services,SupS Facilities,Facilities,E02231,Premises Related Expenditure  ,RepairsAlterations&MtceOfBldgs,BA90,Water Hygiene                           ,1433,07/03/2014,REV,SALTASH ENTERPRISES LTD       
604,Central Services,SupS Facilities,Facilities,E02231,Premises Related Expenditure  ,RepairsAlterations&MtceOfBldgs,BA90,Water Hygiene                           ,19136.41,26/03/2014,REV,SALTASH ENTERPRISES LTD       
605,Central Services,SupS Facilities,Facilities,E02231,Premises Related Expenditure  ,RepairsAlterations&MtceOfBldgs,BA90,Water Hygiene                           ,18000,28/02/2014,REV,SALTASH ENTERPRISES LTD       
606,Central Services,SupS Facilities,Facilities,E02231,Premises Related Expenditure  ,RepairsAlterations&MtceOfBldgs,BA90,Water Hygiene                           ,837,31/01/2014,REV,HYDRO-X WATER TREATMENT LTD   
607,Central Services,SupS Facilities,Facilities,E02231,Premises Related Expenditure  ,RepairsAlterations&MtceOfBldgs,BA90,Water Hygiene                           ,10000,28/03/2014,REV,SALTASH ENTERPRISES LTD       
608,Central Services,SupS Facilities,Facilities,E02231,Supplies & Services           ,Equip Furniture/Materials     ,DA04,Materials                               ,1472.8,27/03/2014,REV,REDACTED
609,Central Services,SupS Facilities,Facilities,E02231,Supplies & Services           ,Equip Furniture/Materials     ,DA04,Materials                               ,15815.41,17/03/2014,REV,REDACTED
610,Central Services,SupS Facilities,Facilities,E02231,Supplies & Services           ,Equip Furniture/Materials     ,DA09,Equip-Purchases                         ,9361.25,28/03/2014,REV,REDACTED
611,Central Services,SupS Facilities,Facilities,E02231,Supplies & Services           ,Prntng Stnry Gen Off Exp      ,DE03,Stationery                              ,676.2,14/03/2014,REV,OFFICE DEPOT UK LTD           
612,Central Services,SupS Facilities,Facilities,E02231,Supplies & Services           ,Services                      ,DF03,Consultants                             ,9750,01/03/2014,REV,FRONTLINE DATA LIMITED        
613,Central Services,SupS Facilities,Facilities,E02231,Supplies & Services           ,Services                      ,DF05,Surveys (General)                       ,1484.38,30/01/2014,REV,COMPLEMENT CONSULTING LIMITED 
614,Central Services,SupS Facilities,Facilities,E02231,Supplies & Services           ,Services                      ,DF09,Miscellaneous Fees                      ,10017.75,17/03/2014,REV,REDACTED
615,Central Services,SupS Facilities,Facilities,E02231,Supplies & Services           ,Services                      ,DF09,Miscellaneous Fees                      ,7023.58,13/03/2014,REV,STARK SOFTWARE INTERNATIONAL  
616,Central Services,SupS Facilities,Facilities,E02231,Supplies & Services           ,Services                      ,DF09,Miscellaneous Fees                      ,4455,13/03/2014,REV,STARK SOFTWARE INTERNATIONAL  
617,Central Services,SupS Facilities,FM External Fees,E02239,Premises Related Expenditure  ,RepairsAlterations&MtceOfBldgs,BA01,DDM - General Building                  ,850,31/12/2013,REV,BUXTON ASSOCS (CONS) ENG.LTD  
618,Central Services,SupS Facilities,FM External Fees,E02239,Premises Related Expenditure  ,RepairsAlterations&MtceOfBldgs,BA01,DDM - General Building                  ,2448.96,12/11/2013,REV,SALTASH ENTERPRISES LTD       
619,Central Services,SupS Facilities,Corporate Services Buildings,E02240,Premises Related Expenditure  ,RepairsAlterations&MtceOfBldgs,BA01,DDM - General Building                  ,760,11/03/2014,REV,SALTASH ENTERPRISES LTD       
620,Central Services,SupS Facilities,Corporate Services Buildings,E02240,Premises Related Expenditure  ,RepairsAlterations&MtceOfBldgs,BA01,DDM - General Building                  ,3200,28/03/2014,REV,SALTASH ENTERPRISES LTD       
621,Central Services,SupS Facilities,Corporate Services Buildings,E02240,Premises Related Expenditure  ,RepairsAlterations&MtceOfBldgs,BA01,DDM - General Building                  ,2005.08,31/03/2014,REV,SALTASH ENTERPRISES LTD       
622,Central Services,SupS Facilities,Corporate Services Buildings,E02240,Premises Related Expenditure  ,RepairsAlterations&MtceOfBldgs,BA01,DDM - General Building                  ,562.5,25/03/2014,REV,SALTASH ENTERPRISES LTD       
623,Central Services,SupS Facilities,Corporate Services Buildings,E02240,Premises Related Expenditure  ,RepairsAlterations&MtceOfBldgs,BA01,DDM - General Building                  ,936.56,24/10/2013,REV,PJ HARVEY & CO LTD            
624,Central Services,SupS Facilities,Corporate Services Buildings,E02240,Premises Related Expenditure  ,RepairsAlterations&MtceOfBldgs,BA01,DDM - General Building                  ,4875,26/02/2014,REV,SALTASH ENTERPRISES LTD       
625,Central Services,SupS Facilities,Corporate Services Buildings,E02240,Premises Related Expenditure  ,RepairsAlterations&MtceOfBldgs,BA02,Energy Conservation                     ,88363.85,14/03/2014,REV,ENERGY SAVING LIGHTING (UK) LT
626,Central Services,SupS Facilities,Corporate Services Buildings,E02240,Premises Related Expenditure  ,RepairsAlterations&MtceOfBldgs,BA03,DDM - Mechanical                        ,4118.7,25/02/2014,REV,COFELY LIMITED                
627,Central Services,SupS Facilities,Corporate Services Buildings,E02240,Premises Related Expenditure  ,RepairsAlterations&MtceOfBldgs,BA05,DDM - Electrical                        ,5077.67,20/02/2014,REV,EUROPA NATIONWIDE TECH.SER.LTD
628,Central Services,SupS Facilities,Corporate Services Buildings,E02240,Premises Related Expenditure  ,RepairsAlterations&MtceOfBldgs,BA05,DDM - Electrical                        ,2518.61,20/02/2014,REV,EUROPA NATIONWIDE TECH.SER.LTD
629,Central Services,SupS Facilities,Corporate Services Buildings,E02240,Premises Related Expenditure  ,RepairsAlterations&MtceOfBldgs,BA05,DDM - Electrical                        ,917,30/05/2013,REV,FIRST CHOICE FACILITIES PLC   
630,Central Services,SupS Facilities,Corporate Services Buildings,E02240,Premises Related Expenditure  ,RepairsAlterations&MtceOfBldgs,BA05,DDM - Electrical                        ,1485,26/03/2014,REV,SSD LIMITED                   
631,Central Services,SupS Facilities,Corporate Services Buildings,E02240,Premises Related Expenditure  ,RepairsAlterations&MtceOfBldgs,BA05,DDM - Electrical                        ,850,24/02/2014,REV,SSD LIMITED                   
632,Central Services,SupS Facilities,Corporate Services Buildings,E02240,Premises Related Expenditure  ,RepairsAlterations&MtceOfBldgs,BA29,Build Maint Mgt Fees                    ,4544,31/03/2014,REV,UNIQUE OFFICE SOLUTIONS LTD   
633,Central Services,SupS Facilities,Corporate Services Buildings,E02240,Premises Related Expenditure  ,RepairsAlterations&MtceOfBldgs,BA29,Build Maint Mgt Fees                    ,884.28,20/03/2014,REV,UNIQUE OFFICE SOLUTIONS LTD   
634,Central Services,SupS Facilities,Corporate Services Buildings,E02240,Premises Related Expenditure  ,RepairsAlterations&MtceOfBldgs,BA29,Build Maint Mgt Fees                    ,1925,23/03/2014,REV,KH FLOORING LTD               
635,Central Services,SupS Facilities,Corporate Services Buildings,E02240,Premises Related Expenditure  ,RepairsAlterations&MtceOfBldgs,BA29,Build Maint Mgt Fees                    ,1304.8,31/03/2014,REV,UNIQUE OFFICE SOLUTIONS LTD   
636,Central Services,SupS Facilities,Corporate Services Buildings,E02240,Premises Related Expenditure  ,RepairsAlterations&MtceOfBldgs,BA29,Build Maint Mgt Fees                    ,711.5,31/01/2014,REV,EDE'S (U.K.) LTD              
637,Central Services,SupS Facilities,Corporate Services Buildings,E02240,Premises Related Expenditure  ,RepairsAlterations&MtceOfBldgs,BA29,Build Maint Mgt Fees                    ,782.52,26/03/2014,REV,UNIQUE OFFICE SOLUTIONS LTD   
638,Central Services,SupS Facilities,Corporate Services Buildings,E02240,Premises Related Expenditure  ,RepairsAlterations&MtceOfBldgs,BA29,Build Maint Mgt Fees                    ,6598.8,31/03/2014,REV,UNIQUE OFFICE SOLUTIONS LTD   
639,Central Services,SupS Facilities,Corporate Services Buildings,E02240,Premises Related Expenditure  ,RepairsAlterations&MtceOfBldgs,BA29,Build Maint Mgt Fees                    ,4125,11/03/2014,REV,KH FLOORING LTD               
640,Central Services,SupS Facilities,Corporate Services Buildings,E02240,Premises Related Expenditure  ,RepairsAlterations&MtceOfBldgs,BA29,Build Maint Mgt Fees                    ,765.84,26/03/2014,REV,UNIQUE OFFICE SOLUTIONS LTD   
641,Central Services,SupS Facilities,Corporate Services Buildings,E02240,Premises Related Expenditure  ,Energy Costs                  ,BB03,Gas (incl. Butane)                      ,2442.47,11/03/2014,REV,GAZPROM MARKETING&TRADING LTD 
642,Central Services,SupS Facilities,Corporate Services Buildings,E02240,Premises Related Expenditure  ,Energy Costs                  ,BB03,Gas (incl. Butane)                      ,-6959.27,30/01/2014,REV,KENT COUNTY SUPPLIES          
643,Central Services,SupS Facilities,Corporate Services Buildings,E02240,Premises Related Expenditure  ,Energy Costs                  ,BB03,Gas (incl. Butane)                      ,664.37,11/03/2014,REV,GAZPROM MARKETING&TRADING LTD 
644,Central Services,SupS Facilities,Corporate Services Buildings,E02240,Premises Related Expenditure  ,Energy Costs                  ,BB03,Gas (incl. Butane)                      ,561.53,11/03/2014,REV,GAZPROM MARKETING&TRADING LTD 
645,Central Services,SupS Facilities,Corporate Services Buildings,E02240,Premises Related Expenditure  ,Energy Costs                  ,BB03,Gas (incl. Butane)                      ,4849.41,11/03/2014,REV,GAZPROM MARKETING&TRADING LTD 
646,Central Services,SupS Facilities,Corporate Services Buildings,E02240,Premises Related Expenditure  ,Energy Costs                  ,BB03,Gas (incl. Butane)                      ,14887.75,30/01/2014,REV,KENT COUNTY SUPPLIES          
647,Central Services,SupS Facilities,Corporate Services Buildings,E02240,Premises Related Expenditure  ,Water Services                ,BE01,Use of Water (Metered)                  ,954.69,28/02/2014,REV,SUTTON AND EAST SURREY WATER  
648,Childrens & Education Services,Strategic Management,CSF Buildings,E02256,Premises Related Expenditure  ,RepairsAlterations&MtceOfBldgs,BA01,DDM - General Building                  ,763.14,20/03/2014,REV,PJ HARVEY & CO LTD            
649,Childrens & Education Services,Strategic Management,CSF Buildings,E02256,Premises Related Expenditure  ,RepairsAlterations&MtceOfBldgs,BA01,DDM - General Building                  ,3000,28/03/2014,REV,SALTASH ENTERPRISES LTD       
650,Childrens & Education Services,Strategic Management,CSF Buildings,E02256,Premises Related Expenditure  ,RepairsAlterations&MtceOfBldgs,BA05,DDM - Electrical                        ,1379.05,20/02/2014,REV,EUROPA NATIONWIDE TECH.SER.LTD
651,Cultural Env Reg&Plan Services,Parks & Open Spaces,E & R Buildings,E02344,Premises Related Expenditure  ,RepairsAlterations&MtceOfBldgs,BA03,DDM - Mechanical                        ,572.3,25/02/2014,REV,COFELY LIMITED                
652,Cultural Env Reg&Plan Services,Parks & Open Spaces,E & R Buildings,E02344,Premises Related Expenditure  ,RepairsAlterations&MtceOfBldgs,BA05,DDM - Electrical                        ,1347.74,20/02/2014,REV,EUROPA NATIONWIDE TECH.SER.LTD
653,Adult Social Care,PS u65 Day Care,C & H Buildings,E02345,Premises Related Expenditure  ,RepairsAlterations&MtceOfBldgs,BA01,DDM - General Building                  ,1000,28/03/2014,REV,SALTASH ENTERPRISES LTD       
654,Adult Social Care,PS u65 Day Care,C & H Buildings,E02345,Premises Related Expenditure  ,RepairsAlterations&MtceOfBldgs,BA01,DDM - General Building                  ,1526,28/03/2014,REV,SALTASH ENTERPRISES LTD       
655,Adult Social Care,PS u65 Day Care,C & H Buildings,E02345,Premises Related Expenditure  ,RepairsAlterations&MtceOfBldgs,BA01,DDM - General Building                  ,5125,27/03/2014,REV,SALTASH ENTERPRISES LTD       
656,Adult Social Care,PS u65 Day Care,C & H Buildings,E02345,Premises Related Expenditure  ,RepairsAlterations&MtceOfBldgs,BA01,DDM - General Building                  ,5675,26/03/2014,REV,SALTASH ENTERPRISES LTD       
657,Adult Social Care,PS u65 Day Care,C & H Buildings,E02345,Premises Related Expenditure  ,RepairsAlterations&MtceOfBldgs,BA05,DDM - Electrical                        ,697.87,25/02/2014,REV,COFELY LIMITED                
658,Adult Social Care,PS u65 Day Care,C & H Buildings,E02345,Premises Related Expenditure  ,RepairsAlterations&MtceOfBldgs,BA05,DDM - Electrical                        ,3453.26,20/02/2014,REV,EUROPA NATIONWIDE TECH.SER.LTD
659,Cultural Env Reg&Plan Services,Parks & Open Spaces,Leisure Buildings,E02350,Premises Related Expenditure  ,RepairsAlterations&MtceOfBldgs,BA01,DDM - General Building                  ,1000,19/03/2014,REV,SALTASH ENTERPRISES LTD       
660,Cultural Env Reg&Plan Services,Parks & Open Spaces,Leisure Buildings,E02350,Premises Related Expenditure  ,RepairsAlterations&MtceOfBldgs,BA01,DDM - General Building                  ,920,27/03/2014,REV,SALTASH ENTERPRISES LTD       
661,Cultural Env Reg&Plan Services,Parks & Open Spaces,Leisure Buildings,E02350,Premises Related Expenditure  ,RepairsAlterations&MtceOfBldgs,BA01,DDM - General Building                  ,3687.5,28/03/2014,REV,SALTASH ENTERPRISES LTD       
662,Cultural Env Reg&Plan Services,Parks & Open Spaces,Leisure Buildings,E02350,Premises Related Expenditure  ,RepairsAlterations&MtceOfBldgs,BA01,DDM - General Building                  ,1220,04/03/2014,REV,JUST METAL UK LTD             
663,Cultural Env Reg&Plan Services,Parks & Open Spaces,Leisure Buildings,E02350,Premises Related Expenditure  ,RepairsAlterations&MtceOfBldgs,BA01,DDM - General Building                  ,750.21,05/03/2014,REV,SALTASH ENTERPRISES LTD       
664,Cultural Env Reg&Plan Services,Parks & Open Spaces,Leisure Buildings,E02350,Premises Related Expenditure  ,RepairsAlterations&MtceOfBldgs,BA01,DDM - General Building                  ,2915.93,12/02/2014,REV,SALTASH ENTERPRISES LTD       
665,Cultural Env Reg&Plan Services,Parks & Open Spaces,Leisure Buildings,E02350,Premises Related Expenditure  ,RepairsAlterations&MtceOfBldgs,BA01,DDM - General Building                  ,3156.25,27/03/2014,REV,SALTASH ENTERPRISES LTD       
666,Cultural Env Reg&Plan Services,Parks & Open Spaces,Leisure Buildings,E02350,Premises Related Expenditure  ,RepairsAlterations&MtceOfBldgs,BA01,DDM - General Building                  ,1750,28/03/2014,REV,SALTASH ENTERPRISES LTD       
667,Cultural Env Reg&Plan Services,Parks & Open Spaces,Leisure Buildings,E02350,Premises Related Expenditure  ,RepairsAlterations&MtceOfBldgs,BA01,DDM - General Building                  ,598.54,11/02/2014,REV,SALTASH ENTERPRISES LTD       
668,Cultural Env Reg&Plan Services,Parks & Open Spaces,Leisure Buildings,E02350,Premises Related Expenditure  ,RepairsAlterations&MtceOfBldgs,BA03,DDM - Mechanical                        ,1200,17/02/2014,REV,COFELY LIMITED                
669,Cultural Env Reg&Plan Services,Parks & Open Spaces,Leisure Buildings,E02350,Premises Related Expenditure  ,RepairsAlterations&MtceOfBldgs,BA03,DDM - Mechanical                        ,733,11/09/2013,REV,FIRST CHOICE FACILITIES PLC   
670,Cultural Env Reg&Plan Services,Parks & Open Spaces,Leisure Buildings,E02350,Premises Related Expenditure  ,RepairsAlterations&MtceOfBldgs,BA03,DDM - Mechanical                        ,671.83,25/02/2014,REV,COFELY LIMITED                
671,Cultural Env Reg&Plan Services,Parks & Open Spaces,Leisure Buildings,E02350,Premises Related Expenditure  ,RepairsAlterations&MtceOfBldgs,BA05,DDM - Electrical                        ,4264.86,20/02/2014,REV,EUROPA NATIONWIDE TECH.SER.LTD
672,Cultural Env Reg&Plan Services,Parks & Open Spaces,Leisure Buildings,E02350,Premises Related Expenditure  ,RepairsAlterations&MtceOfBldgs,BA05,DDM - Electrical                        ,1220.16,20/02/2014,REV,EUROPA NATIONWIDE TECH.SER.LTD
673,Central Services,SupS DOF,BUSINESS PARTNERS,E04059,Employees                     ,Direct Employee Expenses      ,AA17,Agency Staff & Casual Paymts            ,7475,04/03/2014,REV,REDACTED
674,Central Services,SupS DOF,BUSINESS PARTNERS,E04059,Employees                     ,Indirect Employee Expenses    ,AB02,Recruitment Adverts                     ,940,11/02/2014,REV,PENNA COMMUNICATIONS (NO 2 A/C
675,Central Services,SupS DOF,Director of Corporate Services,E04060,Supplies & Services           ,Services                      ,DF03,Consultants                             ,700,05/02/2014,REV,VALUATION OFFICE AGENCY       
676,Central Services,SupS DOF,Director of Corporate Services,E04060,Supplies & Services           ,Services                      ,DF11,Counsel's Fees                          ,850.12,27/02/2014,REV,WRAGGE & CO LLP               
677,Central Services,SupS DOF,Director of Corporate Services,E04060,Supplies & Services           ,Services                      ,DF11,Counsel's Fees                          ,500,28/02/2014,REV,STARR & PARTNERS LLP          
678,Central Services,SupS DOF,Director of Corporate Services,E04060,Supplies & Services           ,Services                      ,DF11,Counsel's Fees                          ,1125.93,27/02/2014,REV,WRAGGE & CO LLP               
679,Central Services,SupS DOF,Director of Corporate Services,E04060,Supplies & Services           ,Services                      ,DF11,Counsel's Fees                          ,3012.8,27/02/2014,REV,WRAGGE & CO LLP               
680,Central Services,SupS DOF,Director of Corporate Services,E04060,Supplies & Services           ,Services                      ,DF11,Counsel's Fees                          ,2844.24,31/01/2014,REV,WRAGGE & CO LLP               
681,Central Services,SupS DOF,Director of Corporate Services,E04060,Supplies & Services           ,Services                      ,DF11,Counsel's Fees                          ,9023.95,31/01/2014,REV,WRAGGE & CO LLP               
682,Central Services,SupS DOF,Director of Corporate Services,E04060,Supplies & Services           ,Services                      ,DF11,Counsel's Fees                          ,3639.1,31/01/2014,REV,WRAGGE & CO LLP               
683,Central Services,SupS DOF,Director of Corporate Services,E04060,Supplies & Services           ,Services                      ,DF11,Counsel's Fees                          ,625,28/02/2014,REV,ALTLAW                        
684,Central Services,SupS DOF,AD RESOURCES,E04061,Employees                     ,Direct Employee Expenses      ,AA17,Agency Staff & Casual Paymts            ,16500,05/03/2014,REV,REDACTED
685,Central Services,SupS DOF,AD RESOURCES,E04061,Supplies & Services           ,Services                      ,DF03,CONSULTANTS                             ,8740,04/03/2014,REV,PUBLIC SECTOR CONSULTANTS     
686,Central Services,SupS DOF,AD RESOURCES,E04061,Supplies & Services           ,Services                      ,DF09,Miscellaneous Fees                      ,2080,22/02/2014,REV,CIPFA BUSINESS LTD            
687,Central Services,SupS Corporate Finance,Corporate Accountancy,E06209,Supplies & Services           ,Services                      ,DF58,Audit Fee                               ,12121,28/01/2014,REV,ERNST & YOUNG LLP             
688,Central Services,SupS Corporate Finance,Corporate Accountancy,E06209,Supplies & Services           ,Services                      ,DF58,Audit Fee                               ,48687,28/01/2014,REV,ERNST & YOUNG LLP             
689,Central Services,SupS Strategic Finance,Business Planning,E06221,Supplies & Services           ,Comms and Computing           ,DG07,Computer Software                       ,1419.5,28/02/2014,REV,SOFTCAT LTD                   
690,Central Services,SupS Strategic Finance,Business Planning,E06221,Supplies & Services           ,Comms and Computing           ,DG08,Computer Hardware                       ,2333.55,03/03/2014,REV,SPECIALIST COMPUTER CENT. PLC 
691,Central Services,SupS DOF,Service Accountancy,E06227,Supplies & Services           ,Services                      ,DF95,Services from Provider                  ,1032.58,28/02/2014,REV,POST OFFICE LTD               
692,Central Services,SupS DOF,Service Accountancy,E06227,Supplies & Services           ,Services                      ,DF95,Services from Provider                  ,957.12,28/02/2014,REV,POST OFFICE LTD               
693,Central Services,SupS DOF,Service Accountancy,E06227,Supplies & Services           ,Services                      ,DF95,Services from Provider                  ,553.5,21/03/2014,REV,POST OFFICE LTD               
694,Central Services,SupS Legal,AD CORPORATE GOVERNANCE,E10279,Supplies & Services           ,Prntng Stnry Gen Off Exp      ,DE03,Stationery                              ,2147.39,12/03/2014,REV,FINANCIAL DATA MANAGEMENT PLC 
695,Central Services,SupS Legal,AD CORPORATE GOVERNANCE,E10279,Supplies & Services           ,Prntng Stnry Gen Off Exp      ,DE03,Stationery                              ,4521.44,12/03/2014,REV,FINANCIAL DATA MANAGEMENT PLC 
696,Central Services,SupS Legal,AD CORPORATE GOVERNANCE,E10279,Supplies & Services           ,Grants and Subscriptions      ,DJ04,Subscriptions                           ,4025,27/02/2014,REV,CIPFA                         
697,Central Services,SupS Legal,Legal Services,E10282,Supplies & Services           ,Services                      ,DF11,Counsel's fees                          ,2000,16/01/2014,REV,REDACTED
698,Central Services,SupS Legal,Legal Services,E10282,Supplies & Services           ,Services                      ,DF28,Court Fees                              ,790,13/03/2014,REV,REDACTED
699,Central Services,SupS Legal,Legal Services,E10282,Supplies & Services           ,Services                      ,DF28,Court Fees                              ,3495,31/03/2014,REV,REDACTED
700,Central Services,SupS Legal,Legal Services,E10282,Supplies & Services           ,Services                      ,DF28,Court Fees                              ,3775,14/03/2014,REV,REDACTED
701,Central Services,SupS Legal,Legal Services,E10282,Supplies & Services           ,Services                      ,DF28,Court Fees                              ,6805,13/03/2014,REV,REDACTED
702,Central Services,SupS Legal,Legal Services,E10282,Supplies & Services           ,Services                      ,DF28,Court Fees                              ,630,13/03/2014,REV,REDACTED
703,Central Services,SupS Legal,Legal Services,E10282,Supplies & Services           ,Services                      ,DF28,Court Fees                              ,805,31/03/2014,REV,REDACTED
704,Central Services,SupS Legal,Legal Services,E10282,Supplies & Services           ,Services                      ,DF28,Court Fees                              ,2235,13/03/2014,REV,REDACTED
705,Central Services,SupS Legal,Legal Services,E10282,Supplies & Services           ,Services                      ,DF28,Court Fees                              ,3535,31/03/2014,REV,REDACTED
706,Central Services,SupS Legal,Legal Services,E10282,Supplies & Services           ,Services                      ,DF28,Court Fees                              ,31295,31/03/2014,REV,REDACTED
707,Central Services,SupS Legal,Legal Services,E10282,Supplies & Services           ,Services                      ,DF28,Court Fees                              ,3320,31/03/2014,REV,REDACTED
708,Central Services,SupS Legal,Legal Services,E10282,Supplies & Services           ,Services                      ,DF28,Court Fees                              ,3460,31/03/2014,REV,REDACTED
709,Central Services,Registration of electors,Electoral Registration,E10285,Supplies & Services           ,Comms and Computing           ,DG04,Postage - General                       ,3955.95,14/03/2014,REV,FINANCIAL DATA MANAGEMENT PLC 
710,Central Services,Registration of electors,Electoral Registration,E10285,Supplies & Services           ,Comms and Computing           ,DG04,Postage - General                       ,690.7,24/03/2014,REV,ROYAL MAIL GROUP LTD          
711,Central Services,Registration of electors,Electoral Registration,E10285,Supplies & Services           ,Comms and Computing           ,DG04,Postage - General                       ,-2510.2,24/03/2014,REV,ROYAL MAIL GROUP LTD          
712,Central Services,Registration of electors,Electoral Registration,E10285,Supplies & Services           ,Comms and Computing           ,DG04,Postage - General                       ,1991.84,26/02/2014,REV,HALAROSE LIMITED              
713,Central Services,SupS Legal,Shared Legal Service,E10288,Supplies & Services           ,Services                      ,DF09,Miscellaneous Fees                      ,769.49,28/02/2014,REV,WINCANTON RECORDS MANAGEMENT  
714,Central Services,SupS Legal,Shared Legal Service,E10288,Supplies & Services           ,Services                      ,DF11,Counsel's Fees                          ,750,05/12/2013,REV,REDACTED
715,Central Services,SupS Legal,Shared Legal Service,E10288,Supplies & Services           ,Services                      ,DF95,Services from Provider                  ,525.1,16/12/2013,REV,KENT COUNTY COUNCIL           
716,Central Services,SupS Legal,Shared Legal Service,E10288,Supplies & Services           ,Services                      ,DF95,Services from Provider                  ,1691,19/09/2013,REV,KENT COUNTY COUNCIL           
717,Central Services,SupS Legal,Shared Legal Service,E10288,Supplies & Services           ,Services                      ,DF95,Services from Provider                  ,3281.3,29/11/2013,REV,KENT COUNTY COUNCIL           
718,Central Services,SupS Legal,Shared Legal Service,E10288,Supplies & Services           ,Services                      ,DF95,Services from Provider                  ,984.3,09/10/2013,REV,KENT COUNTY COUNCIL           
719,Central Services,SupS Legal,Shared Legal Service,E10288,Supplies & Services           ,Services                      ,DF95,Services from Provider                  ,887.1,22/05/2013,REV,KENT COUNTY COUNCIL           
720,Central Services,SupS Legal,Shared Legal Service,E10288,Supplies & Services           ,Services                      ,DF95,Services from Provider                  ,3993.2,19/06/2013,REV,KENT COUNTY COUNCIL           
721,Central Services,SupS Legal,Shared Legal Service,E10288,Supplies & Services           ,Services                      ,DF95,Services from Provider                  ,2523.4,17/07/2013,REV,KENT COUNTY COUNCIL           
722,Central Services,SupS Legal,Shared Legal Service,E10288,Supplies & Services           ,Services                      ,DF95,Services from Provider                  ,1254.9,16/08/2013,REV,KENT COUNTY COUNCIL           
723,Central Services,SupS Legal,Shared Legal Service,E10288,Supplies & Services           ,Comms and Computing           ,DG04,Postage - General                       ,750,28/02/2014,REV,NEOPOST FINANCE LIMITED       
724,Central Services,SupS Legal,Shared Legal Service,E10288,Supplies & Services           ,Comms and Computing           ,DG08,Computer Hardware                       ,1400.13,25/02/2014,REV,SPECIALIST COMPUTER CENT. PLC 
725,Central Services,SupS Legal,Shared Legal Service,E10288,Supplies & Services           ,Comms and Computing           ,DG50,Other IT Expenditure                    ,4500,27/02/2014,REV,ZYLPHA LIMITED                
726,Central Services,SupS Legal,Richmond Legal,E10289,Supplies & Services           ,Services                      ,DF11,Counsel's Fees                          ,1850,20/01/2014,REV,REDACTED
727,Central Services,SupS Legal,Richmond Legal,E10289,Supplies & Services           ,Services                      ,DF11,Counsel's Fees                          ,525,05/03/2014,REV,REDACTED
728,Central Services,SupS Legal,Richmond Legal,E10289,Supplies & Services           ,Services                      ,DF11,Counsel's Fees                          ,612.5,07/01/2014,REV,REDACTED
729,Central Services,SupS Legal,Richmond Legal,E10289,Supplies & Services           ,Services                      ,DF11,Counsel's Fees                          ,2800,15/01/2014,REV,REDACTED
730,Central Services,SupS Legal,Richmond Legal,E10289,Supplies & Services           ,Services                      ,DF11,Counsel's Fees                          ,505,07/02/2014,REV,REDACTED
731,Central Services,SupS Legal,Richmond Legal,E10289,Supplies & Services           ,Services                      ,DF11,Counsel's Fees                          ,840,28/01/2014,REV,REDACTED
732,Central Services,SupS Legal,Richmond Legal,E10289,Supplies & Services           ,Services                      ,DF11,Counsel's Fees                          ,1800,04/03/2014,REV,REDACTED
733,Central Services,SupS Legal,Richmond Legal,E10289,Supplies & Services           ,Services                      ,DF11,Counsel's Fees                          ,1782.5,23/01/2014,REV,REDACTED
734,Central Services,SupS Legal,Richmond Legal,E10289,Supplies & Services           ,Services                      ,DF11,Counsel's Fees                          ,520,13/02/2014,REV,REDACTED
735,Central Services,SupS Legal,Richmond Legal,E10289,Supplies & Services           ,Services                      ,DF11,Counsel's Fees                          ,600,03/03/2014,REV,REDACTED
736,Central Services,SupS Legal,Richmond Legal,E10289,Supplies & Services           ,Services                      ,DF11,Counsel's Fees                          ,935,07/02/2014,REV,REDACTED
737,Central Services,SupS Legal,Richmond Legal,E10289,Supplies & Services           ,Services                      ,DF11,Counsel's Fees                          ,2700,28/02/2014,REV,REDACTED
738,Central Services,SupS Legal,Richmond Legal,E10289,Supplies & Services           ,Services                      ,DF11,Counsel's Fees                          ,1837.5,04/12/2013,REV,REDACTED
739,Central Services,SupS Legal,Richmond Legal,E10289,Supplies & Services           ,Services                      ,DF11,Counsel's Fees                          ,1515,17/03/2014,REV,REDACTED
740,Central Services,SupS Legal,Richmond Legal,E10289,Supplies & Services           ,Services                      ,DF11,Counsel's Fees                          ,610,21/02/2014,REV,REDACTED
741,Central Services,SupS Legal,Richmond Legal,E10289,Supplies & Services           ,Services                      ,DF11,Counsel's Fees                          ,1225,05/03/2014,REV,REDACTED
742,Central Services,SupS Legal,Richmond Legal,E10289,Supplies & Services           ,Services                      ,DF11,Counsel's Fees                          ,645,17/02/2014,REV,REDACTED
743,Central Services,SupS Legal,Richmond Legal,E10289,Supplies & Services           ,Services                      ,DF11,Counsel's Fees                          ,720,25/02/2014,REV,REDACTED
744,Central Services,SupS Legal,Richmond Legal,E10289,Supplies & Services           ,Services                      ,DF11,Counsel's Fees                          ,550,18/01/2014,REV,REDACTED
745,Central Services,SupS Legal,Richmond Legal,E10289,Supplies & Services           ,Services                      ,DF11,Counsel's Fees                          ,505,19/02/2014,REV,REDACTED
746,Central Services,SupS Legal,Richmond Legal,E10289,Supplies & Services           ,Services                      ,DF11,Counsel's Fees                          ,750,05/03/2014,REV,REDACTED
747,Central Services,SupS Legal,Richmond Legal,E10289,Supplies & Services           ,Services                      ,DF11,Counsel's Fees                          ,5662.9,12/03/2014,REV,REDACTED
748,Central Services,SupS Legal,Richmond Legal,E10289,Supplies & Services           ,Services                      ,DF11,Counsel's Fees                          ,2160,06/02/2014,REV,REDACTED
749,Central Services,SupS Legal,Richmond Legal,E10289,Supplies & Services           ,Services                      ,DF11,Counsel's Fees                          ,2550,25/03/2014,REV,REDACTED
750,Central Services,SupS Legal,Richmond Legal,E10289,Supplies & Services           ,Services                      ,DF14,Doctors and Other Fees                  ,769.5,13/03/2014,REV,REDACTED
751,Central Services,SupS Legal,Richmond Legal,E10289,Supplies & Services           ,Services                      ,DF14,Doctors and Other Fees                  ,774,25/03/2014,REV,REDACTED
752,Central Services,SupS Legal,Richmond Legal,E10289,Supplies & Services           ,Services                      ,DF14,Doctors and Other Fees                  ,739.77,11/02/2014,REV,REDACTED
753,Central Services,SupS Legal,Richmond Legal,E10289,Supplies & Services           ,Services                      ,DF95,Services from Provider                  ,600,18/12/2013,REV,MORRISONS SOLICITORS          
754,Central Services,SupS Legal,Richmond Legal,E10289,Supplies & Services           ,Services                      ,DF95,Services from Provider                  ,759,18/12/2013,REV,MORRISONS SOLICITORS          
755,Central Services,SupS Legal,Richmond Legal,E10289,Supplies & Services           ,Services                      ,DF95,Services from Provider                  ,600,04/10/2013,REV,BATCHELORS SOLICITORS         
756,Central Services,SupS Legal,Richmond Legal,E10289,Supplies & Services           ,Services                      ,DF95,Services from Provider                  ,8346.5,11/02/2014,REV,REDACTED
757,Central Services,SupS Legal,Richmond Legal,E10289,Supplies & Services           ,Services                      ,DF95,Services from Provider                  ,950.67,29/10/2013,REV,MORRISONS SOLICITORS          
758,Central Services,SupS Legal,Richmond Legal,E10289,Supplies & Services           ,Services                      ,DF95,Services from Provider                  ,700,17/03/2014,REV,SWEETINGS PROPERTY MANAGEMENT 
759,Central Services,SupS Legal,Richmond Legal,E10289,Supplies & Services           ,Expenses                      ,DH16,Compensation Payments                   ,1065.6,10/03/2014,REV,FISHER MEREDITH SOLICITORS    
760,Central Services,SupS Legal,4 Borough Legal Service                 ,E10290,Supplies & Services           ,Services                      ,DF03,Consultants                             ,3574.48,14/02/2014,REV,LEXIS NEXIS                   
761,Central Services,SupS Legal,K&S Shared Legal                        ,E10291,Supplies & Services           ,Comms and Computing           ,DG02,Software Licences                       ,12400,27/02/2014,REV,ZYLPHA LIMITED                
762,Central Services,SupS Legal,K&S Shared Legal                        ,E10291,Supplies & Services           ,Comms and Computing           ,DG50,Other IT Expenditure                    ,4500,27/02/2014,REV,ZYLPHA LIMITED                
763,Central Services,SupS Legal,K&S Shared Legal                        ,E10291,Supplies & Services           ,Comms and Computing           ,DG50,Other IT Expenditure                    ,5400,24/03/2014,REV,ZYLPHA LIMITED                
764,Central Services,SupS Legal,Kingston Legal                          ,E10292,Supplies & Services           ,Services                      ,DF11,Counsel's Fees                          ,650,07/02/2014,REV,REDACTED
765,Central Services,SupS Legal,Kingston Legal                          ,E10292,Supplies & Services           ,Services                      ,DF11,Counsel's Fees                          ,800,11/02/2014,REV,REDACTED
766,Central Services,SupS Legal,Kingston Legal                          ,E10292,Supplies & Services           ,Services                      ,DF11,Counsel's Fees                          ,601,15/01/2014,REV,REDACTED
767,Central Services,SupS Legal,Kingston Legal                          ,E10292,Supplies & Services           ,Services                      ,DF11,Counsel's Fees                          ,825,27/01/2014,REV,REDACTED
768,Central Services,SupS Legal,Kingston Legal                          ,E10292,Supplies & Services           ,Services                      ,DF11,Counsel's Fees                          ,1375,05/02/2014,REV,REDACTED
769,Central Services,SupS Legal,Kingston Legal                          ,E10292,Supplies & Services           ,Services                      ,DF11,Counsel's Fees                          ,3015,10/03/2014,REV,REDACTED
770,Central Services,SupS Legal,Kingston Legal                          ,E10292,Supplies & Services           ,Services                      ,DF11,Counsel's Fees                          ,600,13/02/2014,REV,REDACTED
771,Central Services,SupS Legal,Kingston Legal                          ,E10292,Supplies & Services           ,Services                      ,DF11,Counsel's Fees                          ,735,10/03/2014,REV,REDACTED
772,Central Services,SupS Legal,Kingston Legal                          ,E10292,Supplies & Services           ,Services                      ,DF11,Counsel's Fees                          ,600,05/02/2014,REV,REDACTED
773,Central Services,SupS Legal,Kingston Legal                          ,E10292,Supplies & Services           ,Services                      ,DF11,Counsel's Fees                          ,500,26/03/2014,REV,REDACTED
774,Central Services,SupS Legal,Kingston Legal                          ,E10292,Supplies & Services           ,Services                      ,DF11,Counsel's Fees                          ,750,13/02/2014,REV,REDACTED
775,Central Services,SupS Legal,Sutton Legal                            ,E10293,Supplies & Services           ,Services                      ,DF11,Counsel's Fees                          ,2778.75,03/03/2014,REV,REDACTED
776,Central Services,SupS Legal,Sutton Legal                            ,E10293,Supplies & Services           ,Services                      ,DF11,Counsel's Fees                          ,720,15/01/2014,REV,REDACTED
777,Central Services,SupS Legal,Sutton Legal                            ,E10293,Supplies & Services           ,Services                      ,DF11,Counsel's Fees                          ,712.5,20/02/2014,REV,REDACTED
778,Central Services,SupS Legal,Sutton Legal                            ,E10293,Supplies & Services           ,Services                      ,DF11,Counsel's Fees                          ,1480,25/02/2014,REV,REDACTED
779,Central Services,SupS Legal,Sutton Legal                            ,E10293,Supplies & Services           ,Services                      ,DF11,Counsel's Fees                          ,1575,30/11/2013,REV,REDACTED
780,Central Services,SupS Legal,Sutton Legal                            ,E10293,Supplies & Services           ,Services                      ,DF11,Counsel's Fees                          ,2636.25,17/02/2014,REV,REDACTED
781,Central Services,SupS Legal,Sutton Legal                            ,E10293,Supplies & Services           ,Services                      ,DF11,Counsel's Fees                          ,665,25/02/2014,REV,REDACTED
782,Central Services,SupS Legal,Sutton Legal                            ,E10293,Supplies & Services           ,Services                      ,DF11,Counsel's Fees                          ,3037.5,15/01/2014,REV,REDACTED
783,Central Services,SupS Legal,Sutton Legal                            ,E10293,Supplies & Services           ,Services                      ,DF11,Counsel's Fees                          ,902.5,07/03/2014,REV,REDACTED
784,Central Services,SupS Legal,Sutton Legal                            ,E10293,Supplies & Services           ,Services                      ,DF11,Counsel's Fees                          ,1237.5,15/01/2014,REV,REDACTED
785,Central Services,SupS Legal,Sutton Legal                            ,E10293,Supplies & Services           ,Services                      ,DF11,Counsel's Fees                          ,1092.64,11/02/2014,REV,REDACTED
786,Central Services,SupS Legal,Sutton Legal                            ,E10293,Supplies & Services           ,Services                      ,DF11,Counsel's Fees                          ,570,07/03/2014,REV,REDACTED
787,Central Services,SupS Legal,Sutton Legal                            ,E10293,Supplies & Services           ,Services                      ,DF11,Counsel's Fees                          ,997.5,03/03/2014,REV,REDACTED
788,Central Services,SupS Legal,Sutton Legal                            ,E10293,Supplies & Services           ,Services                      ,DF11,Counsel's Fees                          ,525,13/12/2013,REV,REDACTED
789,Central Services,SupS Legal,Sutton Legal                            ,E10293,Supplies & Services           ,Services                      ,DF11,Counsel's Fees                          ,775,25/02/2014,REV,REDACTED
790,Central Services,SupS Legal,Sutton Legal                            ,E10293,Supplies & Services           ,Services                      ,DF11,Counsel's Fees                          ,712.5,20/02/2014,REV,REDACTED
791,Central Services,SupS Legal,Sutton Legal                            ,E10293,Supplies & Services           ,Services                      ,DF11,Counsel's Fees                          ,1757.5,31/01/2014,REV,REDACTED
792,Central Services,SupS Legal,Sutton Legal                            ,E10293,Supplies & Services           ,Services                      ,DF11,Counsel's Fees                          ,1803,26/03/2014,REV,REDACTED
793,Central Services,SupS Legal,Sutton Legal                            ,E10293,Supplies & Services           ,Services                      ,DF11,Counsel's Fees                          ,600,25/02/2014,REV,REDACTED
794,Central Services,SupS Legal,Sutton Legal                            ,E10293,Supplies & Services           ,Services                      ,DF11,Counsel's Fees                          ,720,09/01/2014,REV,REDACTED
795,Central Services,SupS Legal,Sutton Legal                            ,E10293,Supplies & Services           ,Services                      ,DF11,Counsel's Fees                          ,570,20/02/2014,REV,REDACTED
796,Central Services,SupS Legal,Sutton Legal                            ,E10293,Supplies & Services           ,Services                      ,DF11,Counsel's Fees                          ,665,20/02/2014,REV,REDACTED
797,Central Services,SupS Legal,Sutton Legal                            ,E10293,Supplies & Services           ,Services                      ,DF11,Counsel's Fees                          ,712,04/02/2014,REV,REDACTED
798,Central Services,SupS Legal,Sutton Legal                            ,E10293,Supplies & Services           ,Services                      ,DF14,Doctors and Other Fees                  ,2105,10/02/2014,REV,REDACTED
799,Central Services,SupS Legal,Sutton Legal                            ,E10293,Supplies & Services           ,Services                      ,DF14,Doctors and Other Fees                  ,2216.8,16/12/2013,REV,CF SOCIAL WORK                
800,Central Services,SupS Legal,Sutton Legal                            ,E10293,Supplies & Services           ,Services                      ,DF14,Doctors and Other Fees                  ,2719.6,06/03/2014,REV,CF SOCIAL WORK                
801,Central Services,SupS Legal,Sutton Legal                            ,E10293,Supplies & Services           ,Services                      ,DF14,Doctors and Other Fees                  ,3548.27,06/01/2014,REV,REDACTED
802,Central Services,SupS Legal,Sutton Legal                            ,E10293,Supplies & Services           ,Services                      ,DF95,Services from Provider                  ,1000,20/01/2014,REV,SYMBOL FAMILY SUPPORT SERVICES
803,Central Services,SupS Legal,Sutton Legal                            ,E10293,Supplies & Services           ,Services                      ,DF95,Services from Provider                  ,1000,30/12/2013,REV,SYMBOL FAMILY SUPPORT SERVICES
804,Central Services,SupS Legal,Sutton Legal                            ,E10293,Supplies & Services           ,Services                      ,DF95,Services from Provider                  ,1000,06/03/2014,REV,SYMBOL FAMILY SUPPORT SERVICES
805,Central Services,SupS IT,AD Business Improvement,E14358,Employees                     ,Direct Employee Expenses      ,AA17,Agency Staff & Casual Paymts            ,5400,31/01/2014,REV,REDACTED
806,Central Services,SupS IT,AD Business Improvement,E14358,Employees                     ,Direct Employee Expenses      ,AA17,Agency Staff & Casual Paymts            ,2400,31/01/2014,REV,REDACTED
807,Central Services,SupS IT,Corp Saving-Print Strategy,E14359,Supplies & Services           ,Equip Furniture/Materials     ,DA77,Photocopier Rental                      ,2947.5,28/02/2014,REV,ALTODIGITAL NETWORKS LTD      
808,Central Services,SupS IT,Corp Saving-Print Strategy,E14359,Supplies & Services           ,Equip Furniture/Materials     ,DA77,Photocopier Rental                      ,31918.16,28/02/2014,REV,ALTODIGITAL NETWORKS LTD      
809,Central Services,SupS IT,Corp Saving-Print Strategy,E14359,Supplies & Services           ,Prntng Stnry Gen Off Exp      ,DE06,MULTI-FUNCTIONAL PRINTERS               ,41360.98,28/02/2014,REV,ALTODIGITAL NETWORKS LTD      
810,Central Services,SupS IT,BI IT Projects,E14360,Employees                     ,Direct Employee Expenses      ,AA17,Agency Staff & Casual Paymts            ,1500,24/02/2014,REV,REDACTED
811,Central Services,SupS IT,BI IT Projects,E14360,Employees                     ,Direct Employee Expenses      ,AA17,Agency Staff & Casual Paymts            ,6861.09,03/03/2014,REV,REDACTED
812,Central Services,SupS IT,BI IT Projects,E14360,Employees                     ,Direct Employee Expenses      ,AA17,Agency Staff & Casual Paymts            ,3000.2,26/03/2014,REV,REDACTED
813,Central Services,SupS IT,BI IT Projects,E14360,Employees                     ,Direct Employee Expenses      ,AA17,Agency Staff & Casual Paymts            ,4500,24/03/2014,REV,REDACTED
814,Central Services,SupS IT,BI IT Projects,E14360,Employees                     ,Direct Employee Expenses      ,AA17,Agency Staff & Casual Paymts            ,4500,17/02/2014,REV,REDACTED
815,Central Services,SupS IT,BI IT Projects,E14360,Employees                     ,Indirect Employee Expenses    ,AB02,Recruitment Adverts                     ,1730,11/03/2014,REV,PENNA COMMUNICATIONS (NO 2 A/C
816,Central Services,SupS IT,BI IT Projects,E14360,Supplies & Services           ,Services                      ,DF03,Consultants                             ,3500,27/01/2014,REV,PRACTICUS                     
817,Central Services,SupS IT,BI IT Projects,E14360,Supplies & Services           ,Comms and Computing           ,DG08,Computer Hardware                       ,674.78,28/01/2014,REV,SPECIALIST COMPUTER CENT. PLC 
818,Central Services,SupS IT,BI IT Projects,E14360,Supplies & Services           ,Comms and Computing           ,DG08,Computer Hardware                       ,4026.5,28/01/2014,REV,SPECIALIST COMPUTER CENT. PLC 
819,Central Services,SupS IT,AD I&T,E14363,Employees                     ,Direct Employee Expenses      ,AA17,Agency Staff & Casual Paymts            ,2062.5,04/03/2014,REV,DGH RECRUITMENT LTD           
820,Central Services,SupS IT,AD I&T,E14363,Employees                     ,Direct Employee Expenses      ,AA17,Agency Staff & Casual Paymts            ,1875,19/02/2014,REV,DGH RECRUITMENT LTD           
821,Central Services,SupS IT,AD I&T,E14363,Employees                     ,Direct Employee Expenses      ,AA17,Agency Staff & Casual Paymts            ,1875,12/02/2014,REV,DGH RECRUITMENT LTD           
822,Central Services,SupS IT,AD I&T,E14363,Employees                     ,Direct Employee Expenses      ,AA17,Agency Staff & Casual Paymts            ,11700,25/03/2014,REV,REDACTED
823,Central Services,SupS IT,AD I&T,E14363,Employees                     ,Direct Employee Expenses      ,AA17,Agency Staff & Casual Paymts            ,2062.5,11/02/2014,REV,DGH RECRUITMENT LTD           
824,Central Services,SupS IT,AD I&T,E14363,Employees                     ,Direct Employee Expenses      ,AA17,Agency Staff & Casual Paymts            ,2062.5,26/03/2014,REV,DGH RECRUITMENT LTD           
825,Central Services,SupS IT,AD I&T,E14363,Employees                     ,Direct Employee Expenses      ,AA17,Agency Staff & Casual Paymts            ,1500,12/03/2014,REV,DGH RECRUITMENT LTD           
826,Central Services,SupS IT,AD I&T,E14363,Employees                     ,Direct Employee Expenses      ,AA17,Agency Staff & Casual Paymts            ,11700,27/02/2014,REV,REDACTED
827,Central Services,SupS IT,AD I&T,E14363,Employees                     ,Direct Employee Expenses      ,AA17,Agency Staff & Casual Paymts            ,1875,26/03/2014,REV,DGH RECRUITMENT LTD           
828,Central Services,SupS IT,AD I&T,E14363,Employees                     ,Direct Employee Expenses      ,AA17,Agency Staff & Casual Paymts            ,2062.5,11/03/2014,REV,DGH RECRUITMENT LTD           
829,Central Services,SupS IT,AD I&T,E14363,Employees                     ,Direct Employee Expenses      ,AA17,Agency Staff & Casual Paymts            ,1875,26/02/2014,REV,DGH RECRUITMENT LTD           
830,Central Services,SupS IT,AD I&T,E14363,Employees                     ,Direct Employee Expenses      ,AA17,Agency Staff & Casual Paymts            ,2062.5,25/02/2014,REV,DGH RECRUITMENT LTD           
831,Central Services,SupS IT,AD I&T,E14363,Employees                     ,Direct Employee Expenses      ,AA17,Agency Staff & Casual Paymts            ,2062.5,18/02/2014,REV,DGH RECRUITMENT LTD           
832,Central Services,SupS IT,AD I&T,E14363,Employees                     ,Direct Employee Expenses      ,AA17,Agency Staff & Casual Paymts            ,1875,05/03/2014,REV,DGH RECRUITMENT LTD           
833,Central Services,SupS IT,Systems & Projects,E14366,Employees                     ,Direct Employee Expenses      ,AA17,Agency Staff & Casual Paymts            ,5942.8,12/03/2014,REV,REDACTED
834,Central Services,SupS IT,Systems & Projects,E14366,Employees                     ,Direct Employee Expenses      ,AA17,Agency Staff & Casual Paymts            ,1237.5,07/03/2014,REV,ASHTON CONSULTING (UK) LTD    
835,Central Services,SupS IT,Systems & Projects,E14366,Employees                     ,Direct Employee Expenses      ,AA17,Agency Staff & Casual Paymts            ,3565.68,31/01/2014,REV,REDACTED
836,Central Services,SupS IT,Systems & Projects,E14366,Employees                     ,Direct Employee Expenses      ,AA17,Agency Staff & Casual Paymts            ,1237.5,14/02/2014,REV,ASHTON CONSULTING (UK) LTD    
837,Central Services,SupS IT,Systems & Projects,E14366,Employees                     ,Direct Employee Expenses      ,AA17,Agency Staff & Casual Paymts            ,1237.5,21/02/2014,REV,ASHTON CONSULTING (UK) LTD    
838,Central Services,SupS IT,Systems & Projects,E14366,Employees                     ,Direct Employee Expenses      ,AA17,Agency Staff & Casual Paymts            ,1000,21/03/2014,REV,ASHTON CONSULTING (UK) LTD    
839,Central Services,SupS IT,Systems & Projects,E14366,Employees                     ,Direct Employee Expenses      ,AA17,Agency Staff & Casual Paymts            ,990,14/03/2014,REV,ASHTON CONSULTING (UK) LTD    
840,Central Services,SupS IT,Systems & Projects,E14366,Supplies & Services           ,Services                      ,DF03,Consultants                             ,990,28/02/2014,REV,ASHTON CONSULTING (UK) LTD    
841,Central Services,SupS IT,Systems & Projects,E14366,Supplies & Services           ,Comms and Computing           ,DG02,Software Licences                       ,46881.94,25/11/2013,REV,PROACTIS GROUP LTD            
842,Central Services,SupS IT,Systems & Projects,E14366,Supplies & Services           ,Comms and Computing           ,DG15,Network Maintenance                     ,36941.19,07/03/2014,REV,CIVICA UK LIMITED             
843,Central Services,SupS IT,Systems & Projects,E14366,Supplies & Services           ,Comms and Computing           ,DG15,Network Maintenance                     ,15265.3,14/02/2014,REV,CIVICA UK LIMITED             
844,Central Services,SupS IT,Systems & Projects,E14366,Supplies & Services           ,Comms and Computing           ,DG50,Other IT Expenditure                    ,12000,17/03/2014,REV,DUE NORTH LTD                 
845,Central Services,SupS IT,Systems & Projects,E14366,Supplies & Services           ,Comms and Computing           ,DG50,Other IT Expenditure                    ,1522.82,17/01/2014,REV,CIVICA UK LIMITED             
846,Central Services,SupS IT,Systems & Projects,E14366,Supplies & Services           ,Comms and Computing           ,DG63,Software Licences - Data                ,748.77,17/01/2014,REV,CIVICA UK LIMITED             
847,Central Services,SupS IT,Operations & Telecomms,E14367,Employees                     ,Direct Employee Expenses      ,AA17,Agency Staff & Casual Paymts            ,4410,28/02/2014,REV,REDACTED
848,Central Services,SupS IT,Operations & Telecomms,E14367,Premises Related Expenditure  ,RepairsAlterations&MtceOfBldgs,BA05,DDM - Electrical                        ,1456.45,11/03/2014,REV,DATA TECHNIQUES               
849,Central Services,SupS IT,Operations & Telecomms,E14367,Premises Related Expenditure  ,RepairsAlterations&MtceOfBldgs,BA05,DDM - Electrical                        ,1522.14,11/03/2014,REV,DATA TECHNIQUES               
850,Central Services,SupS IT,Operations & Telecomms,E14367,Supplies & Services           ,Comms and Computing           ,DG15,Network Maintenance                     ,525.75,21/02/2014,REV,NET-CTRL                      
851,Central Services,SupS IT,Operations & Telecomms,E14367,Supplies & Services           ,Comms and Computing           ,DG15,Network Maintenance                     ,1803.45,27/03/2014,REV,AXIAL SYSTEMS                 
852,Central Services,SupS IT,Operations & Telecomms,E14367,Supplies & Services           ,Comms and Computing           ,DG15,Network Maintenance                     ,4527.81,27/03/2014,REV,AXIAL SYSTEMS                 
853,Central Services,SupS IT,Operations & Telecomms,E14367,Supplies & Services           ,Comms and Computing           ,DG15,Network Maintenance                     ,655.25,21/02/2014,REV,NET-CTRL                      
854,Central Services,SupS IT,Operations & Telecomms,E14367,Supplies & Services           ,Comms and Computing           ,DG15,Network Maintenance                     ,2719.92,22/10/2013,REV,VIRGIN MEDIA PAYMENTS LIMITED 
855,Central Services,SupS IT,Operations & Telecomms,E14367,Supplies & Services           ,Comms and Computing           ,DG15,Network Maintenance                     ,655.25,21/02/2014,REV,NET-CTRL                      
856,Central Services,SupS IT,Operations & Telecomms,E14367,Supplies & Services           ,Comms and Computing           ,DG15,Network Maintenance                     ,3021,26/03/2014,REV,LONDON GRID FOR LEARNING TRUST
857,Central Services,SupS IT,Operations & Telecomms,E14367,Supplies & Services           ,Comms and Computing           ,DG15,Network Maintenance                     ,5135,26/03/2014,REV,LONDON GRID FOR LEARNING TRUST
858,Central Services,SupS IT,Operations & Telecomms,E14367,Supplies & Services           ,Comms and Computing           ,DG54,Corporate Telephones                    ,2200,01/02/2014,REV,VIRGIN MEDIA PAYMENTS LIMITED 
859,Central Services,SupS IT,Operations & Telecomms,E14367,Supplies & Services           ,Comms and Computing           ,DG54,Corporate Telephones                    ,672.55,19/08/2013,REV,NEC (UK) LTD                  
860,Central Services,SupS IT,Operations & Telecomms,E14367,Supplies & Services           ,Comms and Computing           ,DG54,Corporate Telephones                    ,4027.36,19/08/2013,REV,NEC (UK) LTD                  
861,Central Services,SupS IT,Operations & Telecomms,E14367,Supplies & Services           ,Comms and Computing           ,DG54,Corporate Telephones                    ,8952.43,04/03/2014,REV,T MOBILE (UK)                 
862,Central Services,SupS IT,Operations & Telecomms,E14367,Supplies & Services           ,Comms and Computing           ,DG54,Corporate Telephones                    ,7233.37,26/03/2014,REV,EVERYTHING EVERYWHERE         
863,Central Services,SupS IT,Operations & Telecomms,E14367,Supplies & Services           ,Comms and Computing           ,DG54,Corporate Telephones                    ,2200,01/02/2014,REV,VIRGIN MEDIA PAYMENTS LIMITED 
864,Central Services,SupS IT,Operations & Telecomms,E14367,Supplies & Services           ,Comms and Computing           ,DG54,Corporate Telephones                    ,62339.44,27/02/2014,REV,BRITISH TELECOMMUNICATIONS PLC
865,Central Services,SupS IT,Operations & Telecomms,E14367,Supplies & Services           ,Comms and Computing           ,DG54,Corporate Telephones                    ,2967.25,02/03/2014,REV,COLT TELECOMMUNICATIONS       
866,Central Services,SupS IT,Operations & Telecomms,E14367,Supplies & Services           ,Comms and Computing           ,DG54,Corporate Telephones                    ,4837.48,02/03/2014,REV,BRITISH TELECOMMUNICATIONS PLC
867,Central Services,SupS IT,Operations & Telecomms,E14367,Supplies & Services           ,Comms and Computing           ,DG54,Corporate Telephones                    ,2200,01/02/2014,REV,VIRGIN MEDIA PAYMENTS LIMITED 
868,Central Services,SupS IT,Operations & Telecomms,E14367,Supplies & Services           ,Comms and Computing           ,DG54,Corporate Telephones                    ,2200,01/02/2014,REV,VIRGIN MEDIA PAYMENTS LIMITED 
869,Central Services,SupS IT,Operations & Telecomms,E14367,Supplies & Services           ,Comms and Computing           ,DG54,Corporate Telephones                    ,1066.68,28/02/2014,REV,O2 (UK) LIMITED               
870,Central Services,SupS IT,Distributed Services,E14368,Supplies & Services           ,Comms and Computing           ,DG63,Software Licences - Data                ,2804,10/03/2014,REV,TIMEWATCH PLC                 
871,Central Services,SupS IT,Distributed Services,E14368,Supplies & Services           ,Comms and Computing           ,DG63,Software Licences - Data                ,5000,28/02/2014,REV,QUOVADIS ONLINE SECURITY LTD  
872,Central Services,SupS IT,Distributed Services,E14368,Supplies & Services           ,Comms and Computing           ,DG63,Software Licences - Data                ,786.54,15/01/2014,REV,NEC (UK) LTD                  
873,Central Services,SupS IT,Distributed Services,E14368,Supplies & Services           ,Comms and Computing           ,DG63,Software Licences - Data                ,10800,19/03/2014,REV,CAPITA BUSINESS SERVICES LTD  
874,Central Services,SupS IT,Distributed Services,E14368,Supplies & Services           ,Comms and Computing           ,DG65,Application Licences                    ,16380,28/03/2014,REV,SOFTCAT LTD                   
875,Central Services,SupS IT,Corp Saving-IT Consolidation,E14370,Premises Related Expenditure  ,RepairsAlterations&MtceOfBldgs,BA01,DDM - General Building                  ,9740.11,11/03/2014,REV,SALTASH ENTERPRISES LTD       
876,Central Services,SupS IT,Corp Saving-IT Consolidation,E14370,Premises Related Expenditure  ,RepairsAlterations&MtceOfBldgs,BA01,DDM - General Building                  ,5219.46,21/03/2014,REV,SALTASH ENTERPRISES LTD       
877,Central Services,SupS IT,Corp Saving-IT Consolidation,E14370,Premises Related Expenditure  ,RepairsAlterations&MtceOfBldgs,BA01,DDM - General Building                  ,3400,20/12/2013,REV,STP SOLUTIONS                 
878,Central Services,SupS IT,Corp Saving-IT Consolidation,E14370,Premises Related Expenditure  ,RepairsAlterations&MtceOfBldgs,BA01,DDM - General Building                  ,14537.5,21/03/2014,REV,SALTASH ENTERPRISES LTD       
879,Central Services,SupS IT,Corp Saving-IT Consolidation,E14370,Premises Related Expenditure  ,RepairsAlterations&MtceOfBldgs,BA01,DDM - General Building                  ,8300,28/03/2014,REV,SALTASH ENTERPRISES LTD       
880,Central Services,SupS IT,Corp Saving-IT Consolidation,E14370,Premises Related Expenditure  ,RepairsAlterations&MtceOfBldgs,BA01,DDM - General Building                  ,10375,21/03/2014,REV,SALTASH ENTERPRISES LTD       
881,Central Services,SupS IT,Corp Saving-IT Consolidation,E14370,Premises Related Expenditure  ,RepairsAlterations&MtceOfBldgs,BA01,DDM - General Building                  ,6750,21/03/2014,REV,SALTASH ENTERPRISES LTD       
882,Central Services,SupS IT,Corp Saving-IT Consolidation,E14370,Premises Related Expenditure  ,RepairsAlterations&MtceOfBldgs,BA01,DDM - General Building                  ,9818.75,21/03/2014,REV,SALTASH ENTERPRISES LTD       
883,Central Services,SupS IT,Corp Saving-IT Consolidation,E14370,Premises Related Expenditure  ,RepairsAlterations&MtceOfBldgs,BA01,DDM - General Building                  ,5187.5,21/03/2014,REV,SALTASH ENTERPRISES LTD       
884,Central Services,SupS IT,Corp Saving-IT Consolidation,E14370,Premises Related Expenditure  ,RepairsAlterations&MtceOfBldgs,BA01,DDM - General Building                  ,9500,28/03/2014,REV,SALTASH ENTERPRISES LTD       
885,Central Services,SupS IT,Corp Saving-IT Consolidation,E14370,Premises Related Expenditure  ,RepairsAlterations&MtceOfBldgs,BA01,DDM - General Building                  ,4987,28/03/2014,REV,SALTASH ENTERPRISES LTD       
886,Central Services,SupS IT,Corp Saving-IT Consolidation,E14370,Premises Related Expenditure  ,RepairsAlterations&MtceOfBldgs,BA01,DDM - General Building                  ,8711.56,07/03/2014,REV,SALTASH ENTERPRISES LTD       
887,Central Services,SupS IT,Corp Saving-IT Consolidation,E14370,Premises Related Expenditure  ,RepairsAlterations&MtceOfBldgs,BA01,DDM - General Building                  ,8300,03/03/2014,REV,SALTASH ENTERPRISES LTD       
888,Central Services,SupS IT,Corp Saving-IT Consolidation,E14370,Premises Related Expenditure  ,RepairsAlterations&MtceOfBldgs,BA01,DDM - General Building                  ,5520,11/03/2014,REV,SALTASH ENTERPRISES LTD       
889,Central Services,SupS IT,Corp Saving-IT Consolidation,E14370,Premises Related Expenditure  ,RepairsAlterations&MtceOfBldgs,BA01,DDM - General Building                  ,13115,21/03/2014,REV,SALTASH ENTERPRISES LTD       
890,Central Services,SupS IT,Corp Saving-IT Consolidation,E14370,Premises Related Expenditure  ,RepairsAlterations&MtceOfBldgs,BA01,DDM - General Building                  ,3152.5,26/03/2014,REV,SALTASH ENTERPRISES LTD       
891,Central Services,SupS IT,Corp Saving-IT Consolidation,E14370,Premises Related Expenditure  ,RepairsAlterations&MtceOfBldgs,BA01,DDM - General Building                  ,7052.02,27/03/2014,REV,SALTASH ENTERPRISES LTD       
892,Central Services,SupS IT,No longer used,E14371,Employees                     ,Direct Employee Expenses      ,AA17,Agency Staff & Casual Paymts            ,1812,04/03/2014,REV,REDACTED
893,Central Services,SupS IT,No longer used,E14371,Employees                     ,Direct Employee Expenses      ,AA17,Agency Staff & Casual Paymts            ,1183,04/03/2014,REV,REDACTED
894,Central Services,SupS IT,No longer used,E14371,Employees                     ,Direct Employee Expenses      ,AA17,Agency Staff & Casual Paymts            ,4266.72,26/02/2014,REV,REDACTED
895,Central Services,SupS IT,No longer used,E14371,Supplies & Services           ,Services                      ,DF03,Consultants                             ,10700,04/03/2014,REV,V4 SERVICES LIMITED           
896,Central Services,SupS IT,No longer used,E14371,Supplies & Services           ,Services                      ,DF03,Consultants                             ,3825,28/02/2014,REV,REDQUADRANT LTD               
897,Central Services,SupS IT,No longer used,E14371,Supplies & Services           ,Services                      ,DF03,Consultants                             ,10700,05/02/2014,REV,V4 SERVICES LIMITED           
898,Central Services,SupS IT,No longer used,E14371,Supplies & Services           ,Services                      ,DF03,Consultants                             ,1225,22/01/2014,REV,REDQUADRANT LTD               
899,Cultural Env Reg&Plan Services,Housing Standards,Shared Regulatory Service Proj          ,G00091,Supplies & Services           ,Services                      ,DF03,Consultants                             ,12600,28/02/2014,REV,GATENBYSANDERSON LIMITED      
900,Cultural Env Reg&Plan Services,Mgt & Support (Env),Senior Mgt. - E.S.C.,G00100,Employees                     ,Direct Employee Expenses      ,AA96,SALARY SACRIFICE (TEACHERS)             ,833.33,04/03/2014,REV,F.W.EVANS CYCLES (UK) LTD.    
901,Cultural Env Reg&Plan Services,Mgt & Support (Env),Senior Mgt. - E.S.C.,G00100,Supplies & Services           ,Services                      ,DF11,Counsel's fees                          ,850,02/01/2014,REV,REDACTED
902,Cultural Env Reg&Plan Services,BC Regs & Other not split,HoS - PP&D                              ,G00111,Supplies & Services           ,Services                      ,DF11,Counsel's Fees                          ,500,07/02/2014,REV,GERALD GOURIET QC             
903,Highways & Transport Services,TRAF & HWYS MGMNT & SUPPORT,TRAF & HWYS MGMNT & SUPPORT,G00115,Employees                     ,Direct Employee Expenses      ,AA17,Agency Staff & Casual Paymts            ,2340,13/03/2014,REV,REDACTED
904,Highways & Transport Services,Repair prin/oth rds not split,Walk Sheets,G00127,Third Party Payments          ,Private Contractors           ,EH10,Contract Payments                       ,17808.79,28/03/2014,REV,FM CONWAY LTD                 
905,Highways & Transport Services,Repair prin/oth rds not split,Walk Sheets,G00127,Third Party Payments          ,Private Contractors           ,EH10,Contract Payments                       ,26816.38,28/03/2014,REV,FM CONWAY LTD                 
906,Highways & Transport Services,Repair prin/oth rds not split,Walk Sheets,G00127,Third Party Payments          ,Private Contractors           ,EH10,Contract Payments                       ,9937.99,28/03/2014,REV,FM CONWAY LTD                 
907,Highways & Transport Services,Repair prin/oth rds not split,Walk Sheets,G00127,Third Party Payments          ,Private Contractors           ,EH56,Carriageway/Fway Maint                  ,2650.19,27/03/2014,REV,FM CONWAY LTD                 
908,Highways & Transport Services,Repair prin/oth rds not split,Walk Sheets,G00127,Third Party Payments          ,Private Contractors           ,EH56,Carriageway/Fway Maint                  ,4955.44,27/03/2014,REV,FM CONWAY LTD                 
909,Highways & Transport Services,Repair prin/oth rds not split,Walk Sheets,G00127,Third Party Payments          ,Private Contractors           ,EH56,Carriageway/Fway Maint                  ,12418.71,27/03/2014,REV,FM CONWAY LTD                 
910,Highways & Transport Services,Repair prin/oth rds not split,Walk Sheets,G00127,Third Party Payments          ,Private Contractors           ,EH56,Carriageway/Fway Maint                  ,5636.33,10/03/2014,REV,FM CONWAY LTD                 
911,Highways & Transport Services,Repair prin/oth rds not split,Walk Sheets,G00127,Third Party Payments          ,Private Contractors           ,EH56,Carriageway/Fway Maint                  ,3580.56,27/03/2014,REV,FM CONWAY LTD                 
912,Highways & Transport Services,Repair prin/oth rds not split,Walk Sheets,G00127,Third Party Payments          ,Private Contractors           ,EH56,Carriageway/Fway Maint                  ,6484.69,27/03/2014,REV,FM CONWAY LTD                 
913,Highways & Transport Services,Repair prin/oth rds not split,Walk Sheets,G00127,Third Party Payments          ,Private Contractors           ,EH56,Carriageway/Fway Maint                  ,8099.81,27/03/2014,REV,FM CONWAY LTD                 
914,Highways & Transport Services,Repair prin/oth rds not split,Walk Sheets,G00127,Third Party Payments          ,Private Contractors           ,EH56,Carriageway/Fway Maint                  ,8919.66,27/03/2014,REV,FM CONWAY LTD                 
915,Highways & Transport Services,Repair prin/oth rds not split,Walk Sheets,G00127,Third Party Payments          ,Private Contractors           ,EH56,Carriageway/Fway Maint                  ,1204.69,10/03/2014,REV,FM CONWAY LTD                 
916,Highways & Transport Services,Repair prin/oth rds not split,Walk Sheets,G00127,Third Party Payments          ,Private Contractors           ,EH56,Carriageway/Fway Maint                  ,12539.07,10/03/2014,REV,FM CONWAY LTD                 
917,Highways & Transport Services,Repair prin/oth rds not split,Walk Sheets,G00127,Third Party Payments          ,Private Contractors           ,EH56,Carriageway/Fway Maint                  ,672.77,27/03/2014,REV,FM CONWAY LTD                 
918,Highways & Transport Services,Repair prin/oth rds not split,Walk Sheets,G00127,Third Party Payments          ,Private Contractors           ,EH56,Carriageway/Fway Maint                  ,1240.26,27/03/2014,REV,FM CONWAY LTD                 
919,Highways & Transport Services,Repair prin/oth rds not split,Walk Sheets,G00127,Third Party Payments          ,Private Contractors           ,EH56,Carriageway/Fway Maint                  ,8376.57,27/03/2014,REV,FM CONWAY LTD                 
920,Highways & Transport Services,Repair prin/oth rds not split,Walk Sheets,G00127,Third Party Payments          ,Private Contractors           ,EH56,Carriageway/Fway Maint                  ,13022.02,27/03/2014,REV,FM CONWAY LTD                 
921,Highways & Transport Services,Repair prin/oth rds not split,Walk Sheets,G00127,Third Party Payments          ,Private Contractors           ,EH56,Carriageway/Fway Maint                  ,870.38,27/03/2014,REV,FM CONWAY LTD                 
922,Highways & Transport Services,Repair prin/oth rds not split,Walk Sheets,G00127,Third Party Payments          ,Private Contractors           ,EH56,Carriageway/Fway Maint                  ,1711.08,27/03/2014,REV,FM CONWAY LTD                 
923,Highways & Transport Services,Repair prin/oth rds not split,Walk Sheets,G00127,Third Party Payments          ,Private Contractors           ,EH56,Carriageway/Fway Maint                  ,5768.05,27/03/2014,REV,FM CONWAY LTD                 
924,Highways & Transport Services,Repair prin/oth rds not split,Walk Sheets,G00127,Third Party Payments          ,Private Contractors           ,EH56,Carriageway/Fway Maint                  ,6664.97,27/03/2014,REV,FM CONWAY LTD                 
925,Highways & Transport Services,Repair prin/oth rds not split,Walk Sheets,G00127,Third Party Payments          ,Private Contractors           ,EH56,Carriageway/Fway Maint                  ,1089.96,27/03/2014,REV,FM CONWAY LTD                 
926,Highways & Transport Services,Repair prin/oth rds not split,Walk Sheets,G00127,Third Party Payments          ,Private Contractors           ,EH56,Carriageway/Fway Maint                  ,1635.53,27/03/2014,REV,FM CONWAY LTD                 
927,Highways & Transport Services,Hwys/Rds (struct) not split,"Br., H'ways & Struct",G00128,Third Party Payments          ,Private Contractors           ,EH56,Carriageway/Fway Maint                  ,20825.05,27/03/2014,REV,FM CONWAY LTD                 
928,Highways & Transport Services,Hwys/Rds (struct) not split,"Br., H'ways & Struct",G00128,Third Party Payments          ,Private Contractors           ,EH56,Carriageway/Fway Maint                  ,1250,28/02/2014,REV,HYDER CONSULTING (UK) LTD     
929,Highways & Transport Services,Saf mtc prin/oth rds not split,Traffic Signs.,G00160,Third Party Payments          ,Private Contractors           ,EH02,Miscellaneous Hired Services            ,943.9,27/03/2014,REV,FM CONWAY LTD                 
930,Highways & Transport Services,Saf mtc prin/oth rds not split,Traffic Signs.,G00160,Third Party Payments          ,Private Contractors           ,EH02,Miscellaneous Hired Services            ,636.28,13/03/2014,REV,FM CONWAY LTD                 
931,Highways & Transport Services,Saf mtc prin/oth rds not split,Traffic Signs.,G00160,Third Party Payments          ,Private Contractors           ,EH02,Miscellaneous Hired Services            ,15000,27/03/2014,REV,FM CONWAY LTD                 
932,Highways & Transport Services,Transport Plg/Policy/Strategy,CPZ implementation & Consultat,G00211,Third Party Payments          ,Private Contractors           ,EH56,Carriageway/Fway Maint                  ,2277.06,13/03/2014,REV,FM CONWAY LTD                 
933,Highways & Transport Services,Transport Plg/Policy/Strategy,CPZ implementation & Consultat,G00211,Third Party Payments          ,Private Contractors           ,EH56,Carriageway/Fway Maint                  ,8586,20/03/2014,REV,PARKEON LTD                   
934,Highways & Transport Services,Transport Plg/Policy/Strategy,CPZ implementation & Consultat,G00211,Third Party Payments          ,Private Contractors           ,EH56,Carriageway/Fway Maint                  ,933,13/03/2014,REV,FM CONWAY LTD                 
935,Highways & Transport Services,Transport Plg/Policy/Strategy,CPZ implementation & Consultat,G00211,Third Party Payments          ,Private Contractors           ,EH56,Carriageway/Fway Maint                  ,1196.43,27/03/2014,REV,FM CONWAY LTD                 
936,Highways & Transport Services,Transport Plg/Policy/Strategy,CPZ implementation & Consultat,G00211,Third Party Payments          ,Private Contractors           ,EH56,Carriageway/Fway Maint                  ,31482,20/03/2014,REV,PARKEON LTD                   
937,Highways & Transport Services,,TFL funded non-capital schemes          ,G00212,Supplies & Services           ,Services                      ,DF03,Consultants                             ,2250,18/03/2014,REV,ATKINS LIMITED                
938,Highways & Transport Services,Traffic Management,Tr Man & Accid Sch,G00220,Employees                     ,Direct Employee Expenses      ,AA17,Agency Staff & Casual Paymts            ,6402.5,27/03/2014,REV,REDACTED
939,Highways & Transport Services,Street Lighting.,Street Lighting .,G00260,Premises Related Expenditure  ,Energy Costs                  ,BB02,Electricity                             ,-49252.77,03/02/2014,REV,SCOTTISHPOWER                 
940,Highways & Transport Services,Street Lighting.,Street Lighting .,G00260,Premises Related Expenditure  ,Energy Costs                  ,BB02,Electricity                             ,47697.91,25/02/2014,REV,SCOTTISHPOWER                 
941,Highways & Transport Services,Street Lighting.,Street Lighting .,G00260,Premises Related Expenditure  ,Energy Costs                  ,BB02,Electricity                             ,43082.08,03/03/2014,REV,SCOTTISHPOWER                 
942,Highways & Transport Services,Street Lighting.,Street Lighting .,G00260,Third Party Payments          ,Private Contractors           ,EH01,Miscellaneous Agency Services           ,14129.84,05/03/2014,REV,MAY GURNEY LTD T/A CARTLEDGE  
943,Highways & Transport Services,Street Lighting.,Street Lighting .,G00260,Third Party Payments          ,Private Contractors           ,EH01,Miscellaneous Agency Services           ,2928.78,20/03/2014,REV,MAY GURNEY LTD T/A CARTLEDGE  
944,Highways & Transport Services,Street Lighting.,Street Lighting .,G00260,Third Party Payments          ,Private Contractors           ,EH01,Miscellaneous Agency Services           ,614.07,20/03/2014,REV,MAY GURNEY LTD T/A CARTLEDGE  
945,Highways & Transport Services,Street Lighting.,Street Lighting .,G00260,Third Party Payments          ,Private Contractors           ,EH01,Miscellaneous Agency Services           ,3895.55,26/03/2014,REV,MAY GURNEY LTD T/A CARTLEDGE  
946,Highways & Transport Services,Street Lighting.,Street Lighting .,G00260,Third Party Payments          ,Private Contractors           ,EH01,Miscellaneous Agency Services           ,690.62,20/03/2014,REV,MAY GURNEY LTD T/A CARTLEDGE  
947,Highways & Transport Services,Street Lighting.,Street Lighting .,G00260,Third Party Payments          ,Private Contractors           ,EH01,Miscellaneous Agency Services           ,13987.7,24/03/2014,REV,MAY GURNEY LTD T/A CARTLEDGE  
948,Highways & Transport Services,Street Lighting.,Street Lighting .,G00260,Third Party Payments          ,Private Contractors           ,EH01,Miscellaneous Agency Services           ,615.03,28/02/2014,REV,MAY GURNEY LTD T/A CARTLEDGE  
949,Highways & Transport Services,Street Lighting.,Street Lighting .,G00260,Third Party Payments          ,Private Contractors           ,EH01,Miscellaneous Agency Services           ,642,10/03/2014,REV,UK POWER NETWORKS (OPERATIONS)
950,Highways & Transport Services,Street Lighting.,Street Lighting .,G00260,Third Party Payments          ,Private Contractors           ,EH01,Miscellaneous Agency Services           ,9408.63,24/03/2014,REV,MAY GURNEY LTD T/A CARTLEDGE  
951,Highways & Transport Services,Street Lighting.,Street Lighting .,G00260,Third Party Payments          ,Private Contractors           ,EH01,Miscellaneous Agency Services           ,1262.41,18/02/2014,REV,MAY GURNEY LTD T/A CARTLEDGE  
952,Highways & Transport Services,Street Lighting.,Street Lighting .,G00260,Third Party Payments          ,Private Contractors           ,EH01,Miscellaneous Agency Services           ,1422.35,20/03/2014,REV,MAY GURNEY LTD T/A CARTLEDGE  
953,Highways & Transport Services,Street Lighting.,Street Lighting .,G00260,Third Party Payments          ,Private Contractors           ,EH01,Miscellaneous Agency Services           ,1037.03,28/02/2014,REV,MAY GURNEY LTD T/A CARTLEDGE  
954,Highways & Transport Services,Street Lighting.,Street Lighting .,G00260,Third Party Payments          ,Private Contractors           ,EH01,Miscellaneous Agency Services           ,1663.39,17/02/2014,REV,MAY GURNEY LTD T/A CARTLEDGE  
955,Highways & Transport Services,Street Lighting.,Street Lighting .,G00260,Third Party Payments          ,Private Contractors           ,EH01,Miscellaneous Agency Services           ,659,18/03/2014,REV,UK POWER NETWORKS (OPERATIONS)
956,Highways & Transport Services,Street Lighting.,Street Lighting .,G00260,Third Party Payments          ,Private Contractors           ,EH01,Miscellaneous Agency Services           ,1699.15,18/02/2014,REV,MAY GURNEY LTD T/A CARTLEDGE  
957,Highways & Transport Services,Street Lighting.,Street Lighting .,G00260,Third Party Payments          ,Private Contractors           ,EH01,Miscellaneous Agency Services           ,547.34,28/02/2014,REV,MAY GURNEY LTD T/A CARTLEDGE  
958,Highways & Transport Services,Street Lighting.,Street Lighting .,G00260,Third Party Payments          ,Private Contractors           ,EH01,Miscellaneous Agency Services           ,4156.43,28/02/2014,REV,MAY GURNEY LTD T/A CARTLEDGE  
959,Highways & Transport Services,Street Lighting.,Street Lighting .,G00260,Third Party Payments          ,Private Contractors           ,EH01,Miscellaneous Agency Services           ,1828.06,24/03/2014,REV,MAY GURNEY LTD T/A CARTLEDGE  
960,Highways & Transport Services,Street Lighting.,Street Lighting .,G00260,Third Party Payments          ,Private Contractors           ,EH01,Miscellaneous Agency Services           ,563,05/03/2014,REV,UK POWER NETWORKS (OPERATIONS)
961,Highways & Transport Services,Street Lighting.,Street Lighting .,G00260,Third Party Payments          ,Private Contractors           ,EH01,Miscellaneous Agency Services           ,642,05/03/2014,REV,UK POWER NETWORKS (OPERATIONS)
962,Highways & Transport Services,Off-street parking,Car Parks (Unloc),G00291,Premises Related Expenditure  ,RepairsAlterations&MtceOfBldgs,BA06,REPAIRS & MAINTENANCE GENERAL           ,539.61,20/03/2014,REV,MAY GURNEY LTD T/A CARTLEDGE  
963,Highways & Transport Services,Off-street parking,Car Parks (Unloc),G00291,Third Party Payments          ,Other Agencies                ,EJ58,Parking Cttee for London                ,3750,21/03/2014,REV,IMPERIAL CIVIL ENFORC.SOLUT.  
964,Highways & Transport Services,Off-street parking,Coombe Lane,G00292,Premises Related Expenditure  ,Rents                         ,BC01,Miscellaneous Rents                     ,9562.5,19/02/2014,REV,CAPITA SYMONDS LTD            
965,Highways & Transport Services,Off-street parking,York Close CP,G00298,Premises Related Expenditure  ,Rents                         ,BC01,Miscellaneous Rents                     ,6092.1,05/03/2014,REV,TRANSPORT TRADING LTD PROP A/C
966,Highways & Transport Services,Off-street parking,York Close CP,G00298,Premises Related Expenditure  ,Rents                         ,BC01,Miscellaneous Rents                     ,24368.4,05/03/2014,REV,TRANSPORT TRADING LTD PROP A/C
967,Highways & Transport Services,Off-street parking,St. Georges Car Park EAST,G00300,Premises Related Expenditure  ,Rents                         ,BC01,Miscellaneous Rents                     ,702.78,18/02/2014,REV,LLOYDS BANK SF NOMINEES LTD   
968,Highways & Transport Services,Off-street parking,St. Georges Car Park WEST M/S,G00302,Premises Related Expenditure  ,Rents                         ,BC01,Miscellaneous Rents                     ,3310.39,18/02/2014,REV,SACKVILLE SPF IV (GP) NO 1 LTD
969,Highways & Transport Services,On-street parking,On Street Parking.,G00311,Premises Related Expenditure  ,RepairsAlterations&MtceOfBldgs,BA06,Repairs & Maintenance General           ,2303.37,27/03/2014,REV,FM CONWAY LTD                 
970,Highways & Transport Services,On-street parking,On Street Parking.,G00311,Premises Related Expenditure  ,RepairsAlterations&MtceOfBldgs,BA06,Repairs & Maintenance General           ,4216.47,27/03/2014,REV,FM CONWAY LTD                 
971,Highways & Transport Services,On-street parking,On Street Parking.,G00311,Premises Related Expenditure  ,RepairsAlterations&MtceOfBldgs,BA06,Repairs & Maintenance General           ,1786.9,27/03/2014,REV,FM CONWAY LTD                 
972,Highways & Transport Services,On-street parking,On Street Parking.,G00311,Premises Related Expenditure  ,RepairsAlterations&MtceOfBldgs,BA06,Repairs & Maintenance General           ,892.93,18/03/2014,REV,TEASDALE GROUP LTD            
973,Highways & Transport Services,On-street parking,On Street Parking.,G00311,Premises Related Expenditure  ,RepairsAlterations&MtceOfBldgs,BA06,Repairs & Maintenance General           ,5996.63,27/03/2014,REV,FM CONWAY LTD                 
974,Highways & Transport Services,Road Safety Education,Road Safety..,G00320,Supplies & Services           ,Grants and Subscriptions      ,DJ04,Subscriptions                           ,4000,05/03/2014,REV,OPEN CITY                     
975,Highways & Transport Services,Safe routes inc schl x patrol,DFT Child Pedestrian,G00324,Supplies & Services           ,Services                      ,DF03,Consultants                             ,1025,13/03/2014,REV,TRANSPORT INITIATIVES LLP     
976,Highways & Transport Services,Parking Enforcement not split,Civil Enforcement Officers,G00330,Premises Related Expenditure  ,Rents                         ,BC01,Miscellaneous Rents                     ,4377.5,11/03/2014,REV,WOODCOCK BROTHERS (WIMBLEDON) 
977,Highways & Transport Services,Parking Enforcement not split,Civil Enforcement Officers,G00330,Supplies & Services           ,Equip Furniture/Materials     ,DA04,Materials                               ,1199,26/02/2014,REV,JD ASSOCIATES                 
978,Highways & Transport Services,Parking Enforcement not split,Civil Enforcement Officers,G00330,Supplies & Services           ,Equip Furniture/Materials     ,DA09,Equip-Purchases                         ,877.5,03/03/2014,REV,QUARTIX                       
979,Highways & Transport Services,Parking Enforcement not split,Operational Running Costs,G00331,Third Party Payments          ,Other Agencies                ,EJ58,Parking Cttee for London                ,2075,07/03/2014,REV,VIGLEN LIMITED                
980,Highways & Transport Services,Repair prin/oth rds not split,Flood Risk Management,G00350,Supplies & Services           ,Services                      ,DF03,Consultants                             ,16798.5,19/03/2014,REV,URS INFRASTRUCTURE & ENV UK LT
981,Highways & Transport Services,Repair prin/oth rds not split,Flood Risk Management,G00350,Supplies & Services           ,Services                      ,DF03,Consultants                             ,39604.9,27/03/2014,REV,URS INFRASTRUCTURE & ENV UK LT
982,Highways & Transport Services,Repair prin/oth rds not split,Flood Risk Management,G00350,Supplies & Services           ,Services                      ,DF03,Consultants                             ,4001.44,19/03/2014,REV,URS INFRASTRUCTURE & ENV UK LT
983,Highways & Transport Services,Repair prin/oth rds not split,Flood Risk Management,G00350,Supplies & Services           ,Grants and Subscriptions      ,DJ04,Subscriptions                           ,1000,25/02/2014,REV,LONDON BOROUGH OF BARNET      
984,Highways & Transport Services,Hwys/Rds (struct) not split,NRSWA Permitting (LoPS),G00385,Employees                     ,Indirect Employee Expenses    ,AB57,External Training Costs                 ,1042,17/03/2014,REV,STREETWORK SOLUTIONS LTD      
985,Highways & Transport Services,Hwys/Rds (struct) not split,Footpath Crossings.,G00390,Third Party Payments          ,Private Contractors           ,EH56,Carriageway/Fway Maint                  ,2560.04,24/02/2014,REV,FM CONWAY LTD                 
986,Highways & Transport Services,Hwys/Rds (struct) not split,Footpath Crossings.,G00390,Third Party Payments          ,Private Contractors           ,EH56,Carriageway/Fway Maint                  ,1164.63,20/03/2014,REV,FM CONWAY LTD                 
987,Highways & Transport Services,Hwys/Rds (struct) not split,Footpath Crossings.,G00390,Third Party Payments          ,Private Contractors           ,EH56,Carriageway/Fway Maint                  ,992,10/03/2014,REV,UK POWER NETWORKS (OPERATIONS)
988,Highways & Transport Services,Hwys/Rds (struct) not split,Footpath Crossings.,G00390,Third Party Payments          ,Private Contractors           ,EH56,Carriageway/Fway Maint                  ,8811.94,27/03/2014,REV,FM CONWAY LTD                 
989,Cultural Env Reg&Plan Services,Street Clean - Not highways,Street Cleansing (Inc. Gully),G00492,Employees                     ,Direct Employee Expenses      ,AA17,Agency Staff & Casual Paymts            ,5255.83,11/03/2014,REV,COMMUNITY IMPACT ENTERPRISE   
990,Cultural Env Reg&Plan Services,Street Clean - Not highways,Street Cleansing (Inc. Gully),G00492,Employees                     ,Direct Employee Expenses      ,AA17,Agency Staff & Casual Paymts            ,8002.96,10/02/2014,REV,COMMUNITY IMPACT ENTERPRISE   
991,Cultural Env Reg&Plan Services,Street Clean - Not highways,Street Cleansing (Inc. Gully),G00492,Supplies & Services           ,Equip Furniture/Materials     ,DA08,Tools-Purchase                          ,839.42,05/03/2014,REV,BELL BRUSH                    
992,Cultural Env Reg&Plan Services,Street Clean - Not highways,Street Cleansing (Inc. Gully),G00492,Supplies & Services           ,Equip Furniture/Materials     ,DA31,Waste Sacks & Bags                      ,1918.08,27/02/2014,REV,CROMWELL POLYTHENE            
993,Cultural Env Reg&Plan Services,Street Clean - Not highways,Graffiti,G00495,Supplies & Services           ,Equip Furniture/Materials     ,DA04,Materials                               ,1214.5,24/01/2014,REV,TENSID UK PLC                 
994,Cultural Env Reg&Plan Services,Street Clean - Not highways,Graffiti,G00495,Supplies & Services           ,Equip Furniture/Materials     ,DA04,Materials                               ,957.6,08/01/2014,REV,GRAFFITIHOTLINE               
995,Cultural Env Reg&Plan Services,Street Clean - Not highways,Graffiti,G00495,Supplies & Services           ,Clothing Unfrms Laundry       ,DC02,Clothing & Uniforms                     ,650,13/01/2014,REV,SAFETY MANAGEMENT             
996,Cultural Env Reg&Plan Services,Waste Disposal (not separated),Waste Disposal .,G00550,Third Party Payments          ,Private Contractors           ,EH01,Dog Bin Disposal - Biffa                ,2110.16,15/02/2014,REV,BRITANNIA CREST RECYCLING LTD 
997,Cultural Env Reg&Plan Services,Waste Disposal (not separated),Waste Disposal .,G00550,Third Party Payments          ,Private Contractors           ,EH01,Dog Bin Disposal - Biffa                ,1569.2,08/03/2014,REV,BRITANNIA CREST RECYCLING LTD 
998,Cultural Env Reg&Plan Services,Waste Disposal (not separated),Waste Disposal .,G00550,Third Party Payments          ,Private Contractors           ,EH01,Dog Bin Disposal - Biffa                ,752.19,14/03/2014,REV,BIFFA WASTE SERVICES LTD      
999,Cultural Env Reg&Plan Services,Waste Disposal (not separated),Waste Disposal .,G00550,Third Party Payments          ,Private Contractors           ,EH01,Dog Bin Disposal - Biffa                ,3846.8,28/02/2014,REV,BRITANNIA CREST RECYCLING LTD 
1000,Cultural Env Reg&Plan Services,Waste Disposal (not separated),Waste Disposal .,G00550,Third Party Payments          ,Private Contractors           ,EH01,Dog Bin Disposal - Biffa                ,1466.16,22/02/2014,REV,BRITANNIA CREST RECYCLING LTD 
1001,Cultural Env Reg&Plan Services,Waste Disposal (not separated),Waste Disposal .,G00550,Third Party Payments          ,Private Contractors           ,EH01,Dog Bin Disposal - Biffa                ,564.78,31/01/2014,REV,BIFFA WASTE SERVICES LTD      
1002,Cultural Env Reg&Plan Services,Waste Disposal (not separated),Waste Disposal .,G00550,Third Party Payments          ,Private Contractors           ,EH01,Dog Bin Disposal - Biffa                ,1010.7,25/01/2014,REV,BRITANNIA CREST RECYCLING LTD 
1003,Cultural Env Reg&Plan Services,Waste Disposal (not separated),Waste Disposal .,G00550,Third Party Payments          ,Private Contractors           ,EH04,C1 Viridor SLWP Landfill Contract       ,439931.14,21/03/2014,REV,KINGSTON CORPORATION          
1004,Cultural Env Reg&Plan Services,Waste Disposal (not separated),Waste Disposal .,G00550,Third Party Payments          ,Private Contractors           ,EH04,C1 Viridor SLWP Landfill Contract       ,431155.19,27/02/2014,REV,KINGSTON CORPORATION          
1005,Cultural Env Reg&Plan Services,Waste Disposal (not separated),Waste Disposal .,G00550,Third Party Payments          ,Private Contractors           ,EH10,SLWP C1 HAULAGE DRY RECYCLABLES         ,37711.02,21/03/2014,REV,KINGSTON CORPORATION          
1006,Cultural Env Reg&Plan Services,Waste Disposal (not separated),Waste Disposal .,G00550,Third Party Payments          ,Private Contractors           ,EH10,SLWP C1 HAULAGE DRY RECYCLABLES         ,33938.03,27/02/2014,REV,KINGSTON CORPORATION          
1007,Cultural Env Reg&Plan Services,Waste Disposal (not separated),Waste Disposal .,G00550,Third Party Payments          ,Private Contractors           ,EH66,Clinical Waste Disposal                 ,703.42,28/02/2014,REV,S.GRUNDON (WASTE) LTD.        
1008,Cultural Env Reg&Plan Services,Waste Disposal (not separated),Waste Disposal .,G00550,Third Party Payments          ,Private Contractors           ,EH66,Clinical Waste Disposal                 ,992.57,31/01/2014,REV,S.GRUNDON (WASTE) LTD.        
1009,Cultural Env Reg&Plan Services,Waste Disposal (not separated),Waste Disposal .,G00550,Third Party Payments          ,Private Contractors           ,EH96,GULLY DISPOSAL                          ,1651.25,31/01/2014,REV,CORY ENVIRONMENTAL LIMITED    
1010,Cultural Env Reg&Plan Services,Waste Disposal (not separated),Waste Disposal .,G00550,Third Party Payments          ,Private Contractors           ,EH96,GULLY DISPOSAL                          ,1559.88,28/02/2014,REV,CORY ENVIRONMENTAL LIMITED    
1011,Cultural Env Reg&Plan Services,Civic Amenity Sites,Garth Road Site,G00580,Third Party Payments          ,Private Contractors           ,EH01,MISCELLANEOUS AGENCY SERVICES           ,36324.96,21/03/2014,REV,KINGSTON CORPORATION          
1012,Cultural Env Reg&Plan Services,Civic Amenity Sites,Garth Road Site,G00580,Third Party Payments          ,Private Contractors           ,EH01,MISCELLANEOUS AGENCY SERVICES           ,36324.96,27/02/2014,REV,KINGSTON CORPORATION          
1013,Cultural Env Reg&Plan Services,Civic Amenity Sites,Garth Road Site,G00580,Third Party Payments          ,Private Contractors           ,EH01,MISCELLANEOUS AGENCY SERVICES           ,36324.96,21/03/2014,REV,KINGSTON CORPORATION          
1014,Cultural Env Reg&Plan Services,Civic Amenity Sites,Garth Road Site,G00580,Third Party Payments          ,Private Contractors           ,EH63,TRANSPORT FEE - LANDFILL                ,124799.28,21/03/2014,REV,KINGSTON CORPORATION          
1015,Cultural Env Reg&Plan Services,Civic Amenity Sites,Garth Road Site,G00580,Third Party Payments          ,Private Contractors           ,EH65,TRANSPORT FEE - COMPOST                 ,9650,20/03/2014,REV,MIST-AIR ENVIRONMENTAL COMPANY
1016,Cultural Env Reg&Plan Services,Civic Amenity Sites,Garth Road Site,G00580,Third Party Payments          ,Private Contractors           ,EH82,Waste Mangemnt Licence Charges          ,3265.98,01/04/2011,REV,ENVIRONMENT AGENCY            
1017,Cultural Env Reg&Plan Services,Civic Amenity Sites,Garth Road Site,G00580,Third Party Payments          ,Private Contractors           ,EH82,Waste Mangemnt Licence Charges          ,-553.02,02/03/2012,REV,ENVIRONMENT AGENCY            
1018,Cultural Env Reg&Plan Services,Civic Amenity Sites,Garth Road Site,G00580,Third Party Payments          ,Private Contractors           ,EH82,Waste Mangemnt Licence Charges          ,553.02,01/04/2011,REV,ENVIRONMENT AGENCY            
1019,Cultural Env Reg&Plan Services,Civic Amenity Sites,SLWP (Garth Rd Site)                    ,G00581,Transport Related Expenditure ,Direct Transport Costs        ,CA01,Petrol Derv & Oil                       ,1888.5,28/02/2014,REV,HALL FUELS                    
1020,Highways & Transport Services,Hwys/Rds (struct) not split,Grass Cut/Tr Mtce,G00600,Premises Related Expenditure  ,Ground Maintenance Costs      ,BL03,Maintenance of Grounds                  ,1998.21,24/02/2014,REV,FM CONWAY LTD                 
1021,Highways & Transport Services,Hwys/Rds (struct) not split,Grass Cut/Tr Mtce,G00600,Third Party Payments          ,Private Contractors           ,EH56,Carriageway/Fway Maint                  ,13500,27/03/2014,REV,FM CONWAY LTD                 
1022,Cultural Env Reg&Plan Services,Public Health,Dog Control.,G00620,Third Party Payments          ,Private Contractors           ,EH02,Miscellaneous Hired Services            ,3068.5,07/03/2014,REV,NOAH'S ARK ENVIRONMENTAL SERV.
1023,Cultural Env Reg&Plan Services,Public Health,Dog Control.,G00620,Third Party Payments          ,Private Contractors           ,EH02,Miscellaneous Hired Services            ,2509.5,21/03/2014,REV,NOAH'S ARK ENVIRONMENTAL SERV.
1024,Cultural Env Reg&Plan Services,Recycling (Collection),Recycling Activities,G00640,Supplies & Services           ,Equip Furniture/Materials     ,DA01,Equipment - R & M                       ,3321,20/03/2014,REV,R.J.H.WELDING                 
1025,Cultural Env Reg&Plan Services,Recycling (Collection),Recycling Activities,G00640,Supplies & Services           ,Equip Furniture/Materials     ,DA01,Equipment - R & M                       ,4968.5,27/03/2014,REV,R.J.H.WELDING                 
1026,Cultural Env Reg&Plan Services,Recycling (Collection),Recycling Activities,G00640,Supplies & Services           ,Equip Furniture/Materials     ,DA01,Equipment - R & M                       ,1485,27/03/2014,REV,R.J.H.WELDING                 
1027,Cultural Env Reg&Plan Services,Recycling (Collection),Recycling Activities,G00640,Supplies & Services           ,Equip Furniture/Materials     ,DA09,Equip-Purchases                         ,1950,28/03/2014,REV,PJ HARVEY & CO LTD            
1028,Cultural Env Reg&Plan Services,Recycling (Collection),Recycling Activities,G00640,Supplies & Services           ,Equip Furniture/Materials     ,DA32,Wheeled Bins                            ,888,31/01/2014,REV,SPIDER UK LTD                 
1029,Cultural Env Reg&Plan Services,Recycling (Collection),Recycling Activities,G00640,Supplies & Services           ,Equip Furniture/Materials     ,DA32,Wheeled Bins                            ,688.75,31/01/2014,REV,SPIDER UK LTD                 
1030,Cultural Env Reg&Plan Services,Recycling (Collection),Recycling Activities,G00640,Supplies & Services           ,Equip Furniture/Materials     ,DA32,Wheeled Bins                            ,1366.8,31/01/2014,REV,SPIDER UK LTD                 
1031,Cultural Env Reg&Plan Services,Recycling (Collection),Recycling Activities,G00640,Supplies & Services           ,Equip Furniture/Materials     ,DA32,Wheeled Bins                            ,4642.5,26/02/2014,REV,ESE                           
1032,Cultural Env Reg&Plan Services,Recycling (Collection),Recycling Activities,G00640,Supplies & Services           ,Equip Furniture/Materials     ,DA32,Wheeled Bins                            ,1332,28/02/2014,REV,SPIDER UK LTD                 
1033,Cultural Env Reg&Plan Services,Recycling (Collection),Recycling Activities,G00640,Supplies & Services           ,Equip Furniture/Materials     ,DA54,Recycling Containers                    ,3250,25/03/2014,REV,AMBEROL LTD                   
1034,Cultural Env Reg&Plan Services,Recycling (Collection),Recycling Activities,G00640,Supplies & Services           ,Services                      ,DF03,Consultants                             ,6955,27/03/2014,REV,M.E.L RESEARCH LTD.           
1035,Cultural Env Reg&Plan Services,Recycling (Collection),Recycling Activities,G00640,Supplies & Services           ,Services                      ,DF03,Consultants                             ,6955,27/03/2014,REV,M.E.L RESEARCH LTD.           
1036,Cultural Env Reg&Plan Services,Recycling (Collection),Recycling Activities,G00640,Supplies & Services           ,Services                      ,DF03,Consultants                             ,7241,27/03/2014,REV,M.E.L RESEARCH LTD.           
1037,Cultural Env Reg&Plan Services,Recycling (Collection),Recycling Activities,G00640,Third Party Payments          ,Private Contractors           ,EH03,C3 DRY RECYCLING GATE FEE               ,45578.84,21/03/2014,REV,KINGSTON CORPORATION          
1038,Cultural Env Reg&Plan Services,Recycling (Collection),Recycling Activities,G00640,Third Party Payments          ,Private Contractors           ,EH03,C3 DRY RECYCLING GATE FEE               ,48866.25,27/02/2014,REV,KINGSTON CORPORATION          
1039,Cultural Env Reg&Plan Services,Recycling (Collection),Recycling Activities,G00640,Third Party Payments          ,Private Contractors           ,EH10,SLWP C1 EFW HAULAGE                     ,21274.53,21/03/2014,REV,KINGSTON CORPORATION          
1040,Cultural Env Reg&Plan Services,Recycling (Collection),Recycling Activities,G00640,Third Party Payments          ,Private Contractors           ,EH10,SLWP C1 EFW HAULAGE                     ,7257.99,27/02/2014,REV,KINGSTON CORPORATION          
1041,Cultural Env Reg&Plan Services,Recycling (Collection),Recycling Activities,G00640,Third Party Payments          ,Private Contractors           ,EH18,C3 FOOD WASTE GATE FEE                  ,21082.18,21/03/2014,REV,KINGSTON CORPORATION          
1042,Cultural Env Reg&Plan Services,Recycling (Collection),Recycling Activities,G00640,Third Party Payments          ,Private Contractors           ,EH18,C3 FOOD WASTE GATE FEE                  ,18901.35,27/02/2014,REV,KINGSTON CORPORATION          
1043,Cultural Env Reg&Plan Services,Recycling (Collection),Recycling Activities,G00640,Third Party Payments          ,Private Contractors           ,EH19,C1 EFW ACCEPTANCE & BULK                ,6571.23,21/03/2014,REV,KINGSTON CORPORATION          
1044,Cultural Env Reg&Plan Services,Recycling (Collection),Recycling Activities,G00640,Third Party Payments          ,Private Contractors           ,EH19,C1 EFW ACCEPTANCE & BULK                ,2245.83,27/02/2014,REV,KINGSTON CORPORATION          
1045,Cultural Env Reg&Plan Services,Recycling (Collection),Recycling Activities,G00640,Third Party Payments          ,Private Contractors           ,EH61,Green Waste Disposal                    ,4170.37,28/02/2014,REV,VIRIDOR WASTE KENT LTD        
1046,Cultural Env Reg&Plan Services,Recycling (Collection),Recycling Activities,G00640,Third Party Payments          ,Private Contractors           ,EH63,EFW C3 GATE FEES                        ,65467.35,21/03/2014,REV,KINGSTON CORPORATION          
1047,Cultural Env Reg&Plan Services,Recycling (Collection),Recycling Activities,G00640,Third Party Payments          ,Private Contractors           ,EH63,EFW C3 GATE FEES                        ,22344.17,27/02/2014,REV,KINGSTON CORPORATION          
1048,Cultural Env Reg&Plan Services,Recycling (Collection),Recycling Activities,G00640,Third Party Payments          ,Private Contractors           ,EH65,PAYMENTS - SITA                         ,826.92,28/02/2014,REV,BRITANNIA CREST RECYCLING LTD 
1049,Cultural Env Reg&Plan Services,Recycling (Collection),Recycling Activities,G00640,Third Party Payments          ,Private Contractors           ,EH65,PAYMENTS - SITA                         ,3358.52,22/02/2014,REV,BRITANNIA CREST RECYCLING LTD 
1050,Cultural Env Reg&Plan Services,Recycling (Collection),Recycling Activities,G00640,Third Party Payments          ,Private Contractors           ,EH65,PAYMENTS - SITA                         ,2348.84,31/01/2014,REV,BRITANNIA CREST RECYCLING LTD 
1051,Cultural Env Reg&Plan Services,Recycling (Collection),Recycling Activities,G00640,Third Party Payments          ,Private Contractors           ,EH65,PAYMENTS - SITA                         ,2213.76,08/02/2014,REV,BRITANNIA CREST RECYCLING LTD 
1052,Cultural Env Reg&Plan Services,Recycling (Collection),Recycling Activities,G00640,Third Party Payments          ,Private Contractors           ,EH65,PAYMENTS - SITA                         ,827.68,22/03/2014,REV,BRITANNIA CREST RECYCLING LTD 
1053,Cultural Env Reg&Plan Services,Recycling (Collection),Recycling Activities,G00640,Third Party Payments          ,Private Contractors           ,EH90,ADDITIONAL EFW UNDER SUFFOLK SCHEME     ,32762.08,27/02/2014,REV,KINGSTON CORPORATION          
1054,Cultural Env Reg&Plan Services,Recycling (Collection),Recycling Activities,G00640,Third Party Payments          ,Private Contractors           ,EH90,ADDITIONAL EFW UNDER SUFFOLK SCHEME     ,13092.97,21/03/2014,REV,KINGSTON CORPORATION          
1055,Cultural Env Reg&Plan Services,Recycling (Collection),Recycling Activities,G00640,Third Party Payments          ,Private Contractors           ,EH94,C1 DRY RECYCLING ACCEPTANCE & BULK      ,7867.82,21/03/2014,REV,KINGSTON CORPORATION          
1056,Cultural Env Reg&Plan Services,Recycling (Collection),Recycling Activities,G00640,Third Party Payments          ,Private Contractors           ,EH94,C1 DRY RECYCLING ACCEPTANCE & BULK      ,7080.36,27/02/2014,REV,KINGSTON CORPORATION          
1057,Cultural Env Reg&Plan Services,Recycling (Collection),Garden Waste Service,G00647,Supplies & Services           ,Equip Furniture/Materials     ,DA31,Waste Sacks & Bags                      ,3750,28/02/2014,REV,ALPHA WASTE SUPPLIES          
1058,Cultural Env Reg&Plan Services,Recycling (Collection),Garden Waste Service,G00647,Supplies & Services           ,Equip Furniture/Materials     ,DA32,Wheeled Bins (GARDEN BINS)              ,10695,24/01/2014,REV,SSI SCHAEFER LTD              
1059,Cultural Env Reg&Plan Services,Recycling (Collection),Food Waste Service,G00648,Supplies & Services           ,Equip Furniture/Materials     ,DA04,Materials                               ,16610,21/02/2014,REV,LONDON LETTERBOX MARKETING    
